Workbook

Sheet Liste
A1: Extern | B1: Obst | C1: Lidl | D1: Artikel | F1: Min 2025 | G1: MAX 2025 | H1: Min 2026 | I1: MAX 2026 | J1: letzter Preis | K1: Einkauf | L1: Soll | M1: Ist | N1: =TODAY()+5-WEEKDAY(TODAY())+4*(WEEKDAY(TODAY())>7) -> 2025-09-18 | O1: =TODAY()+5-WEEKDAY(TODAY())+4*(WEEKDAY(TODAY())>7)-7 -> 2025-09-11 | P1: 2025-01-02 | Q1: 2025-01-09 | R1: 2025-01-16 | S1: 2025-01-23 | T1: 2025-01-30 | U1: 2025-02-06 | V1: 2025-02-13 | W1: 2025-02-20 | X1: 2025-02-27 | Y1: 2025-03-06 | Z1: 2025-03-13 | AA1: 2025-03-20 | AB1: 2025-03-27 | AC1: 2025-04-03 | AD1: 2025-04-10 | AE1: 2025-04-17 | AF1: 2025-04-24 | AG1: 2025-05-01 | AH1: 2025-05-08 | AI1: 2025-05-15 | AJ1: 2025-05-22 | AK1: 2025-05-29 | AL1: 2025-06-05 | AM1: 2025-06-12 | AN1: 2025-06-19 | AO1: 2025-06-26 | AP1: 2025-07-03 | AQ1: 2025-07-10 | AR1: 2025-07-17 | AS1: 2025-07-24 | AT1: 2025-07-31 | AU1: 2025-08-07 | AV1: 2025-08-14 | AW1: 2025-08-21 | AX1: 2025-08-28 | AY1: 2025-09-04 | AZ1: 2025-09-11 | BA1: 2025-09-18 | BB1: 2025-09-25 | BC1: 2025-10-02 | BD1: 2025-10-09 | BE1: 2025-10-16 | BF1: 2025-10-23 | BG1: 2025-10-30 | BH1: 2025-11-06 | BI1: 2025-11-13 | BJ1: 2025-11-20 | BK1: 2025-11-27 | BL1: 2025-12-04 | BM1: 2025-12-11 | BN1: 2025-12-18 | BO1: 2025-12-25 | BP1: 2026-01-01 | BQ1: 2026-01-08 | BR1: 2026-01-15 | BS1: 2026-01-22 | BT1: 2026-01-29 | BU1: 2026-02-05 | BV1: 2026-02-12 | BW1: 2026-02-19 | BX1: 2026-02-26 | BY1: 2026-03-05 | BZ1: 2026-03-12 | CA1: 2026-03-19 | CB1: 2026-03-26 | CC1: 2026-04-02 | CD1: 2026-04-09 | CE1: 2026-04-16 | CF1: 2026-04-23 | CG1: 2026-04-30 | CH1: 2026-05-07 | CI1: 2026-05-14 | CJ1: 2026-05-21 | CK1: 2026-05-28 | CL1: 2026-06-04 | CM1: 2026-06-11 | CN1: 2026-06-18 | CO1: 2026-06-25 | CP1: 2026-07-02 | CQ1: 2026-07-09 | CR1: 2026-07-16 | CS1: 2026-07-23 | CT1: 2026-07-30 | CU1: 2026-08-06 | CV1: 2026-08-13 | CW1: 2026-08-20 | CX1: 2026-08-27 | CY1: 2026-09-03 | CZ1: 2026-09-10 | DA1: 2026-09-17 | DB1: 2026-09-24 | DC1: 2026-10-01
A2: 0 | B2: 0 | C2: =IF(OR(K2>0,F2=O2,F2=N2),1,0) -> 0 | E2: Artikel 1 | F2: =MIN($P2:BO2) -> 99.99 | G2: =MAX($P2:BO2) -> 99.99 | H2: =MIN($BP2:DC2) -> 0 | I2: =MAX($BP2:DC2) -> 0 | J2: =IFERROR(LOOKUP(100000,P2:DC2),0) -> 99.99 | K2: =SUM(L2-M2) -> 0 | L2: 2 | M2: 2 | N2: =INDEX(P2:ZC2,MATCH(N$1,P$1:ZC$1,0)) -> 0 | O2: =IFERROR(INDEX(Q2:ZD2,MATCH(O$1,Q$1:ZD$1,0)),0) -> 0 | AB2: 99.99 | AC2: 99.99 | AM2: 99.99
A3: =A2 -> 0 | B3: =B2 -> 0 | C3: =IF(OR(K3>0,F3=O3,F3=N3),C2+1,C2) -> 1 | E3: Artikel 2 | F3: =MIN($P3:BO3) -> 58.99 | G3: =MAX($P3:BO3) -> 58.99 | H3: =MIN($BP3:DC3) -> 0 | I3: =MAX($BP3:DC3) -> 0 | J3: =IFERROR(LOOKUP(100000,P3:DC3),0) -> 58.99 | K3: 1 | L3: 2 | M3: 1 | N3: 0 | O3: 0 | AA3: 58.99 | AD3: 58.99 | AK3: 58.99 | AM3: 58.99
A4: =A3 -> 0 | B4: =B3 -> 0 | C4: =IF(OR(K4>0,F4=O4,F4=N4),C3+1,C3) -> 2 | E4: Artikel 3 | F4: =MIN($P4:BO4) -> 247.99 | G4: =MAX($P4:BO4) -> 247.99 | H4: =MIN($BP4:DC4) -> 0 | I4: =MAX($BP4:DC4) -> 0 | J4: =IFERROR(LOOKUP(100000,P4:DC4),0) -> 247.99 | K4: 1 | L4: 7 | M4: 6 | N4: 0 | O4: 0 | U4: 247.99
A5: =A4 -> 0 | B5: 0 | C5: 2 | E5: Artikel 4 | F5: =MIN($P5:BO5) -> 239.99 | G5: =MAX($P5:BO5) -> 239.99 | H5: =MIN($BP5:DC5) -> 0 | I5: =MAX($BP5:DC5) -> 0 | J5: 239.99 | K5: 0 | L5: 1 | M5: 1 | N5: 0 | O5: 0 | AN5: 239.99 | AU5: 239.99
A6: =IF(K6>0,A5+1,A5) -> 0 | B6: 0 | C6: =C5 -> 2 | E6: Artikel 5 | F6: =MIN($P6:BO6) -> 167 | G6: =MAX($P6:BO6) -> 167 | H6: =MIN($BP6:DC6) -> 0 | I6: =MAX($BP6:DC6) -> 0 | J6: 167 | K6: 0 | L6: 12 | M6: 12 | N6: 0 | O6: 0 | P6: 167
A7: =A6 -> 0 | B7: 0 | C7: 2 | E7: Artikel 6 | F7: =MIN($P7:BO7) -> 299.99 | G7: =MAX($P7:BO7) -> 319.99 | H7: =MIN($BP7:DC7) -> 0 | I7: =MAX($BP7:DC7) -> 0 | J7: 319.99 | K7: 0 | L7: 4 | M7: 4 | N7: 0 | O7: 0 | V7: 299.99 | AN7: 319.99
A8: =IF(K8>0,A7+1,A7) -> 0 | B8: 0 | C8: =C7 -> 2 | E8: Artikel 7 | F8: =MIN($P8:BO8) -> 450 | G8: =MAX($P8:BO8) -> 450 | H8: =MIN($BP8:DC8) -> 0 | I8: =MAX($BP8:DC8) -> 0 | J8: 450 | K8: 0 | L8: 2 | M8: 2 | N8: 0 | O8: 0 | P8: 450
A9: =A8 -> 0 | B9: 0 | C9: 2 | E9: Artikel 8 | F9: =MIN($P9:BO9) -> 139.99 | G9: =MAX($P9:BO9) -> 179.99 | H9: =MIN($BP9:DC9) -> 0 | I9: =MAX($BP9:DC9) -> 0 | J9: 145.99 | K9: -1 | L9: 5 | M9: 6 | N9: 0 | O9: 0 | AG9: 179.99 | AP9: 139.99 | AY9: 145.99
A10: 0 | B10: 0 | C10: 2 | E10: Artikel 9 | F10: =MIN($P10:BO10) -> 399.99 | G10: =MAX($P10:BO10) -> 399.99 | H10: =MIN($BP10:DC10) -> 0 | I10: =MAX($BP10:DC10) -> 0 | J10: 399.99 | K10: 0 | L10: 1 | M10: 1 | N10: 0 | O10: 0 | AO10: 399.99
A11: 0 | B11: =IF(OR(K11>0,F11=N11),B10+1,B10) -> 1 | C11: =IF(OR(F11=O11,F11=N11),C10+1,C10) -> 2 | E11: Artikel 10 | F11: =MIN($P11:BO11) -> 69.99 | G11: =MAX($P11:BO11) -> 139.99 | H11: =MIN($BP11:DC11) -> 0 | I11: =MAX($BP11:DC11) -> 0 | J11: 79.99 | K11: 3 | L11: 3 | N11: 0 | O11: 79.99 | P11: 94.99 | R11: 89.99 | V11: 69.99 | X11: 99.99 | AB11: 119.99 | AD11: 69.99 | AE11: 89.99 | AF11: 99.99 | AG11: 99.99 | AI11: 99.99 | AX11: 139.99 | AZ11: 79.99
A12: 0 | B12: =IF(OR(K12>0,F12=N12),B11+1,B11) -> 2 | C12: =IF(OR(F12=O12,F12=N12),C11+1,C11) -> 2 | E12: Artikel 11 | F12: =MIN($P12:BO12) -> 249.99 | G12: =MAX($P12:BO12) -> 299.99 | H12: =MIN($BP12:DC12) -> 0 | I12: =MAX($BP12:DC12) -> 0 | J12: 299.99 | K12: 1 | L12: 1 | N12: 0 | O12: 0 | AN12: 299.99 | AO12: 249.99 | AP12: 299.99
A13: 0 | B13: =B12 -> 2 | C13: =IF(OR(K13>0,F13=O13,F13=N13),C12+1,C12) -> 2 | E13: Artikel 12 | F13: =MIN($P13:BO13) -> 189.99 | G13: =MAX($P13:BO13) -> 269.99 | H13: =MIN($BP13:DC13) -> 0 | I13: =MAX($BP13:DC13) -> 0 | J13: 269.99 | K13: 0 | L13: 8 | M13: 8 | N13: 0 | O13: 0 | AF13: 189.99 | AQ13: 269.99
A14: 0 | B14: =B13 -> 2 | C14: 2 | E14: Artikel 13 | F14: =MIN($P14:BO14) -> 129.99 | G14: =MAX($P14:BO14) -> 134.99 | H14: =MIN($BP14:DC14) -> 0 | I14: =MAX($BP14:DC14) -> 0 | J14: 134.99 | K14: -1 | L14: 5 | M14: 6 | N14: 0 | O14: 0 | AO14: 129.99 | AY14: 134.99
A15: =A14 -> 0 | B15: =IF(OR(K15>0,F15=N15),B14+1,B14) -> 3 | C15: =IF(OR(F15=O15,F15=N15),C14+1,C14) -> 2 | E15: Artikel 14 | F15: =MIN($P15:BO15) -> 129.99 | G15: =MAX($P15:BO15) -> 169.99 | H15: =MIN($BP15:DC15) -> 0 | I15: =MAX($BP15:DC15) -> 0 | J15: 169.99 | K15: 2 | L15: 2 | N15: 0 | O15: 0 | Y15: 129.99 | AB15: 139.99 | AD15: 149.49 | AE15: 149.99 | AH15: 149.49 | AL15: 139.99 | AV15: 169.99
A16: =IF(K16>4,A15+1,A15) -> 0 | B16: =B15 -> 3 | C16: =C15 -> 2 | E16: Artikel 15 | F16: =MIN($P16:BO16) -> 114.99 | G16: =MAX($P16:BO16) -> 114.99 | H16: =MIN($BP16:DC16) -> 0 | I16: =MAX($BP16:DC16) -> 0 | J16: 114.99 | K16: 0 | L16: 15 | M16: 15 | N16: 0 | O16: 0 | AU16: 114.99
A17: 0 | B17: =IF(OR(K17>0,F17=N17),B16+1,B16) -> 4 | C17: =IF(OR(F17=O17,F17=N17),C16+1,C16) -> 2 | E17: Artikel 16 | F17: =MIN($P17:BO17) -> 119.99 | G17: =MAX($P17:BO17) -> 209.99 | H17: =MIN($BP17:DC17) -> 0 | I17: =MAX($BP17:DC17) -> 0 | J17: 209.99 | K17: 2 | L17: 2 | N17: 0 | O17: 0 | AO17: 169.99 | AS17: 149.99 | AW17: 119.99 | AY17: 209.99
A18: 0 | B18: =IF(OR(K18>0,F18=N18),B17+1,B17) -> 5 | C18: =IF(OR(F18=O18,F18=N18),C17+1,C17) -> 2 | E18: Artikel 17 | F18: =MIN($P18:BO18) -> 199.99 | G18: =MAX($P18:BO18) -> 199.99 | H18: =MIN($BP18:DC18) -> 0 | I18: =MAX($BP18:DC18) -> 0 | J18: 199.99 | K18: 1 | L18: 1 | N18: 0 | O18: 0 | AP18: 199.99
A19: 0 | B19: =B18 -> 5 | C19: =IF(OR(K19>0,F19=O19,F19=N19),C18+1,C18) -> 2 | E19: Artikel 18 | F19: =MIN($P19:BO19) -> 49.99 | G19: =MAX($P19:BO19) -> 64.99 | H19: =MIN($BP19:DC19) -> 0 | I19: =MAX($BP19:DC19) -> 0 | J19: 64.99 | K19: -5 | L19: 20 | M19: 25 | N19: 0 | O19: 0 | AC19: 49.99 | AO19: 55.24 | AR19: 64.99
A20: 0 | B20: =IF(OR(K20>0,F20=N20),B19+1,B19) -> 6 | C20: =IF(OR(F20=O20,F20=N20),C19+1,C19) -> 2 | E20: Artikel 19 | F20: =MIN($P20:BO20) -> 119.99 | G20: =MAX($P20:BO20) -> 139.99 | H20: =MIN($BP20:DC20) -> 0 | I20: =MAX($BP20:DC20) -> 0 | J20: 119.99 | K20: 2 | L20: 2 | N20: 0 | O20: =INDEX(Q20:ZD20,MATCH(O$1,Q$1:ZD$1,0)) -> 0 | R20: 129.99 | T20: 139.99 | AC20: 119.99
A21: 0 | B21: =B20 -> 6 | C21: 3 | E21: Artikel 20 | F21: =MIN($P21:BO21) -> 119.99 | G21: =MAX($P21:BO21) -> 124.99 | H21: =MIN($BP21:DC21) -> 0 | I21: =MAX($BP21:DC21) -> 0 | J21: 124.99 | K21: 6 | L21: 10 | M21: 4 | N21: 0 | O21: 0 | AB21: 124.99 | AH21: 119.99 | AM21: 124.99 | AQ21: 124.99 | AS21: 124.99
A22: 0 | B22: 6 | C22: =IF(OR(((M22+M23)<2),F23=O23,F22=N22),C21+1,C21) -> 3 | E22: Artikel 21 | F22: =MIN($P22:BO22) -> 229.99 | G22: =MAX($P22:BO22) -> 399.99 | H22: =MIN($BP22:DC22) -> 0 | I22: =MAX($BP22:DC22) -> 0 | J22: 309.99 | K22: =SUM((L22+L23)-(M22+M23)) -> 0 | L22: 1 | M22: 2 | N22: 0 | O22: 0 | Q22: 289.99 | W22: 329.99 | Y22: 289.99 | AF22: 229.99 | AI22: 399.99 | AK22: 269.99 | AT22: 389.99 | AU22: 309.99
A23: 0 | B23: 6 | C23: =IF(OR(((M22+M23)<2),F23=O23,F23=N23),C22+1,C22) -> 3 | E23: Artikel 22 | F23: =MIN($P23:BO23) -> 539.99 | G23: =MAX($P23:BO23) -> 599.99 | H23: =MIN($BP23:DC23) -> 0 | I23: =MAX($BP23:DC23) -> 0 | J23: 599.99 | K23: =SUM((L22+L23)-(M22+M23)) -> 0 | L23: 1 | N23: 0 | O23: 0 | AD23: 599.99 | AP23: 539.99 | AR23: 539.99 | AV23: 599.99
A24: 0 | B24: 6 | C24: =IF(OR(K24>0,F24=O24,F24=N24),C23+1,C23) -> 3 | E24: Artikel 23 | F24: =MIN($P24:BO24) -> 42.49 | G24: =MAX($P24:BO24) -> 49.99 | H24: =MIN($BP24:DC24) -> 0 | I24: =MAX($BP24:DC24) -> 0 | J24: 42.49 | K24: =SUM(L24-M24) -> 0 | L24: 20 | M24: 20 | N24: 0 | O24: 0 | AO24: 49.99 | AR24: 49.99 | AU24: 42.49
A25: 0 | B25: 6 | C25: 3 | E25: Artikel 24 | F25: =MIN($P25:BO25) -> 189.99 | G25: =MAX($P25:BO25) -> 209.99 | H25: =MIN($BP25:DC25) -> 0 | I25: =MAX($BP25:DC25) -> 0 | J25: 199.99 | K25: -2 | L25: 2 | M25: 4 | N25: 199.99 | O25: 0 | AI25: 189.99 | AP25: 209.99 | AU25: 189.99 | BA25: 199.99
A26: 0 | B26: 6 | C26: 3 | E26: Artikel 25 | F26: =MIN($P26:BO26) -> 169.99 | G26: =MAX($P26:BO26) -> 169.99 | H26: =MIN($BP26:DC26) -> 0 | I26: =MAX($BP26:DC26) -> 0 | J26: 169.99 | K26: 0 | L26: 20 | M26: 20 | N26: 0 | O26: 0 | AP26: 169.99
A27: 0 | B27: =IF(OR(K27>0,F27=N27),B26+1,B26) -> 7 | C27: =C26 -> 3 | E27: Artikel 26 | F27: =MIN($P27:BO27) -> 89.99 | G27: =MAX($P27:BO27) -> 89.99 | H27: =MIN($BP27:DC27) -> 0 | I27: =MAX($BP27:DC27) -> 0 | J27: 89.99 | K27: 1 | L27: 1 | N27: 0 | O27: 0 | R27: 89.99
A28: 0 | B28: =IF(OR(K28>0,F28=N28),B27+1,B27) -> 8 | C28: =C27 -> 3 | E28: Artikel 27 | F28: =MIN($P28:BO28) -> 179.99 | G28: =MAX($P28:BO28) -> 179.99 | H28: =MIN($BP28:DC28) -> 0 | I28: =MAX($BP28:DC28) -> 0 | J28: 179.99 | K28: 1 | L28: 1 | N28: 0 | O28: 0 | AR28: 179.99
A29: =A28 -> 0 | B29: 9 | C29: =C28 -> 3 | E29: Artikel 28 | F29: =MIN($P29:BO29) -> 169.99 | G29: =MAX($P29:BO29) -> 169.99 | H29: =MIN($BP29:DC29) -> 0 | I29: =MAX($BP29:DC29) -> 0 | J29: 169.99 | K29: =SUM(L29-M29) -> 2 | L29: 2 | N29: =INDEX(P29:ZC29,MATCH(N$1,P$1:ZC$1,0)) -> 0 | O29: =INDEX(Q29:ZD29,MATCH(O$1,Q$1:ZD$1,0)) -> 0 | AY29: 169.99
A30: =A29 -> 0 | B30: 10 | C30: =C29 -> 3 | E30: Artikel 29 | F30: =MIN($P30:BO30) -> 449.99 | G30: =MAX($P30:BO30) -> 449.99 | H30: =MIN($BP30:DC30) -> 0 | I30: =MAX($BP30:DC30) -> 0 | J30: 449.99 | K30: 1 | L30: 1 | N30: =INDEX(P30:ZC30,MATCH(N$1,P$1:ZC$1,0)) -> 0 | O30: =INDEX(Q30:ZD30,MATCH(O$1,Q$1:ZD$1,0)) -> 0 | R30: 449.99
A31: 0 | B31: =B30 -> 10 | C31: =IF(OR(K31>0,F31=O31,F31=N31),C30+1,C30) -> 3 | E31: Artikel 30 | F31: =MIN($P31:BO31) -> 94.99 | G31: =MAX($P31:BO31) -> 94.99 | H31: =MIN($BP31:DC31) -> 0 | I31: =MAX($BP31:DC31) -> 0 | J31: 94.99 | K31: 0 | L31: 10 | M31: 10 | N31: 0 | O31: 0 | P31: 94.99 | S31: 94.99
A32: 0 | B32: 10 | C32: 3 | E32: Artikel 31 | F32: =MIN($P32:BO32) -> 299.99 | G32: =MAX($P32:BO32) -> 349.99 | H32: =MIN($BP32:DC32) -> 0 | I32: =MAX($BP32:DC32) -> 0 | J32: 299.99 | K32: -1 | L32: 9 | M32: 10 | N32: =INDEX(P32:ZC32,MATCH(N$1,P$1:ZC$1,0)) -> 0 | O32: =INDEX(Q32:ZD32,MATCH(O$1,Q$1:ZD$1,0)) -> 0 | AQ32: 349.99 | AT32: 299.99
A33: =IF((M89+M90+M91+M92)>0,A32+1,A32) -> 0 | B33: 10 | C33: =C32 -> 3 | E33: Artikel 32 | F33: =MIN($P33:BO33) -> 80 | G33: =MAX($P33:BO33) -> 80 | H33: =MIN($BP33:DC33) -> 0 | I33: =MAX($BP33:DC33) -> 0 | J33: 80 | K33: 2 | L33: 2 | N33: =INDEX(P33:ZC33,MATCH(N$1,P$1:ZC$1,0)) -> 0 | O33: =INDEX(Q33:ZD33,MATCH(O$1,Q$1:ZD$1,0)) -> 0 | P33: 80
A34: =A33 -> 0 | B34: 10 | C34: =IF(OR(K34>0,F34=O34,F34=N34),C33+1,C33) -> 3 | E34: Artikel 33 | F34: =MIN($P34:BO34) -> 89.99 | G34: =MAX($P34:BO34) -> 239.98 | H34: =MIN($BP34:DC34) -> 0 | I34: =MAX($BP34:DC34) -> 0 | J34: 89.99 | K34: 0 | L34: 20 | M34: 20 | N34: 0 | O34: 0 | V34: 159.99 | X34: 104.99 | Z34: 99.99 | AE34: 239.98 | AK34: 89.99 | AP34: 99.99 | AR34: 99.99 | AS34: 89.99
A35: 0 | B35: 10 | C35: =C34 -> 3 | E35: Artikel 34 | G35: =MAX($P35:BO35) -> 0 | H35: =MIN($BP35:DC35) -> 0 | I35: =MAX($BP35:DC35) -> 0 | J35: =IFERROR(LOOKUP(100000,P35:DC35),0) -> 0 | K35: =SUM(L35-M35) -> 2 | L35: 2 | N35: =INDEX(P35:ZC35,MATCH(N$1,P$1:ZC$1,0)) -> 0 | O35: =INDEX(Q35:ZD35,MATCH(O$1,Q$1:ZD$1,0)) -> 0
A36: 0 | B36: 10 | C36: =IF(OR((M36+M37+M38+M39+M40+M41)<41,F36=O25,F36=N36),C35+1,C35) -> 3 | E36: Artikel 35 | F36: =MIN($P36:BO36) -> 359.7 | G36: =MAX($P36:BO36) -> 419.99 | H36: =MIN($BP36:DC36) -> 0 | I36: =MAX($BP36:DC36) -> 0 | J36: 389.99 | K36: =IF(M36<21,4,IF(M36<31,3,IF(M36<61,2,IF(M36<91,1,1)))) -> 1 | L36: 120 | M36: 100 | N36: =INDEX(P36:ZC36,MATCH(N$1,P$1:ZC$1,0)) -> 0 | O36: 389.99 | S36: 419.99 | W36: 419.99 | AA36: 389.7 | AD36: 359.7 | AN36: 389.7 | AS36: 389.7 | AZ36: 389.99
A37: 0 | B37: 10 | C37: =IF(OR((M36+M37+M38+M39+M40+M41)<41,F37=O37,F37=N37),C36+1,C36) -> 3 | E37: Artikel 36 | F37: =MIN($P37:BO37) -> 229.99 | G37: =MAX($P37:BO37) -> 279.99 | H37: =MIN($BP37:DC37) -> 0 | I37: =MAX($BP37:DC37) -> 0 | J37: 229.99 | K37: =SUM(L36-M36-M37-M38-M39-M40-M41)/18 -> 1.111111111 | L37: 18 | N37: 0 | O37: 0 | R37: 269.99 | AI37: 279.99 | AP37: 229.99
A38: 0 | B38: 10 | C38: =IF(OR((M36+M37+M38+M39+M40+M41)<41,F38=O38,F38=N38),C37+1,C37) -> 3 | E38: Artikel 37 | F38: =MIN($P38:BO38) -> 279.99 | G38: =MAX($P38:BO38) -> 279.99 | H38: =MIN($BP38:DC38) -> 0 | I38: =MAX($BP38:DC38) -> 0 | J38: 279.99 | K38: =SUM(L36-M36-M37-M38-M39-M40-M41)/15 -> 1.333333333 | L38: 15 | N38: 0 | O38: 0 | AU38: 279.99
A39: 0 | B39: 10 | C39: =IF(OR((M36+M37+M38+M39+M40+M41)<41,F39=O39,F39=N39),C38+1,C38) -> 3 | E39: Artikel 38 | F39: =MIN($P39:BO39) -> 155.99 | G39: =MAX($P39:BO39) -> 199.99 | H39: =MIN($BP39:DC39) -> 0 | I39: =MAX($BP39:DC39) -> 0 | J39: 155.99 | K39: =SUM(L36-M36-M37-M38-M39-M40-M41)/12 -> 1.666666667 | L39: 12 | N39: 0 | O39: 0 | P39: 199.99 | AV39: 155.99
A40: 0 | B40: 10 | C40: =IF(OR((M36+M37+M38+M39+M40+M41)<41,F40=O40,F40=N40),C39+1,C39) -> 3 | E40: Artikel 39 | F40: =MIN($P40:BO40) -> 179.99 | G40: =MAX($P40:BO40) -> 179.99 | H40: =MIN($BP40:DC40) -> 0 | I40: =MAX($BP40:DC40) -> 0 | J40: 179.99 | K40: =SUM(L36-M36-M37-M38-M39-M40-M41)/10 -> 2 | L40: 10 | N40: 0 | O40: 0 | AD40: 179.99
A41: 0 | B41: 10 | C41: =IF(OR((M36+M37+M38+M39+M40+M41)<41,F41=O41,F41=N41),C40+1,C40) -> 3 | E41: Artikel 40 | F41: =MIN($P41:BO41) -> 175.99 | G41: =MAX($P41:BO41) -> 219.99 | H41: =MIN($BP41:DC41) -> 0 | I41: =MAX($BP41:DC41) -> 0 | J41: 175.99 | K41: =SUM(L36-M36-M37-M38-M39-M40-M41)/10 -> 2 | L41: 10 | N41: 0 | O41: 0 | AQ41: 219.99 | AU41: 175.99
A42: 0 | B42: 10 | C42: =IF(OR(((M42+M43)<8),F42=O42,F42=N42),C41+1,C41) -> 3 | E42: Artikel 41 | F42: =MIN($P42:BO42) -> 149.99 | G42: =MAX($P42:BO42) -> 174.99 | H42: =MIN($BP42:DC42) -> 0 | I42: =MAX($BP42:DC42) -> 0 | J42: 164.99 | K42: =SUM(L42-(M42+(M43*2))) -> -7 | L42: 6 | M42: 9 | N42: 0 | O42: 0 | T42: 149.99 | AA42: 164.99 | AF42: 159.99 | AM42: 174.99 | AP42: 164.99
A43: 0 | B43: 10 | C43: =IF(OR(((M42+M43)<8),F43=O43,F43=N43),C42+1,C42) -> 3 | E43: Artikel 42 | F43: =MIN($P43:BO43) -> 210.99 | G43: =MAX($P43:BO43) -> 219.99 | H43: =MIN($BP43:DC43) -> 0 | I43: =MAX($BP43:DC43) -> 0 | J43: 210.99 | K43: =IF(M42=2,0,(L43-M43)) -> 0 | L43: 2 | M43: 2 | N43: 0 | O43: 0 | Q43: 219.99 | W43: 219.99 | AI43: 219.99 | AO43: 219.99 | AT43: 219.99 | AX43: 210.99
A44: 0 | B44: 10 | C44: =IF(OR(K44>0,F44=O44,F44=N44),C43+1,C43) -> 3 | E44: Artikel 43 | F44: =MIN($P44:BO44) -> 199.99 | G44: =MAX($P44:BO44) -> 259.99 | H44: =MIN($BP44:DC44) -> 0 | I44: =MAX($BP44:DC44) -> 0 | J44: 216.99 | K44: =SUM(L44-M44) -> 0 | L44: 8 | M44: 8 | N44: 0 | O44: 0 | T44: 199.99 | AQ44: 259.99 | AV44: 220.99 | AY44: 216.99
A45: 0 | B45: 10 | C45: 3 | E45: Artikel 44 | F45: =MIN($P45:BO45) -> 94.99 | G45: =MAX($P45:BO45) -> 94.99 | H45: =MIN($BP45:DC45) -> 0 | I45: =MAX($BP45:DC45) -> 0 | J45: 94.99 | K45: 0 | L45: 4 | M45: 4 | N45: 0 | O45: 0 | AP45: 94.99
A46: 0 | B46: 10 | C46: 3 | E46: Artikel 45 | F46: =MIN($P46:BO46) -> 71.49 | G46: =MAX($P46:BO46) -> 89.99 | H46: =MIN($BP46:DC46) -> 0 | I46: =MAX($BP46:DC46) -> 0 | J46: 71.49 | K46: 0 | L46: 8 | M46: 8 | N46: 0 | O46: 0 | AP46: 89.99 | AY46: 71.49
A47: 0 | B47: 10 | C47: 3 | E47: Artikel 46 | F47: =MIN($P47:BO47) -> 299.99 | G47: =MAX($P47:BO47) -> 449.99 | H47: =MIN($BP47:DC47) -> 0 | I47: =MAX($BP47:DC47) -> 0 | J47: 399.99 | K47: 0 | L47: 6 | M47: 6 | N47: =INDEX(P47:ZC47,MATCH(N$1,P$1:ZC$1,0)) -> 0 | O47: 0 | T47: 359.99 | AB47: 399.99 | AF47: 299.99 | AO47: 449.99 | AP47: 399.99 | AY47: 399.99
A48: 0 | B48: 10 | C48: =C47 -> 3 | E48: Artikel 47 | F48: =MIN($P48:BO48) -> 0 | G48: =MAX($P48:BO48) -> 0 | H48: =MIN($BP48:DC48) -> 0 | I48: =MAX($BP48:DC48) -> 0 | J48: 0 | K48: =SUM(L48-M48) -> 2 | L48: 2 | N48: 0 | O48: 0
A49: 0 | B49: 10 | C49: 3 | E49: Artikel 48 | F49: =MIN($P49:BO49) -> 22.99 | G49: =MAX($P49:BO49) -> 26.99 | H49: =MIN($BP49:DC49) -> 0 | I49: =MAX($BP49:DC49) -> 0 | J49: 26.99 | K49: 0 | L49: 10 | M49: 10 | N49: 0 | O49: 0 | S49: 22.99 | AK49: 26.99
A50: =IF(K50>0,A49+1,A49) -> 1 | B50: =B49 -> 10 | C50: =C49 -> 3 | E50: Artikel 49 | F50: =MIN($P50:BO50) -> 330 | G50: =MAX($P50:BO50) -> 330 | H50: =MIN($BP50:DC50) -> 0 | I50: =MAX($BP50:DC50) -> 0 | J50: 330 | K50: 8 | L50: 10 | M50: 2 | N50: 0 | O50: 0 | P50: 330
A51: =A50 -> 1 | B51: 10 | C51: 3 | E51: Artikel 50 | F51: =MIN($P51:BO51) -> 239.99 | G51: =MAX($P51:BO51) -> 271.99 | H51: =MIN($BP51:DC51) -> 0 | I51: =MAX($BP51:DC51) -> 0 | J51: 239.99 | K51: -1 | L51: 6 | M51: 7 | N51: 0 | O51: 0 | W51: 249.99 | AC51: 239.99 | AS51: 271.99 | AT51: 239.99
A52: =A51 -> 1 | B52: 10 | C52: 3 | E52: Artikel 51 | F52: =MIN($P52:BO52) -> 84.99 | G52: =MAX($P52:BO52) -> 108.99 | H52: =MIN($BP52:DC52) -> 0 | I52: =MAX($BP52:DC52) -> 0 | J52: 84.99 | K52: -2 | L52: 5 | M52: 7 | N52: 0 | O52: 0 | AO52: 108.99 | AY52: 84.99
A53: 1 | B53: 10 | C53: =C52 -> 3 | E53: Artikel 52 | F53: =MIN($P53:BO53) -> 124.99 | G53: =MAX($P53:BO53) -> 159.99 | H53: =MIN($BP53:DC53) -> 0 | I53: =MAX($BP53:DC53) -> 0 | J53: 124.99 | K53: 2 | L53: 2 | N53: 0 | O53: 0 | AR53: 159.99 | AS53: 124.99
A54: 1 | B54: 10 | C54: =C53 -> 3 | E54: Artikel 53 | F54: =MIN($P54:BO54) -> 239.99 | G54: =MAX($P54:BO54) -> 299.99 | H54: =MIN($BP54:DC54) -> 0 | I54: =MAX($BP54:DC54) -> 0 | J54: 239.99 | K54: 1 | L54: 1 | N54: 0 | O54: 0 | AI54: 299.99 | AR54: 299.99 | AU54: 299.99 | AV54: 239.99
A55: 1 | B55: 10 | C55: =IF(OR(K55>0,F55=O55,F55=N55),C54+1,C54) -> 3 | E55: Artikel 54 | F55: =MIN($P55:BO55) -> 179.99 | G55: =MAX($P55:BO55) -> 399.99 | H55: =MIN($BP55:DC55) -> 0 | I55: =MAX($BP55:DC55) -> 0 | J55: 399.99 | K55: 0 | L55: 1 | M55: 1 | N55: 0 | O55: =INDEX(Q55:ZD55,MATCH(O$1,Q$1:ZD$1,0)) -> 0 | AP55: 179.99 | AX55: 399.99
A56: =IF(K56>0,A55+1,A55) -> 2 | B56: 10 | C56: =C55 -> 3 | E56: Artikel 55 | F56: =MIN($P56:BO56) -> 100 | G56: =MAX($P56:BO56) -> 200 | H56: =MIN($BP56:DC56) -> 0 | I56: =MAX($BP56:DC56) -> 0 | J56: 150 | K56: 1 | L56: 12 | M56: 11 | N56: 0 | O56: 0 | AB56: 100 | AP56: 200 | AV56: 150
A57: 2 | B57: 10 | C57: 3 | E57: Artikel 56 | F57: =MIN($P57:BO57) -> 42.49 | G57: =MAX($P57:BO57) -> 49.99 | H57: =MIN($BP57:DC57) -> 0 | I57: =MAX($BP57:DC57) -> 0 | J57: 42.49 | K57: 0 | L57: 5 | M57: 5 | N57: 0 | O57: 0 | AK57: 49.99 | AM57: 42.49
A58: 2 | B58: 10 | C58: 3 | E58: Artikel 57 | F58: =MIN($P58:BO58) -> 58.49 | G58: =MAX($P58:BO58) -> 89.99 | H58: =MIN($BP58:DC58) -> 0 | I58: =MAX($BP58:DC58) -> 0 | J58: 58.49 | K58: 0 | L58: 2 | M58: 2 | N58: 0 | O58: 0 | AK58: 89.99 | AY58: 58.49
A59: 2 | B59: 10 | C59: =IF(OR(((M59+M60)<2),F59=O59,F59=N59),C58+1,C58) -> 3 | E59: Artikel 58 | F59: =MIN($P59:BO59) -> 189.99 | G59: =MAX($P59:BO59) -> 189.99 | H59: =MIN($BP59:DC59) -> 0 | I59: =MAX($BP59:DC59) -> 0 | J59: 189.99 | K59: =SUM((L59+L60)-(M59+M60)) -> 0 | L59: 1 | M59: 1 | N59: 0 | O59: 0 | AQ59: 189.99
A60: 2 | B60: 10 | C60: =IF(OR(((M59+M60)<2),F60=O60,F60=N60),C59+1,C59) -> 3 | E60: Artikel 59 | F60: =MIN($P60:BO60) -> 179.99 | G60: =MAX($P60:BO60) -> 219.99 | H60: =MIN($BP60:DC60) -> 0 | I60: =MAX($BP60:DC60) -> 0 | J60: 219.99 | K60: =SUM((L59+L60)-(M59+M60)) -> 0 | L60: 1 | M60: 1 | N60: 0 | O60: 0 | Y60: 209.99 | AI60: 179.99 | AO60: 184.61 | AS60: 192.49 | AV60: 219.99
A61: =IF(K61>0,A60+1,A60) -> 2 | B61: 10 | C61: =C60 -> 3 | E61: Artikel 60 | F61: =MIN($P61:BO61) -> 0 | G61: =MAX($P61:BO61) -> 0 | H61: =MIN($BP61:DC61) -> 0 | I61: =MAX($BP61:DC61) -> 0 | J61: 0 | K61: =SUM(L61-M61) -> 0 | L61: 1 | M61: 1 | N61: 0 | O61: 0
A62: =A61 -> 2 | B62: 10 | C62: =IF(OR(K62>0,F62=O62,F62=N62),C61+1,C61) -> 3 | E62: Artikel 61 | F62: =MIN($P62:BO62) -> 109.99 | G62: =MAX($P62:BO62) -> 109.99 | H62: =MIN($BP62:DC62) -> 0 | I62: =MAX($BP62:DC62) -> 0 | J62: 109.99 | K62: =SUM(L62-M62) -> -3 | L62: 1 | M62: 4 | N62: 0 | O62: 0 | AP62: 109.99
A63: 2 | B63: 10 | C63: 3 | E63: Artikel 62 | F63: =MIN($P63:BO63) -> 64.99 | G63: =MAX($P63:BO63) -> 86.99 | H63: =MIN($BP63:DC63) -> 0 | I63: =MAX($BP63:DC63) -> 0 | J63: 66.94 | K63: =SUM(L63-M63) -> 0 | L63: 8 | M63: 8 | N63: 0 | O63: 0 | AI63: 64.99 | AQ63: 86.99 | AR63: 86.99 | AY63: 66.94
A64: 2 | B64: 10 | C64: =IF(OR(((M64+M65)<8),F64=O64,F64=N64),C63+1,C63) -> 4 | E64: Artikel 63 | F64: =MIN($P64:BO64) -> 149.99 | G64: =MAX($P64:BO64) -> 169.99 | H64: =MIN($BP64:DC64) -> 0 | I64: =MAX($BP64:DC64) -> 0 | J64: 149.99 | K64: =SUM((L64+L65)-(M64+M65)) -> 3 | L64: 6 | M64: 4 | N64: 0 | O64: 0 | S64: 169.99 | X64: 164.99 | AF64: 149.99 | AK64: 149.99 | AM64: 149.99
A65: 2 | B65: 10 | C65: =IF(OR(((M64+M65)<8),F65=O65,F65=N65),C64+1,C64) -> 5 | E65: Artikel 64 | F65: =MIN($P65:BO65) -> 179.99 | G65: =MAX($P65:BO65) -> 239.99 | H65: =MIN($BP65:DC65) -> 0 | I65: =MAX($BP65:DC65) -> 0 | J65: 209.99 | K65: =SUM((L64+L65)-(M64+M65)) -> 3 | L65: 2 | M65: 1 | N65: 0 | O65: 0 | S65: 209.99 | AA65: 209.99 | AI65: 179.99 | AU65: 239.99 | AY65: 209.99
A66: 2 | B66: =IF(OR(K66>0,F66=N66),B65+1,B65) -> 11 | C66: =IF(OR(F66=O66,F66=N66),C65+1,C65) -> 5 | E66: Artikel 65 | F66: =MIN($P66:BO66) -> 54.99 | G66: =MAX($P66:BO66) -> 79.99 | H66: =MIN($BP66:DC66) -> 0 | I66: =MAX($BP66:DC66) -> 0 | J66: 54.99 | K66: =SUM(L66-M66) -> 1 | L66: 1 | N66: 0 | O66: 0 | P66: 79.99 | AA66: 54.99 | AC66: 79.99 | AF66: 59.99 | AI66: 59.99 | AO66: 54.99
A67: 2 | B67: 12 | C67: =IF(OR(F67=O67,F67=N67),C66+1,C66) -> 5 | E67: Artikel 66 | F67: =MIN($P67:BO67) -> 59.99 | G67: =MAX($P67:BO67) -> 259.99 | H67: =MIN($BP67:DC67) -> 0 | I67: =MAX($BP67:DC67) -> 0 | J67: 59.99 | K67: =SUM(L67-M67) -> 3 | L67: 3 | N67: 0 | O67: 0 | AD67: 259.99 | AG67: 139.99 | AJ67: 79.99 | AM67: 89.99 | AN67: 69.99 | AO67: 69.99 | AQ67: 59.99
A68: 2 | B68: =B67 -> 12 | C68: =IF(OR(K68>0,F68=O68,F68=N68),C67+1,C67) -> 5 | E68: Artikel 67 | F68: =MIN($P68:BO68) -> 49.99 | G68: =MAX($P68:BO68) -> 49.99 | H68: =MIN($BP68:DC68) -> 0 | I68: =MAX($BP68:DC68) -> 0 | J68: 49.99 | K68: =SUM(L68-M68) -> 0 | L68: 20 | M68: 20 | N68: 0 | O68: 0 | AC68: 49.99
A69: 2 | B69: =B68 -> 12 | C69: =IF(OR((M69+M70+M71+M72+M73)<2,F69=O69,F69=N69),C68+1,C68) -> 5 | E69: Artikel 68 | F69: =MIN($P69:BO69) -> 189.99 | G69: =MAX($P69:BO69) -> 309.99 | H69: =MIN($BP69:DC69) -> 0 | I69: =MAX($BP69:DC69) -> 0 | J69: =IFERROR(LOOKUP(100000,P69:DC69),0) -> 309.99 | K69: =SUM((L69+L70+L71+L72+L73)-(M69+M70+M71+M72+M73)) -> 1 | L69: 1 | N69: =INDEX(P69:ZC69,MATCH(N$1,P$1:ZC$1,0)) -> 0 | O69: 0 | Z69: 189.99 | AI69: 199.99 | AO69: 249.99 | AS69: 309.99
A70: 2 | B70: 12 | C70: =IF(OR((M69+M70+M71+M72+M73)<2,F70=O70,F70=N70),C69+1,C69) -> 5 | E70: Artikel 69 | F70: =MIN($P70:BO70) -> 234.99 | G70: =MAX($P70:BO70) -> 234.99 | H70: =MIN($BP70:DC70) -> 0 | I70: =MAX($BP70:DC70) -> 0 | J70: 234.99 | K70: =SUM((L69+L70+L71+L72+L73)-(M69+M70+M71+M72+M73)) -> 1 | L70: 1 | N70: 0 | O70: 0 | Y70: 234.99
A71: 2 | B71: 12 | C71: =IF(OR((M69+M70+M71+M72+M73)<2,F71=O71,F71=N71),C70+1,C70) -> 5 | E71: Artikel 70 | F71: =MIN($P71:BO71) -> 269.99 | G71: =MAX($P71:BO71) -> 279.99 | H71: =MIN($BP71:DC71) -> 0 | I71: =MAX($BP71:DC71) -> 0 | J71: 269.99 | K71: =SUM((L69+L70+L71+L72+L73)-(M69+M70+M71+M72+M73)) -> 1 | L71: 1 | M71: 2 | N71: 0 | O71: 0 | Y71: 279.99 | AE71: 279.99 | AQ71: 269.99 | AU71: 269.99 | AY71: 269.99
A72: 2 | B72: 12 | C72: =IF(OR((M69+M70+M71+M72+M73)<2,F72=O72,F72=N72),C71+1,C71) -> 5 | E72: Artikel 71 | F72: =MIN($P72:BO72) -> 439.99 | G72: =MAX($P72:BO72) -> 439.99 | H72: =MIN($BP72:DC72) -> 0 | I72: =MAX($BP72:DC72) -> 0 | J72: 439.99 | K72: =SUM((L69+L70+L71+L72+L73)-(M69+M70+M71+M72+M73)) -> 1 | L72: 2 | M72: 3 | N72: 0 | O72: 0 | R72: 439.99
A73: 2 | B73: 12 | C73: =IF(OR((M69+M70+M71+M72+M73)<2,F73=O73,F73=N73),C72+1,C72) -> 5 | E73: Artikel 72 | F73: =MIN($P73:BO73) -> 769.99 | G73: =MAX($P73:BO73) -> 769.99 | H73: =MIN($BP73:DC73) -> 0 | I73: =MAX($BP73:DC73) -> 0 | J73: 769.99 | K73: =SUM((L69+L70+L71+L72+L73)-(M69+M70+M71+M72+M73)) -> 1 | L73: 1 | N73: 0 | O73: 0 | AN73: 769.99
A74: =IF(K74>0,A73+1,A73) -> 2 | B74: 12 | C74: =C73 -> 5 | E74: Artikel 73 | F74: =MIN($P74:BO74) -> 0 | G74: =MAX($P74:BO74) -> 0 | H74: =MIN($BP74:DC74) -> 0 | I74: =MAX($BP74:DC74) -> 0 | J74: 0 | K74: =SUM(L74-M74) -> 0 | L74: 2 | M74: 2 | N74: 0 | O74: 0
A75: 2 | B75: 12 | C75: =IF(OR(K75>0,F75=O75,F75=N75),C74+1,C74) -> 6 | E75: Artikel 74 | F75: =MIN($P75:BO75) -> 314.99 | G75: =MAX($P75:BO75) -> 369.99 | H75: =MIN($BP75:DC75) -> 0 | I75: =MAX($BP75:DC75) -> 0 | J75: 369.99 | K75: 2 | L75: 4 | M75: 2 | N75: 0 | O75: 0 | X75: 314.99 | Z75: 339.99 | AD75: 339.99 | AG75: 339.99 | AQ75: 369.99
A76: =IF(K76>0,A75+1,A75) -> 2 | B76: 12 | C76: =C75 -> 6 | E76: Artikel 75 | F76: =MIN($P76:BO76) -> 200 | G76: =MAX($P76:BO76) -> 200 | H76: =MIN($BP76:DC76) -> 0 | I76: =MAX($BP76:DC76) -> 0 | J76: 200 | K76: 0 | L76: 1 | M76: 1 | N76: 0 | O76: 0 | AT76: 200
A77: =A76 -> 2 | B77: 12 | C77: =IF(OR(K77>0,F77=O77,F77=N77),C76+1,C76) -> 6 | E77: Artikel 76 | F77: =MIN($P77:BO77) -> 469.99 | G77: =MAX($P77:BO77) -> 499.16 | H77: =MIN($BP77:DC77) -> 0 | I77: =MAX($BP77:DC77) -> 0 | J77: 499.16 | K77: =IF(M77<1,12,IF(M77<4,11,IF(M77<7,10,IF(M77<10,9,IF(M77<13,8,IF(M77<16,7,IF(M77<19,6,IF(M77<22,5,IF(M77<25,4,IF(M77<28,3,IF(M77<31,2,IF(M77<34,1,0)))))))))))) -> 0 | L77: 33 | M77: 34 | N77: 0 | O77: 0 | V77: 469.99 | AI77: 499.16 | AO77: 499.16
A78: 2 | B78: 12 | C78: =IF(OR(K78>0,F78=O78,F78=N78),C77+1,C77) -> 6 | E78: Artikel 77 | F78: =MIN($P78:BO78) -> 119.99 | G78: =MAX($P78:BO78) -> 159.99 | H78: =MIN($BP78:DC78) -> 0 | I78: =MAX($BP78:DC78) -> 0 | J78: 139.99 | K78: 0 | L78: 9 | M78: 9 | N78: 0 | O78: 0 | S78: 139.99 | U78: 119.99 | X78: 139.99 | AL78: 139.99 | AN78: 159.99 | AQ78: 119.99 | AW78: 159.99 | AX78: 139.99
A79: =IF(K79>0,A78+1,A78) -> 2 | B79: 12 | C79: 6 | E79: Artikel 78 | F79: =MIN($P79:BO79) -> 659.99 | G79: =MAX($P79:BO79) -> 799.99 | H79: =MIN($BP79:DC79) -> 0 | I79: =MAX($BP79:DC79) -> 0 | J79: 799.99 | K79: 0 | L79: 1 | M79: 1 | N79: 0 | O79: 0 | W79: 659.99 | AQ79: 799.99
A80: 2 | B80: =IF(OR(K80>0,F80=N80),B79+1,B79) -> 13 | C80: =IF(OR(F80=O80,F80=N80),C79+1,C79) -> 6 | E80: Artikel 79 | F80: =MIN($P80:BO80) -> 79.99 | G80: =MAX($P80:BO80) -> 199.99 | H80: =MIN($BP80:DC80) -> 0 | I80: =MAX($BP80:DC80) -> 0 | J80: 79.99 | K80: 1 | L80: 1 | N80: 0 | O80: 0 | AM80: 199.99 | AN80: 159.99 | AO80: 149.99 | AP80: 99.99 | AU80: 79.99
A81: 2 | B81: =B80 -> 13 | C81: =C80 -> 6 | E81: Artikel 80 | F81: =MIN($P81:BO81) -> 359.99 | G81: =MAX($P81:BO81) -> 519.99 | H81: =MIN($BP81:DC81) -> 0 | I81: =MAX($BP81:DC81) -> 0 | J81: 519.99 | K81: =SUM(L81-M81) -> -5 | L81: 1 | M81: 6 | N81: =INDEX(P81:ZC81,MATCH(N$1,P$1:ZC$1,0)) -> 0 | O81: 519.99 | T81: 399.99 | AY81: 359.99 | AZ81: 519.99
A82: 2 | B82: =B81 -> 13 | C82: =C81 -> 6 | E82: Artikel 81 | F82: =MIN($P82:BO82) -> 219.99 | G82: =MAX($P82:BO82) -> 219.99 | H82: =MIN($BP82:DC82) -> 0 | I82: =MAX($BP82:DC82) -> 0 | J82: 219.99 | K82: =SUM(L82-M82) -> 0 | L82: 1 | M82: 1 | N82: 0 | O82: 219.99 | AZ82: 219.99
A83: =A82 -> 2 | B83: =B82 -> 13 | C83: =IF(OR(M81<3,F83=O83,F83=N83),C82+1,C82) -> 6 | E83: Artikel 82 | F83: =MIN($P83:BO83) -> 178.99 | G83: =MAX($P83:BO83) -> 219.99 | H83: =MIN($BP83:DC83) -> 0 | I83: =MAX($BP83:DC83) -> 0 | J83: 219.99 | K83: 4 | L83: 4 | N83: 219.99 | O83: 0 | S83: 199.99 | X83: 199.99 | AB83: 189.99 | AF83: 178.99 | AJ83: 199.99 | AN83: 189.99 | AR83: 199.99 | AW83: 198.99 | AY83: 219.99 | BA83: 219.99
A84: =IF(K84>0,A83+1,A83) -> 2 | B84: =B83 -> 13 | C84: =C83 -> 6 | E84: Artikel 83 | F84: =MIN($P84:BO84) -> 130 | G84: =MAX($P84:BO84) -> 130 | H84: =MIN($BP84:DC84) -> 0 | I84: =MAX($BP84:DC84) -> 0 | J84: 130 | K84: 0 | L84: 15 | M84: 15 | N84: 0 | O84: 0 | P84: 130
A85: =A84 -> 2 | B85: 13 | C85: =IF(OR(K85>0,F85=O85,F85=N85),C84+1,C84) -> 7 | E85: Artikel 84 | F85: =MIN($P85:BO85) -> 149.99 | G85: =MAX($P85:BO85) -> 165.74 | H85: =MIN($BP85:DC85) -> 0 | I85: =MAX($BP85:DC85) -> 0 | J85: 165.74 | K85: 5 | L85: 12 | M85: 7 | N85: 0 | O85: 0 | U85: 155.99 | X85: 154.99 | AD85: 149.99 | AH85: 154.99 | AO85: 149.99 | AQ85: 149.99 | AW85: 154.99 | AY85: 165.74
A86: =IF(K86>0,A85+1,A85) -> 2 | B86: 13 | C86: =C85 -> 7 | E86: Artikel 85 | F86: =MIN($P86:BO86) -> 179.99 | G86: =MAX($P86:BO86) -> 179.99 | H86: =MIN($BP86:DC86) -> 0 | I86: =MAX($BP86:DC86) -> 0 | J86: 179.99 | K86: 0 | L86: 10 | M86: 10 | N86: 0 | O86: 0 | P86: 179.99
A87: =A86 -> 2 | B87: 13 | C87: =C86 -> 7 | E87: Artikel 86 | F87: =MIN($P87:BO87) -> 24.99 | G87: =MAX($P87:BO87) -> 24.99 | H87: =MIN($BP87:DC87) -> 0 | I87: =MAX($BP87:DC87) -> 0 | J87: 24.99 | K87: 1 | L87: 1 | N87: 0 | O87: 0 | AU87: 24.99
A88: 2 | B88: 13 | C88: =C87 -> 7 | E88: Artikel 87 | F88: =MIN($P88:BO88) -> 0 | G88: =MAX($P88:BO88) -> 0 | H88: =MIN($BP88:DC88) -> 0 | I88: =MAX($BP88:DC88) -> 0 | J88: 0 | K88: 1 | L88: 1 | N88: 0 | O88: 0
A89: 2 | B89: 13 | C89: =IF(OR((M89+M90+M91+M92)<3,F89=O89,F89=N89),C88+1,C88) -> 8 | E89: Artikel 88 | F89: =MIN($P89:BO89) -> 89.99 | G89: =MAX($P89:BO89) -> 119.99 | H89: =MIN($BP89:DC89) -> 0 | I89: =MAX($BP89:DC89) -> 0 | J89: 89.99 | K89: =SUM(L89-(M89+M90+M91+M92)) -> 12 | L89: 12 | N89: =INDEX(P89:ZC89,MATCH(N$1,P$1:ZC$1,0)) -> 0 | O89: =INDEX(Q89:ZD89,MATCH(O$1,Q$1:ZD$1,0)) -> 0 | P89: 94.99 | U89: 119.99 | Z89: 89.99 | AK89: 89.99
A90: 2 | B90: 13 | C90: =IF(OR((M89+M90+M91+M92)<3,F90=O90,F90=N90),C89+1,C89) -> 9 | E90: Artikel 89 | F90: =MIN($P90:BO90) -> 119.99 | G90: =MAX($P90:BO90) -> 179.99 | H90: =MIN($BP90:DC90) -> 0 | I90: =MAX($BP90:DC90) -> 0 | J90: 129.99 | K90: =SUM(L90-(M89+M90+M91+M92)) -> 6 | L90: 6 | N90: 0 | O90: 0 | Q90: 179.99 | AD90: 151.37 | AG90: 119.99 | AN90: 129.99
A91: 2 | B91: 13 | C91: =IF(OR((M89+M90+M91+M92)<3,F91=O91,F91=N91),C90+1,C90) -> 10 | E91: Artikel 90 | F91: =MIN($P91:BO91) -> 224.99 | G91: =MAX($P91:BO91) -> 224.99 | H91: =MIN($BP91:DC91) -> 0 | I91: =MAX($BP91:DC91) -> 0 | J91: =IFERROR(LOOKUP(100000,P91:DC91),0) -> 224.99 | K91: =SUM(L91-(M89+M90+M91+M92)) -> 6 | L91: 6 | N91: 0 | O91: 224.99 | AZ91: 224.99
A92: 2 | B92: 13 | C92: =IF(OR((M89+M90+M91+M92)<3,F92=O92,F92=N92),C91+1,C91) -> 11 | E92: Artikel 91 | F92: =MIN($P92:BO92) -> 186.66 | G92: =MAX($P92:BO92) -> 186.66 | H92: =MIN($BP92:DC92) -> 0 | I92: =MAX($BP92:DC92) -> 0 | J92: =IFERROR(LOOKUP(100000,P92:DC92),0) -> 186.66 | K92: =SUM(L92-(M89+M90+M91+M92)) -> 6 | L92: 6 | N92: 186.66 | O92: 0 | BA92: 186.66
A93: =IF(K93>0,A92+1,A92) -> 3 | B93: 13 | C93: =C92 -> 11 | E93: Artikel 92 | F93: =MIN($P93:BO93) -> 1450 | G93: =MAX($P93:BO93) -> 1999.99 | H93: =MIN($BP93:DC93) -> 0 | I93: =MAX($BP93:DC93) -> 0 | J93: 1450 | K93: =SUM(L93-M93) -> 3 | L93: 5 | M93: 2 | N93: 0 | O93: =INDEX(Q93:ZD93,MATCH(O$1,Q$1:ZD$1,0)) -> 0 | X93: 1699.99 | AN93: 1899.99 | AO93: 1999.99 | AP93: 1699.99 | AR93: 1450
A94: =A93 -> 3 | B94: =IF(OR(K94>0,F94=N94),B93+1,B93) -> 13 | C94: =IF(OR(K94>0,F94=O94,F94=N94),C93+1,C93) -> 12 | E94: Artikel 93 | F94: =MIN($P94:BO94) -> 59.99 | G94: =MAX($P94:BO94) -> 99.99 | H94: =MIN($BP94:DC94) -> 0 | I94: =MAX($BP94:DC94) -> 0 | J94: 59.99 | K94: =SUM(L94-M94) -> 0 | L94: 5 | M94: 5 | N94: 0 | O94: 59.99 | P94: 84.99 | U94: 59.99 | W94: 59.99 | Z94: 89.99 | AA94: 99.99 | AC94: 64.99 | AD94: 99.99 | AG94: 59.99 | AN94: 99.99 | AO94: 89.99 | AQ94: 79.99 | AT94: 69.99 | AW94: 64.99 | AX94: 64.99 | AZ94: 59.99
A95: =A94 -> 3 | B95: =B94 -> 13 | C95: =IF(OR(((M95+M96)<6),F95=O95,F95=N95),C94+1,C94) -> 13 | E95: Artikel 94 | F95: =MIN($P95:BO95) -> 369.99 | G95: =MAX($P95:BO95) -> 475.99 | H95: =MIN($BP95:DC95) -> 0 | I95: =MAX($BP95:DC95) -> 0 | J95: 475.99 | K95: =SUM((L95+L96)-(M95+M96)) -> 6 | L95: 6 | M95: 1 | N95: 0 | O95: 0 | S95: 399.99 | AA95: 369.99 | AF95: 379.99 | AQ95: 419.99 | AR95: 475.99
A96: 3 | B96: =B95 -> 13 | C96: =IF(OR(((M95+M96)<6),F96=O96,F96=N96),C95+1,C95) -> 14 | E96: Artikel 95 | F96: =MIN($P96:BO96) -> 619.99 | G96: =MAX($P96:BO96) -> 619.99 | H96: =MIN($BP96:DC96) -> 0 | I96: =MAX($BP96:DC96) -> 0 | J96: 619.99 | K96: =SUM((L95+L96)-(M95+M96)) -> 6 | L96: 1 | N96: 0 | O96: 0 | AI96: 619.99
A97: =IF(K97>0,A96+1,A96) -> 4 | B97: =B95 -> 13 | C97: =C96 -> 14 | E97: Artikel 96 | F97: =MIN($P97:BO97) -> 350 | G97: =MAX($P97:BO97) -> 350 | H97: =MIN($BP97:DC97) -> 0 | I97: =MAX($BP97:DC97) -> 0 | J97: 350 | K97: =SUM(L97-M97) -> 2 | L97: 2 | N97: 0 | O97: 0 | P97: 350
A98: =A97 -> 4 | B98: =B97 -> 13 | C98: =IF(OR(K98>0,F98=O98,F98=N98),C97+1,C97) -> 14 | E98: Artikel 97 | F98: =MIN($P98:BO98) -> 134.99 | G98: =MAX($P98:BO98) -> 189.99 | H98: =MIN($BP98:DC98) -> 0 | I98: =MAX($BP98:DC98) -> 0 | J98: 134.99 | K98: 0 | L98: 10 | M98: 10 | N98: 0 | O98: 0 | AB98: 189.99 | AO98: 151.99 | AT98: 189.99 | AW98: 134.99
A99: 4 | B99: =B98 -> 13 | C99: 14 | E99: Artikel 98 | F99: =MIN($P99:BO99) -> 159.99 | G99: =MAX($P99:BO99) -> 199.99 | H99: =MIN($BP99:DC99) -> 0 | I99: =MAX($BP99:DC99) -> 0 | J99: 159.99 | K99: 0 | L99: 10 | M99: 10 | N99: 0 | O99: 0 | AC99: 169.15 | AM99: 199.99 | AS99: 159.99
A100: 4 | B100: =IF(OR(K100>0,F100=N100),B99+1,B99) -> 14 | C100: =C99 -> 14 | E100: Artikel 99 | F100: =MIN($P100:BO100) -> 0 | G100: =MAX($P100:BO100) -> 0 | H100: =MIN($BP100:DC100) -> 0 | I100: =MAX($BP100:DC100) -> 0 | J100: =IFERROR(LOOKUP(100000,P100:DC100),0) -> 0 | K100: =SUM(L100-M100) -> 1 | L100: 1 | N100: =INDEX(P100:ZC100,MATCH(N$1,P$1:ZC$1,0)) -> 0 | O100: =INDEX(Q100:ZD100,MATCH(O$1,Q$1:ZD$1,0)) -> 0
A101: 4 | B101: =IF(OR(K101>0,F101=N101),B100+1,B100) -> 14 | C101: =IF(OR(K101>0,F101=O101,F101=N101),C100+1,C100) -> 14 | E101: Artikel 100 | F101: =MIN($P101:BO101) -> 109.99 | G101: =MAX($P101:BO101) -> 159.99 | H101: =MIN($BP101:DC101) -> 0 | I101: =MAX($BP101:DC101) -> 0 | J101: 109.99 | K101: -2 | L101: 2 | M101: 4 | N101: 0 | O101: 0 | Q101: 109.99 | AB101: 109.99 | AP101: 159.99 | AV101: 109.99
A102: 4 | B102: =B101 -> 14 | C102: 14 | E102: Artikel 101 | F102: =MIN($P102:BO102) -> 39.99 | G102: =MAX($P102:BO102) -> 46.99 | H102: =MIN($BP102:DC102) -> 0 | I102: =MAX($BP102:DC102) -> 0 | J102: 46.99 | K102: -6 | L102: 10 | M102: 16 | N102: 0 | O102: 0 | S102: 39.99 | AP102: 46.99
A103: 4 | B103: =IF(OR(K103>0,F103=N103),B102+1,B102) -> 15 | C103: =C102 -> 14 | E103: Artikel 102 | F103: =MIN($P103:BO103) -> 59.99 | G103: =MAX($P103:BO103) -> 59.99 | H103: =MIN($BP103:DC103) -> 0 | I103: =MAX($BP103:DC103) -> 0 | J103: 59.99 | K103: 3 | L103: 3 | N103: =INDEX(P103:ZC103,MATCH(N$1,P$1:ZC$1,0)) -> 0 | O103: 0 | AB103: 59.99
A104: 4 | B104: =B103 -> 15 | C104: =C103 -> 14 | E104: Artikel 103 | F104: =MIN($P104:BO104) -> 0 | G104: =MAX($P104:BO104) -> 0 | H104: =MIN($BP104:DC104) -> 0 | I104: =MAX($BP104:DC104) -> 0 | J104: 0 | K104: =SUM(L104-M104) -> 2 | L104: 2 | N104: =INDEX(P104:ZC104,MATCH(N$1,P$1:ZC$1,0)) -> 0 | O104: 0
A105: 4 | B105: =B104 -> 15 | C105: =IF(OR(K105>0,F105=O105,F105=N105),C104+1,C104) -> 14 | E105: Artikel 104 | F105: =MIN($P105:BO105) -> 55.99 | G105: =MAX($P105:BO105) -> 55.99 | H105: =MIN($BP105:DC105) -> 0 | I105: =MAX($BP105:DC105) -> 0 | J105: 55.99 | K105: -1 | L105: 1 | M105: 2 | N105: 0 | O105: 0 | AP105: 55.99
A106: 4 | B106: =IF(OR(K106>0,F106=N106),B105+1,B105) -> 16 | C106: =C105 -> 14 | E106: Artikel 105 | F106: =MIN($P106:BO106) -> 109.99 | G106: =MAX($P106:BO106) -> 109.99 | H106: =MIN($BP106:DC106) -> 0 | I106: =MAX($BP106:DC106) -> 0 | J106: 109.99 | K106: =SUM(L106-M106) -> 3 | L106: 3 | N106: 0 | O106: 0 | AX106: 109.99
A107: =A106 -> 4 | B107: =B106 -> 16 | C107: =IF(OR(K107>0,F107=O107,F107=N107),C106+1,C106) -> 15 | E107: Artikel 106 | F107: =MIN($P107:BO107) -> 119.99 | G107: =MAX($P107:BO107) -> 159.99 | H107: =MIN($BP107:DC107) -> 0 | I107: =MAX($BP107:DC107) -> 0 | J107: 159.99 | K107: 6 | L107: 10 | M107: 4 | N107: 0 | O107: 0 | T107: 127.99 | AK107: 119.99 | AS107: 127.99 | AV107: 159.99
A108: =A107 -> 4 | B108: =B107 -> 16 | C108: =IF(OR(((M108+M109)<2),F108=O108,F108=N108),C107+1,C107) -> 15 | E108: Artikel 107 | F108: =MIN($P108:BO108) -> 239.99 | G108: =MAX($P108:BO108) -> 319.98 | H108: =MIN($BP108:DC108) -> 0 | I108: =MAX($BP108:DC108) -> 0 | J108: 259.99 | K108: =SUM((L108+L109)-(M108+M109)) -> 0 | L108: 1 | M108: 2 | N108: 0 | O108: 0 | U108: 279.99 | X108: 319.98 | AC108: 239.99 | AX108: 259.99
A109: =A108 -> 4 | B109: 16 | C109: =IF(OR(((M108+M109)<2),F109=O109,F109=N109),C108+1,C108) -> 15 | E109: Artikel 108 | F109: =MIN($P109:BO109) -> 479.99 | G109: =MAX($P109:BO109) -> 599.99 | H109: =MIN($BP109:DC109) -> 0 | I109: =MAX($BP109:DC109) -> 0 | J109: 539.99 | K109: =SUM((L108+L109)-(M108+M109)) -> 0 | L109: 1 | N109: 0 | O109: 0 | Y109: 591.98 | AD109: 599.99 | AE109: 479.99 | AI109: 479.99 | AL109: 539.99 | AO109: 539.99 | AQ109: 539.99
A110: =A109 -> 4 | B110: 16 | C110: =C109 -> 15 | E110: Artikel 109 | F110: =MIN($P110:BO110) -> 109.99 | G110: =MAX($P110:BO110) -> 109.99 | H110: =MIN($BP110:DC110) -> 0 | I110: =MAX($BP110:DC110) -> 0 | J110: 109.99 | K110: =SUM(L110-M110) -> 1 | L110: 1 | N110: 0 | O110: 0 | AE110: 109.99
A111: 4 | B111: 16 | C111: =IF(OR(K111>0,F111=O111,F111=N111),C110+1,C110) -> 15 | E111: Artikel 110 | F111: =MIN($P111:BO111) -> 119.99 | G111: =MAX($P111:BO111) -> 123.99 | H111: =MIN($BP111:DC111) -> 0 | I111: =MAX($BP111:DC111) -> 0 | J111: 123.99 | K111: 0 | L111: 2 | M111: 2 | N111: 0 | O111: 0 | Z111: 119.99 | AO111: 123.99
A112: 4 | B112: 16 | C112: =C111 -> 15 | E112: Artikel 111 | F112: =MIN($P112:BO112) -> 0 | G112: =MAX($P112:BO112) -> 0 | H112: =MIN($BP112:DC112) -> 0 | I112: =MAX($BP112:DC112) -> 0 | J112: 0 | K112: =SUM(L112-M112) -> 2 | L112: 2 | N112: =INDEX(P112:ZC112,MATCH(N$1,P$1:ZC$1,0)) -> 0 | O112: 0
A113: 4 | B113: 16 | C113: =C112 -> 15 | E113: Artikel 112 | F113: =MIN($P113:BO113) -> 0 | G113: =MAX($P113:BO113) -> 0 | H113: =MIN($BP113:DC113) -> 0 | I113: =MAX($BP113:DC113) -> 0 | J113: 0 | K113: =SUM(L113-M113) -> 2 | L113: 2 | N113: 0 | O113: 0
A114: 4 | B114: 16 | C114: =IF(OR(K114>0,F114=O114,F114=N114),C113+1,C113) -> 15 | E114: Artikel 113 | F114: =MIN($P114:BO114) -> 21.67 | G114: =MAX($P114:BO114) -> 39.99 | H114: =MIN($BP114:DC114) -> 0 | I114: =MAX($BP114:DC114) -> 0 | J114: 21.67 | K114: -8 | L114: 20 | M114: 28 | N114: 0 | O114: 0 | AC114: 39.99 | AP114: 31.99 | AX114: 21.67
A115: 4 | B115: 16 | C115: 15 | E115: Artikel 114 | F115: =MIN($P115:BO115) -> 89.99 | G115: =MAX($P115:BO115) -> 89.99 | H115: =MIN($BP115:DC115) -> 0 | I115: =MAX($BP115:DC115) -> 0 | J115: 89.99 | K115: -1 | L115: 2 | M115: 3 | N115: 0 | O115: 0 | AE115: 89.99 | AP115: 89.99
A116: =IF(K116>0,A115+1,A115) -> 4 | B116: =B115 -> 16 | C116: =C115 -> 15 | E116: Artikel 115 | F116: =MIN($P116:BO116) -> 60 | G116: =MAX($P116:BO116) -> 60 | H116: =MIN($BP116:DC116) -> 0 | I116: =MAX($BP116:DC116) -> 0 | J116: 60 | K116: 0 | L116: 12 | M116: 12 | N116: 0 | O116: 0 | AR116: 60
A117: =A116 -> 4 | B117: 16 | C117: =IF(OR(K117>24,F117=O117,F117=N117),C116+1,C116) -> 15 | E117: Artikel 116 | F117: =MIN($P117:BO117) -> 67.99 | G117: =MAX($P117:BO117) -> 67.99 | H117: =MIN($BP117:DC117) -> 0 | I117: =MAX($BP117:DC117) -> 0 | J117: 67.99 | K117: -25 | L117: 25 | M117: 50 | N117: 0 | O117: 0 | AP117: 67.99 | AW117: 67.99
A118: 4 | B118: =IF(OR(K118>0,F118=N118),B117+1,B117) -> 17 | C118: =IF(OR(F118=O118,F118=N118),C117+1,C117) -> 15 | E118: Artikel 117 | F118: =MIN($P118:BO118) -> 139.99 | G118: =MAX($P118:BO118) -> 139.99 | H118: =MIN($BP118:DC118) -> 0 | I118: =MAX($BP118:DC118) -> 0 | J118: 139.99 | K118: 3 | L118: 3 | N118: 0 | O118: 0 | T118: 139.99
A119: 4 | B119: =B118 -> 17 | C119: =IF(OR(K119>0,F119=O119,F119=N119),C118+1,C118) -> 15 | E119: Artikel 118 | F119: =MIN($P119:BO119) -> 119.99 | G119: =MAX($P119:BO119) -> 159.99 | H119: =MIN($BP119:DC119) -> 0 | I119: =MAX($BP119:DC119) -> 0 | J119: 159.99 | K119: -1 | L119: 2 | M119: 3 | N119: 0 | O119: 159.99 | S119: 119.99 | AC119: 149.99 | AP119: 149.99 | AQ119: 119.99 | AZ119: 159.99
A120: 4 | B120: 17 | C120: =C119 -> 15 | E120: Artikel 119 | F120: =MIN($P120:BO120) -> 0 | G120: =MAX($P120:BO120) -> 0 | H120: =MIN($BP120:DC120) -> 0 | I120: =MAX($BP120:DC120) -> 0 | J120: 0 | K120: =SUM(L120-M120) -> 5 | L120: 5 | N120: =INDEX(P120:ZC120,MATCH(N$1,P$1:ZC$1,0)) -> 0 | O120: 0
A121: 4 | B121: 17 | C121: =C120 -> 15 | E121: Artikel 120 | F121: =MIN($P121:BO121) -> 0 | G121: =MAX($P121:BO121) -> 0 | H121: =MIN($BP121:DC121) -> 0 | I121: =MAX($BP121:DC121) -> 0 | J121: 0 | K121: =SUM(L121-M121) -> 1 | L121: 1 | N121: 0 | O121: 0
A122: 4 | B122: 17 | C122: =IF(OR(F122=O122,F122=N122),C121+1,C121) -> 15 | E122: Artikel 121 | F122: =MIN($P122:BO122) -> 44.99 | G122: =MAX($P122:BO122) -> 44.99 | H122: =MIN($BP122:DC122) -> 0 | I122: =MAX($BP122:DC122) -> 0 | J122: 44.99 | K122: -1 | L122: 20 | M122: 21 | N122: 0 | O122: 0 | P122: 44.99 | AE122: 44.99 | AK122: 44.99
A123: 4 | B123: 17 | C123: =IF(OR(F123=O123,F123=N123),C122+1,C122) -> 15 | E123: Artikel 122 | F123: =MIN($P123:BO123) -> 49.99 | G123: =MAX($P123:BO123) -> 49.99 | H123: =MIN($BP123:DC123) -> 0 | I123: =MAX($BP123:DC123) -> 0 | J123: 49.99 | K123: 0 | L123: 20 | M123: 20 | N123: 0 | O123: 0 | S123: 49.99 | W123: 49.99 | AW123: 49.99
A124: 4 | B124: 17 | C124: =IF(OR(((M124+M125)<4),F124=O124,F124=N124),C123+1,C123) -> 15 | E124: Artikel 123 | F124: =MIN($P124:BO124) -> 74.99 | G124: =MAX($P124:BO124) -> 89.99 | H124: =MIN($BP124:DC124) -> 0 | I124: =MAX($BP124:DC124) -> 0 | J124: 89.99 | K124: =SUM((L124+L125)-(M124+M125)) -> 9 | L124: 10 | M124: 1 | N124: 0 | O124: 0 | Y124: 79.99 | AC124: 77.99 | AF124: 79.99 | AN124: 74.99 | AO124: 89.99
A125: 4 | B125: 17 | C125: =IF(OR(((M124+M125)<4),F125=O125,F125=N125),C124+1,C124) -> 15 | E125: Artikel 124 | F125: =MIN($P125:BO125) -> 112.48 | G125: =MAX($P125:BO125) -> 149.99 | H125: =MIN($BP125:DC125) -> 0 | I125: =MAX($BP125:DC125) -> 0 | J125: 114.99 | K125: =SUM((L124+L125)-(M124+M125)) -> 9 | L125: 8 | M125: 8 | N125: 0 | O125: 0 | R125: 149.99 | S125: 124.99 | W125: 119.99 | AA125: 127.48 | AL125: 114.99 | AP125: 114.99 | AW125: 112.48 | AX125: 114.99
A126: 4 | B126: 17 | C126: =C125 -> 15 | E126: Artikel 125 | F126: =MIN($P126:BO126) -> 244.99 | G126: =MAX($P126:BO126) -> 244.99 | H126: =MIN($BP126:DC126) -> 0 | I126: =MAX($BP126:DC126) -> 0 | J126: 244.99 | K126: =SUM(L126-M126) -> 1 | L126: 1 | N126: 0 | O126: 0 | AU126: 244.99
A127: 4 | B127: 17 | C127: =IF(OR(K127>0,F127=O127,F127=N127),C126+1,C126) -> 16 | E127: Artikel 126 | F127: =MIN($P127:BO127) -> 174.95 | G127: =MAX($P127:BO127) -> 189.9 | H127: =MIN($BP127:DC127) -> 0 | I127: =MAX($BP127:DC127) -> 0 | J127: 174.95 | K127: 0 | L127: 4 | M127: 4 | N127: 174.95 | O127: =INDEX(Q127:ZD127,MATCH(O$1,Q$1:ZD$1,0)) -> 0 | U127: 189.9 | AC127: 179.94 | AI127: 179.94 | AO127: 179.94 | AS127: 179.94 | AV127: 179.94 | BA127: 174.95
A128: 4 | B128: =IF(OR(K128>0,F128=N128),B127+1,B127) -> 18 | C128: =IF(OR(F128=O128,F128=N128),C127+1,C127) -> 16 | E128: Artikel 127 | F128: =MIN($P128:BO128) -> 47.99 | G128: =MAX($P128:BO128) -> 74.99 | H128: =MIN($BP128:DC128) -> 0 | I128: =MAX($BP128:DC128) -> 0 | J128: 69.99 | K128: 5 | L128: 5 | N128: 0 | O128: 0 | Q128: 49.99 | S128: 49.99 | Y128: 47.99 | AA128: 54.99 | AC128: 49.99 | AK128: 74.99 | AO128: 59.99 | AV128: 69.99
A129: 4 | B129: 19 | C129: =IF(OR(F129=O129,F129=N129),C128+1,C128) -> 16 | E129: Artikel 128 | F129: =MIN($P129:BO129) -> 119.99 | G129: =MAX($P129:BO129) -> 239.99 | H129: =MIN($BP129:DC129) -> 0 | I129: =MAX($BP129:DC129) -> 0 | J129: 119.99 | K129: 1 | L129: 1 | N129: 0 | O129: 0 | AS129: 239.99 | AU129: 199.99 | AY129: 119.99
A130: 4 | B130: =B129 -> 19 | C130: =C129 -> 16 | E130: Artikel 129 | F130: =MIN($P130:BO130) -> 0 | G130: =MAX($P130:BO130) -> 0 | H130: =MIN($BP130:DC130) -> 0 | I130: =MAX($BP130:DC130) -> 0 | J130: 0 | K130: =SUM(L130-M130) -> 1 | L130: 1 | N130: =INDEX(P130:ZC130,MATCH(N$1,P$1:ZC$1,0)) -> 0 | O130: =INDEX(Q130:ZD130,MATCH(O$1,Q$1:ZD$1,0)) -> 0
A131: =IF(K131>0,A130+1,A130) -> 4 | B131: =B130 -> 19 | C131: =IF(OR(F131=O131,F131=N131),C130+1,C130) -> 16 | E131: Artikel 130 | F131: =MIN($P131:BO131) -> 88.33 | G131: =MAX($P131:BO131) -> 89.99 | H131: =MIN($BP131:DC131) -> 0 | I131: =MAX($BP131:DC131) -> 0 | J131: 88.33 | K131: 0 | L131: 45 | M131: 45 | N131: =INDEX(P131:ZC131,MATCH(N$1,P$1:ZC$1,0)) -> 0 | O131: =INDEX(Q131:ZD131,MATCH(O$1,Q$1:ZD$1,0)) -> 0 | Y131: 89.99 | AC131: 89.99 | AK131: 89.99 | AU131: 89.99 | AV131: 88.33
A132: =A131 -> 4 | B132: =B131 -> 19 | C132: =IF(OR(K132>0,F132=O132,F132=N132),C131+1,C131) -> 16 | E132: Artikel 131 | F132: =MIN($P132:BO132) -> 399.99 | G132: =MAX($P132:BO132) -> 399.99 | H132: =MIN($BP132:DC132) -> 0 | I132: =MAX($BP132:DC132) -> 0 | J132: 399.99 | K132: 0 | L132: 12 | M132: 12 | N132: 0 | O132: 0 | AP132: 399.99
A133: 4 | B133: =IF(OR(K133>0,F133=N133),B132+1,B132) -> 20 | C133: =IF(OR(F133=O133,F133=N133),C132+1,C132) -> 16 | E133: Artikel 132 | F133: =MIN($P133:BO133) -> 79.99 | G133: =MAX($P133:BO133) -> 159.99 | H133: =MIN($BP133:DC133) -> 0 | I133: =MAX($BP133:DC133) -> 0 | J133: 159.99 | K133: 3 | L133: 3 | N133: 0 | O133: 0 | Q133: 99.99 | R133: 99.99 | T133: 89.99 | W133: 89.99 | X133: 79.99 | Y133: 139.99 | AA133: 119.99 | AB133: 109.99 | AC133: 104.99 | AE133: 109.99 | AI133: 119.99 | AX133: 159.99
A134: 4 | B134: =B133 -> 20 | C134: =IF(OR(K134>0,F134=O134,F134=N134),C133+1,C133) -> 16 | E134: Artikel 133 | F134: =MIN($P134:BO134) -> 19.99 | G134: =MAX($P134:BO134) -> 22.99 | H134: =MIN($BP134:DC134) -> 0 | I134: =MAX($BP134:DC134) -> 0 | J134: =IFERROR(LOOKUP(100000,P134:DC134),0) -> 19.99 | K134: 0 | L134: 20 | M134: 20 | N134: 0 | O134: 0 | R134: 22.99 | AO134: 19.99
A135: 4 | B135: =B134 -> 20 | C135: =C134 -> 16 | E135: Artikel 134 | F135: =MIN($P135:BO135) -> 0 | G135: =MAX($P135:BO135) -> 0 | H135: =MIN($BP135:DC135) -> 0 | I135: =MAX($BP135:DC135) -> 0 | J135: 0 | K135: =SUM(L135-M135) -> 3 | L135: 3 | N135: =INDEX(P135:ZC135,MATCH(N$1,P$1:ZC$1,0)) -> 0 | O135: =INDEX(Q135:ZD135,MATCH(O$1,Q$1:ZD$1,0)) -> 0
A136: 4 | B136: =B135 -> 20 | C136: 16 | E136: Artikel 135 | F136: =MIN($P136:BO136) -> 169.99 | G136: =MAX($P136:BO136) -> 219.99 | H136: =MIN($BP136:DC136) -> 0 | I136: =MAX($BP136:DC136) -> 0 | J136: 219.99 | K136: 0 | L136: 8 | M136: 8 | N136: =INDEX(P136:ZC136,MATCH(N$1,P$1:ZC$1,0)) -> 0 | O136: =INDEX(Q136:ZD136,MATCH(O$1,Q$1:ZD$1,0)) -> 0 | S136: 169.99 | AR136: 219.99
A137: 4 | B137: =IF(OR(K137>0,F137=N137),B136+1,B136) -> 21 | C137: =IF(OR(F137=O137,F137=N137),C136+1,C136) -> 16 | E137: Artikel 136 | F137: =MIN($P137:BO137) -> 169.99 | G137: =MAX($P137:BO137) -> 449.99 | H137: =MIN($BP137:DC137) -> 0 | I137: =MAX($BP137:DC137) -> 0 | J137: 169.99 | K137: 2 | L137: 2 | N137: 0 | O137: 0 | AC137: 449.99 | AH137: 329.99 | AK137: 229.99 | AM137: 199.99 | AO137: 169.99
A138: 4 | B138: 22 | C138: =IF(OR(F138=O138,F138=N138),C137+1,C137) -> 16 | E138: Artikel 137 | F138: =MIN($P138:BO138) -> 169.99 | G138: =MAX($P138:BO138) -> 519.99 | H138: =MIN($BP138:DC138) -> 0 | I138: =MAX($BP138:DC138) -> 0 | J138: 169.99 | K138: 2 | L138: 2 | N138: 0 | O138: 0 | T138: 169.99 | AC138: 519.99 | AG138: 369.99 | AI138: 369.99 | AP138: 229.99 | AV138: 299.99 | AY138: 169.99
A139: 4 | B139: 23 | C139: =C138 -> 16 | E139: Artikel 138 | F139: =MIN($P139:BO139) -> 189.99 | G139: =MAX($P139:BO139) -> 249.99 | H139: =MIN($BP139:DC139) -> 0 | I139: =MAX($BP139:DC139) -> 0 | J139: 249.99 | K139: 1 | L139: 1 | N139: 0 | O139: 0 | AA139: 189.99 | AU139: 249.99
A140: 4 | B140: =B139 -> 23 | C140: =IF(OR(K140>0,F140=O140,F140=N140),C139+1,C139) -> 16 | E140: Artikel 139 | F140: =MIN($P140:BO140) -> 134.99 | G140: =MAX($P140:BO140) -> 134.99 | H140: =MIN($BP140:DC140) -> 0 | I140: =MAX($BP140:DC140) -> 0 | J140: 134.99 | K140: -2 | L140: 15 | M140: 17 | N140: 0 | O140: 0 | AE140: 134.99 | AO140: 134.99
A141: 4 | B141: =B140 -> 23 | C141: 16 | E141: Artikel 140 | F141: =MIN($P141:BO141) -> 149.99 | G141: =MAX($P141:BO141) -> 149.99 | H141: =MIN($BP141:DC141) -> 0 | I141: =MAX($BP141:DC141) -> 0 | J141: 149.99 | K141: -1 | L141: 1 | M141: 2 | N141: 0 | O141: 0 | AE141: 149.99
A142: 4 | B142: =IF(OR(K142>0,F142=N142),B141+1,B141) -> 24 | C142: =IF(OR(F142=O142,F142=N142),C141+1,C141) -> 16 | E142: Artikel 141 | F142: =MIN($P142:BO142) -> 79.99 | G142: =MAX($P142:BO142) -> 179.99 | H142: =MIN($BP142:DC142) -> 0 | I142: =MAX($BP142:DC142) -> 0 | J142: 79.99 | K142: 1 | L142: 1 | N142: 0 | O142: 0 | AC142: 179.99 | AH142: 159.99 | AM142: 149.99 | AQ142: 119.99 | AU142: 99.99 | AY142: 79.99
A143: 4 | B143: =B142 -> 24 | C143: =IF(OR((M143+M144+M145+M146)<1,F143=O143,F143=N143),C142+1,C142) -> 17 | E143: Artikel 142 | F143: =MIN($P143:BO143) -> 69.99 | G143: =MAX($P143:BO143) -> 69.99 | H143: =MIN($BP143:DC143) -> 0 | I143: =MAX($BP143:DC143) -> 0 | J143: 69.99 | K143: =SUM((L143+L144)-(M143+M144)) -> 2 | L143: 1 | N143: =INDEX(P143:ZC143,MATCH(N$1,P$1:ZC$1,0)) -> 0 | O143: 0 | AU143: 69.99
A144: 4 | B144: =B143 -> 24 | C144: =IF(OR((M143+M144+M145+M146)<1,F144=O144,F144=N144),C143+1,C143) -> 18 | E144: Artikel 143 | F144: =MIN($P144:BO144) -> 149.99 | G144: =MAX($P144:BO144) -> 149.99 | H144: =MIN($BP144:DC144) -> 0 | I144: =MAX($BP144:DC144) -> 0 | J144: 149.99 | K144: =SUM((L143+L144)-(M143+M144)) -> 2 | L144: 1 | N144: 0 | O144: 0 | AU144: 149.99
A145: 4 | B145: =B144 -> 24 | C145: =IF(OR((M143+M144+M145+M146)<1,F145=O145,F145=N145),C144+1,C144) -> 19 | E145: Artikel 144 | F145: =MIN($P145:BO145) -> 189.99 | G145: =MAX($P145:BO145) -> 249.99 | H145: =MIN($BP145:DC145) -> 0 | I145: =MAX($BP145:DC145) -> 0 | J145: 189.99 | K145: =SUM((L145+L146)-(M145+M146)) -> 1 | L145: 0.5 | N145: 0 | O145: 0 | R145: 249.99 | AH145: 189.99
A146: 4 | B146: =B145 -> 24 | C146: =IF(OR((M143+M144+M145+M146)<1,F146=O146,F146=N146),C145+1,C145) -> 20 | E146: Artikel 145 | F146: =MIN($P146:BO146) -> 274.27 | G146: =MAX($P146:BO146) -> 299.99 | H146: =MIN($BP146:DC146) -> 0 | I146: =MAX($BP146:DC146) -> 0 | J146: 299.99 | K146: =SUM((L145+L146)-(M145+M146)) -> 1 | L146: 0.5 | N146: 0 | O146: 0 | Q146: 283.41 | AA146: 283.41 | AT146: 274.27 | AX146: 299.99
A147: 4 | B147: =B146 -> 24 | C147: =IF(OR(K147>0,F147=O147,F147=N147),C146+1,C146) -> 20 | E147: Artikel 146 | F147: =MIN($P147:BO147) -> 149.99 | G147: =MAX($P147:BO147) -> 179.99 | H147: =MIN($BP147:DC147) -> 0 | I147: =MAX($BP147:DC147) -> 0 | J147: 149.99 | K147: =SUM(L147-M147) -> 0 | L147: 1 | M147: 1 | N147: 0 | O147: 0 | AK147: 179.99 | AY147: 149.99
A148: 4 | B148: =IF(OR(K148>0,F148=N148),B147+1,B147) -> 25 | C148: =C147 -> 20 | E148: Artikel 147 | F148: =MIN($P148:BO148) -> 15.99 | G148: =MAX($P148:BO148) -> 29.99 | H148: =MIN($BP148:DC148) -> 0 | I148: =MAX($BP148:DC148) -> 0 | J148: 17.99 | K148: 1 | L148: 1 | N148: 0 | O148: 17.99 | P148: 29.99 | AI148: 19.99 | AU148: 19.99 | AW148: 15.99 | AZ148: 17.99
A149: 4 | B149: 26 | C149: =C148 -> 20 | E149: Artikel 148 | F149: =MIN($P149:BO149) -> 99.99 | G149: =MAX($P149:BO149) -> 99.99 | H149: =MIN($BP149:DC149) -> 0 | I149: =MAX($BP149:DC149) -> 0 | J149: 99.99 | K149: 1 | L149: 1 | N149: 0 | O149: 0 | S149: 99.99 | AK149: 99.99
A150: 4 | B150: =B149 -> 26 | C150: =C149 -> 20 | E150: Artikel 149 | F150: =MIN($P150:BO150) -> 0 | G150: =MAX($P150:BO150) -> 0 | H150: =MIN($BP150:DC150) -> 0 | I150: =MAX($BP150:DC150) -> 0 | J150: 0 | K150: =SUM(L150-M150) -> 3 | L150: 3 | N150: =INDEX(P150:ZC150,MATCH(N$1,P$1:ZC$1,0)) -> 0 | O150: 0
A151: 4 | B151: =B150 -> 26 | C151: =IF(OR(K151>0,F151=O151,F151=N151),C150+1,C150) -> 20 | E151: Artikel 150 | F151: =MIN($P151:BO151) -> 146.62 | G151: =MAX($P151:BO151) -> 199.99 | H151: =MIN($BP151:DC151) -> 0 | I151: =MAX($BP151:DC151) -> 0 | J151: 146.62 | K151: -3 | L151: 5 | M151: 8 | N151: 0 | O151: 0 | AM151: 199.99 | AN151: 169.99 | AX151: 146.62
A152: 4 | B152: =IF(OR(K152>0,F152=N152),B151+1,B151) -> 27 | C152: =IF(OR(F152=O152,F152=N152),C151+1,C151) -> 20 | E152: Artikel 151 | F152: =MIN($P152:BO152) -> 112.49 | G152: =MAX($P152:BO152) -> 219.99 | H152: =MIN($BP152:DC152) -> 0 | I152: =MAX($BP152:DC152) -> 0 | J152: 219.99 | K152: 1 | L152: 1 | N152: 0 | O152: 0 | AK152: 159.99 | AO152: 219.99 | AP152: 219.99 | AQ152: 112.49 | AS152: 219.99
A153: 4 | B153: 28 | C153: =C152 -> 20 | E153: Artikel 152 | F153: =MIN($P153:BO153) -> 169.99 | G153: =MAX($P153:BO153) -> 169.99 | H153: =MIN($BP153:DC153) -> 0 | I153: =MAX($BP153:DC153) -> 0 | J153: 169.99 | K153: 1 | L153: 1 | N153: 0 | O153: 0 | AW153: 169.99 | AX153: 169.99
A154: 4 | B154: =B153 -> 28 | C154: =IF(OR(K154>0,F154=O154,F154=N154),C153+1,C153) -> 20 | E154: Artikel 153 | F154: =MIN($P154:BO154) -> 229.99 | G154: =MAX($P154:BO154) -> 229.99 | H154: =MIN($BP154:DC154) -> 0 | I154: =MAX($BP154:DC154) -> 0 | J154: 229.99 | K154: 0 | L154: 8 | M154: 8 | N154: 0 | O154: 0 | AP154: 229.99
A155: =IF(K155>0,A154+1,A154) -> 4 | B155: 28 | C155: =C154 -> 20 | E155: Artikel 154 | F155: =MIN($P155:BO155) -> 0 | G155: =MAX($P155:BO155) -> 0 | H155: =MIN($BP155:DC155) -> 0 | I155: =MAX($BP155:DC155) -> 0 | J155: 0 | K155: 0 | L155: 2 | M155: 2 | N155: 0 | O155: 0
A156: =A155 -> 4 | B156: 28 | C156: =IF(OR(((M156+M157)<2),F156=O156,F156=N156),C155+1,C155) -> 20 | E156: Artikel 155 | F156: =MIN($P156:BO156) -> 194.99 | G156: =MAX($P156:BO156) -> 209.99 | H156: =MIN($BP156:DC156) -> 0 | I156: =MAX($BP156:DC156) -> 0 | J156: 209.99 | K156: =SUM((L156+L157)-(M156+M157)) -> 0 | L156: 1 | M156: 1 | N156: 0 | O156: 0 | T156: 194.99 | AD156: 199.99 | AI156: 199.99 | AM156: 199.99 | AS156: 209.99 | AX156: 209.99
A157: =A156 -> 4 | B157: 28 | C157: =IF(OR(((M156+M157)<2),F157=O157,F157=N157),C156+1,C156) -> 20 | E157: Artikel 156 | F157: =MIN($P157:BO157) -> 229.99 | G157: =MAX($P157:BO157) -> 229.99 | H157: =MIN($BP157:DC157) -> 0 | I157: =MAX($BP157:DC157) -> 0 | J157: =IFERROR(LOOKUP(100000,P157:DC157),0) -> 229.99 | K157: =SUM((L156+L157)-(M156+M157)) -> 0 | L157: 1 | M157: 1 | N157: =INDEX(P157:ZC157,MATCH(N$1,P$1:ZC$1,0)) -> 0 | O157: =INDEX(Q157:ZD157,MATCH(O$1,Q$1:ZD$1,0)) -> 0 | AY157: 229.99
A158: =IF(K158>0,A157+1,A157) -> 4 | B158: 28 | C158: =C157 -> 20 | E158: Artikel 157 | F158: =MIN($P158:BO158) -> 1275 | G158: =MAX($P158:BO158) -> 1500 | H158: =MIN($BP158:DC158) -> 0 | I158: =MAX($BP158:DC158) -> 0 | J158: 1275 | K158: -3 | L158: 3 | M158: 6 | N158: 0 | O158: 0 | P158: 1500 | AV158: 1275
A159: =IF(K159>0,A158+1,A158) -> 4 | B159: 28 | C159: =C158 -> 20 | E159: Artikel 158 | F159: =MIN($P159:BO159) -> 0 | G159: =MAX($P159:BO159) -> 0 | H159: =MIN($BP159:DC159) -> 0 | I159: =MAX($BP159:DC159) -> 0 | J159: 0 | K159: 0 | L159: 4 | M159: 4 | N159: =INDEX(P159:ZC159,MATCH(N$1,P$1:ZC$1,0)) -> 0 | O159: 0
A160: =A159 -> 4 | B160: 28 | C160: =C156 -> 20 | E160: Artikel 159 | F160: =MIN($P160:BO160) -> 869.99 | G160: =MAX($P160:BO160) -> 869.99 | H160: =MIN($BP160:DC160) -> 0 | I160: =MAX($BP160:DC160) -> 0 | J160: 869.99 | K160: =SUM(L160-M160) -> 1 | L160: 1 | N160: 0 | O160: 0 | R160: 869.99
A161: 4 | B161: =B159 -> 28 | C161: =C158 -> 20 | E161: Artikel 160 | F161: =MIN($P161:BO161) -> 369.99 | G161: =MAX($P161:BO161) -> 379.99 | H161: =MIN($BP161:DC161) -> 0 | I161: =MAX($BP161:DC161) -> 0 | J161: 379.99 | K161: =SUM(L161-M161) -> 1 | L161: 1 | N161: 0 | O161: 379.99 | R161: 369.99 | AZ161: 379.99
A162: 4 | B162: =IF(OR(K162>0,F162=N162),B161+1,B161) -> 29 | C162: =IF(OR(F162=O162,F162=N162),C161+1,C161) -> 20 | E162: Artikel 161 | F162: =MIN($P162:BO162) -> 39.99 | G162: =MAX($P162:BO162) -> 89.99 | H162: =MIN($BP162:DC162) -> 0 | I162: =MAX($BP162:DC162) -> 0 | J162: 79.99 | K162: =SUM(L162-M162) -> 3 | L162: 3 | N162: 0 | O162: 0 | AB162: 39.99 | AE162: 89.99 | AM162: 79.99 | AR162: 79.99
A163: 4 | B163: =B162 -> 29 | C163: =IF(OR(K163>0,F163=O163,F163=N163),C162+1,C162) -> 20 | E163: Artikel 162 | F163: =MIN($P163:BO163) -> 119.99 | G163: =MAX($P163:BO163) -> 129.99 | H163: =MIN($BP163:DC163) -> 0 | I163: =MAX($BP163:DC163) -> 0 | J163: 119.99 | K163: -5 | L163: 20 | M163: 25 | N163: 0 | O163: 0 | AB163: 119.99 | AE163: 129.99 | AI163: 119.99 | AO163: 119.99
A164: 4 | B164: 29 | C164: 20 | E164: Artikel 163 | F164: =MIN($P164:BO164) -> 129.99 | G164: =MAX($P164:BO164) -> 144.99 | H164: =MIN($BP164:DC164) -> 0 | I164: =MAX($BP164:DC164) -> 0 | J164: 139.99 | K164: -4 | L164: 20 | M164: 24 | N164: 0 | O164: 0 | T164: 144.99 | W164: 144.99 | AG164: 129.99 | AM164: 139.99 | AX164: 139.99
A165: 4 | B165: 29 | C165: 20 | E165: Artikel 164 | F165: =MIN($P165:BO165) -> 99.99 | G165: =MAX($P165:BO165) -> 129.99 | H165: =MIN($BP165:DC165) -> 0 | I165: =MAX($BP165:DC165) -> 0 | J165: 129.99 | K165: 0 | L165: 10 | M165: 10 | N165: 0 | O165: 0 | AE165: 99.99 | AR165: 129.99
A166: 4 | B166: 29 | C166: 20 | E166: Artikel 165 | F166: =MIN($P166:BO166) -> 0 | G166: =MAX($P166:BO166) -> 0 | H166: =MIN($BP166:DC166) -> 0 | I166: =MAX($BP166:DC166) -> 0 | J166: 0 | K166: =SUM((L166+L167+L168+L169+L170)-(M166+M167+M168+M169+M170)) -> 6 | L166: 1 | N166: =INDEX(P166:ZC166,MATCH(N$1,P$1:ZC$1,0)) -> 0 | O166: =INDEX(Q166:ZD166,MATCH(O$1,Q$1:ZD$1,0)) -> 0
A167: 4 | B167: 29 | C167: 20 | E167: Artikel 166 | F167: =MIN($P167:BO167) -> 0 | G167: =MAX($P167:BO167) -> 0 | H167: =MIN($BP167:DC167) -> 0 | I167: =MAX($BP167:DC167) -> 0 | J167: 0 | K167: =SUM((L166+L167+L168+L169+L170)-(M166+M167+M168+M169+M170)) -> 6 | L167: 1 | N167: 0 | O167: 0
A168: 4 | B168: 29 | C168: 20 | E168: Artikel 167 | F168: =MIN($P168:BO168) -> 0 | G168: =MAX($P168:BO168) -> 0 | H168: =MIN($BP168:DC168) -> 0 | I168: =MAX($BP168:DC168) -> 0 | J168: 0 | K168: =SUM((L166+L167+L168+L169+L170)-(M166+M167+M168+M169+M170)) -> 6 | L168: 1 | N168: 0 | O168: 0
A169: 4 | B169: 29 | C169: 20 | E169: Artikel 168 | F169: =MIN($P169:BO169) -> 0 | G169: =MAX($P169:BO169) -> 0 | H169: =MIN($BP169:DC169) -> 0 | I169: =MAX($BP169:DC169) -> 0 | J169: 0 | K169: =SUM((L166+L167+L168+L169+L170)-(M166+M167+M168+M169+M170)) -> 6 | L169: 2 | N169: 0 | O169: 0
A170: 4 | B170: 29 | C170: 20 | E170: Artikel 169 | F170: =MIN($P170:BO170) -> 999.99 | G170: =MAX($P170:BO170) -> 999.99 | H170: =MIN($BP170:DC170) -> 0 | I170: =MAX($BP170:DC170) -> 0 | J170: 999.99 | K170: =SUM((L166+L167+L168+L169+L170)-(M166+M167+M168+M169+M170)) -> 6 | L170: 1 | N170: 999.99 | O170: 0 | BA170: 999.99
A171: 4 | B171: =IF(OR(K171>0,F171=N171),B170+1,B170) -> 30 | C171: =IF(OR(K171>0,F171=O171,F171=N171),C170+1,C170) -> 21 | E171: Artikel 170 | F171: =MIN($P171:BO171) -> 149.99 | G171: =MAX($P171:BO171) -> 149.99 | H171: =MIN($BP171:DC171) -> 0 | I171: =MAX($BP171:DC171) -> 0 | J171: 149.99 | K171: 2 | L171: 2 | N171: =INDEX(P171:ZC171,MATCH(N$1,P$1:ZC$1,0)) -> 0 | O171: 149.99 | AZ171: 149.99
A172: 4 | B172: =B171 -> 30 | C172: 22 | E172: Artikel 171 | F172: =MIN($P172:BO172) -> 109.99 | G172: =MAX($P172:BO172) -> 129.99 | H172: =MIN($BP172:DC172) -> 0 | I172: =MAX($BP172:DC172) -> 0 | J172: 109.99 | K172: 0 | L172: 14 | M172: 14 | N172: 109.99 | O172: =INDEX(Q172:ZD172,MATCH(O$1,Q$1:ZD$1,0)) -> 0 | T172: 129.99 | W172: 129.99 | BA172: 109.99
A173: 4 | B173: 30 | C173: =IF(OR((M173+M174)<2,F173=O173,F173=N173),C172+1,C172) -> 22 | E173: Artikel 172 | F173: =MIN($P173:BO173) -> 149.99 | G173: =MAX($P173:BO173) -> 174.99 | H173: =MIN($BP173:DC173) -> 0 | I173: =MAX($BP173:DC173) -> 0 | J173: 149.99 | K173: =SUM((L173+L174)-(M173+M174)) -> 0 | L173: 1 | M173: 1 | N173: 0 | O173: 0 | Y173: 174.99 | AG173: 149.99
A174: 4 | B174: 30 | C174: =IF(OR((M173+M174)<2,F174=O174,F174=N174),C173+1,C173) -> 22 | E174: Artikel 173 | F174: =MIN($P174:BO174) -> 179.99 | G174: =MAX($P174:BO174) -> 219.99 | H174: =MIN($BP174:DC174) -> 0 | I174: =MAX($BP174:DC174) -> 0 | J174: 179.99 | K174: =SUM((L173+L174)-(M173+M174)) -> 0 | L174: 1 | M174: 1 | N174: 0 | O174: 0 | AB174: 219.99 | AD174: 179.99 | AE174: 179.99
A175: 4 | B175: 30 | C175: =C174 -> 22 | E175: Artikel 174 | F175: =MIN($P175:BO175) -> 19.99 | G175: =MAX($P175:BO175) -> 27.99 | H175: =MIN($BP175:DC175) -> 0 | I175: =MAX($BP175:DC175) -> 0 | J175: 22.99 | K175: =SUM(L175-M175) -> 2 | L175: 2 | N175: 0 | O175: 0 | AI175: 19.99 | AR175: 27.99 | AU175: 22.99
A176: 4 | B176: 30 | C176: =C175 -> 22 | E176: Artikel 175 | F176: =MIN($P176:BO176) -> 44.99 | G176: =MAX($P176:BO176) -> 59.99 | H176: =MIN($BP176:DC176) -> 0 | I176: =MAX($BP176:DC176) -> 0 | J176: 49.99 | K176: 1 | L176: 1 | N176: 0 | O176: 0 | S176: 44.99 | AR176: 59.99 | AW176: 49.99
A177: 4 | B177: 30 | C177: =IF(OR(K177>0,F177=O177,F177=N177),C176+1,C176) -> 22 | E177: Artikel 176 | F177: =MIN($P177:BO177) -> 119.99 | G177: =MAX($P177:BO177) -> 119.99 | H177: =MIN($BP177:DC177) -> 0 | I177: =MAX($BP177:DC177) -> 0 | J177: 119.99 | K177: 0 | L177: 1 | M177: 1 | N177: 0 | O177: 0 | AP177: 119.99
A178: 4 | B178: 30 | C178: 22 | E178: Artikel 177 | F178: =MIN($P178:BO178) -> 45.99 | G178: =MAX($P178:BO178) -> 45.99 | H178: =MIN($BP178:DC178) -> 0 | I178: =MAX($BP178:DC178) -> 0 | J178: 45.99 | K178: 0 | L178: 10 | M178: 10 | N178: 0 | O178: 0 | AO178: 45.99
A179: 4 | B179: 30 | C179: 22 | E179: Artikel 178 | F179: =MIN($P179:BO179) -> 128.99 | G179: =MAX($P179:BO179) -> 229.99 | H179: =MIN($BP179:DC179) -> 0 | I179: =MAX($BP179:DC179) -> 0 | J179: 128.99 | K179: 0 | L179: 1 | M179: 1 | N179: 0 | O179: 0 | R179: 229.99 | AR179: 128.99
A180: 4 | B180: 30 | C180: =C179 -> 22 | E180: Artikel 179 | F180: =MIN($P180:BO180) -> 39.99 | G180: =MAX($P180:BO180) -> 39.99 | H180: =MIN($BP180:DC180) -> 0 | I180: =MAX($BP180:DC180) -> 0 | J180: 39.99 | K180: 0 | L180: 3 | M180: 3 | N180: 0 | O180: 0 | AV180: 39.99
A181: 4 | B181: 30 | C181: 22 | E181: Artikel 180 | F181: =MIN($P181:BO181) -> 0 | G181: =MAX($P181:BO181) -> 0 | H181: =MIN($BP181:DC181) -> 0 | I181: =MAX($BP181:DC181) -> 0 | J181: 0 | K181: =SUM(L181-M181) -> 1 | L181: 1 | N181: =INDEX(P181:ZC181,MATCH(N$1,P$1:ZC$1,0)) -> 0 | O181: =INDEX(Q181:ZD181,MATCH(O$1,Q$1:ZD$1,0)) -> 0
A182: 4 | B182: 30 | C182: 22 | E182: Artikel 181 | F182: =MIN($P182:BO182) -> 59.99 | G182: =MAX($P182:BO182) -> 59.99 | H182: =MIN($BP182:DC182) -> 0 | I182: =MAX($BP182:DC182) -> 0 | J182: 59.99 | K182: 0 | L182: 5 | M182: 5 | N182: =INDEX(P182:ZC182,MATCH(N$1,P$1:ZC$1,0)) -> 0 | O182: =INDEX(Q182:ZD182,MATCH(O$1,Q$1:ZD$1,0)) -> 0 | AV182: 59.99
A183: =IF(K183>0,A182+1,A182) -> 4 | B183: 30 | C183: 22 | E183: Artikel 182 | F183: =MIN($P183:BO183) -> 230 | G183: =MAX($P183:BO183) -> 230 | H183: =MIN($BP183:DC183) -> 0 | I183: =MAX($BP183:DC183) -> 0 | J183: 230 | K183: 0 | L183: 2 | M183: 2 | N183: 0 | O183: 0 | AV183: 230
A184: =A183 -> 4 | B184: 30 | C184: 22 | E184: Artikel 183 | F184: =MIN($P184:BO184) -> 0 | G184: =MAX($P184:BO184) -> 0 | H184: =MIN($BP184:DC184) -> 0 | I184: =MAX($BP184:DC184) -> 0 | J184: 0 | K184: =SUM(L184-M184) -> 1 | L184: 1 | N184: =INDEX(P184:ZC184,MATCH(N$1,P$1:ZC$1,0)) -> 0 | O184: =INDEX(Q184:ZD184,MATCH(O$1,Q$1:ZD$1,0)) -> 0
A185: =IF(K185>0,A184+1,A184) -> 5 | B185: 30 | C185: 22 | E185: Artikel 184 | F185: =MIN($P185:BO185) -> 479.99 | G185: =MAX($P185:BO185) -> 699.99 | H185: =MIN($BP185:DC185) -> 0 | I185: =MAX($BP185:DC185) -> 0 | J185: 699.99 | K185: 10 | L185: 10 | N185: =INDEX(P185:ZC185,MATCH(N$1,P$1:ZC$1,0)) -> 0 | O185: =INDEX(Q185:ZD185,MATCH(O$1,Q$1:ZD$1,0)) -> 699.99 | V185: 489.99 | Y185: 479.99 | AC185: 479.99 | AK185: 499.99 | AP185: 629.9 | AZ185: 699.99
A186: =A185 -> 5 | B186: 30 | C186: =IF(OR(K186>0,F186=O186,F186=N186),C185+1,C185) -> 22 | E186: Artikel 185 | F186: =MIN($P186:BO186) -> 479.99 | G186: =MAX($P186:BO186) -> 699.99 | H186: =MIN($BP186:DC186) -> 0 | I186: =MAX($BP186:DC186) -> 0 | J186: 699.99 | K186: -5 | L186: 4 | M186: 9 | N186: 0 | O186: 699.99 | V186: 489.99 | Y186: 479.99 | AC186: 479.99 | AK186: 499.99 | AP186: 629.99 | AZ186: 699.99
A187: =IF(K187>0,A186+1,A186) -> 6 | B187: 30 | C187: =C186 -> 22 | E187: Artikel 186 | F187: =MIN($P187:BO187) -> 699.99 | G187: =MAX($P187:BO187) -> 699.99 | H187: =MIN($BP187:DC187) -> 0 | I187: =MAX($BP187:DC187) -> 0 | J187: 699.99 | K187: 12 | L187: 12 | N187: =INDEX(P187:ZC187,MATCH(N$1,P$1:ZC$1,0)) -> 0 | O187: 0 | R187: 699.99
A188: =A187 -> 6 | B188: 30 | C188: =IF(OR(K188>0,F188=O188,F188=N188),C187+1,C187) -> 22 | E188: Artikel 187 | F188: =MIN($P188:BO188) -> 469.99 | G188: =MAX($P188:BO188) -> 749.99 | H188: =MIN($BP188:DC188) -> 0 | I188: =MAX($BP188:DC188) -> 0 | J188: 749.99 | K188: -1 | L188: 3 | M188: 4 | N188: 0 | O188: 0 | V188: 469.99 | AU188: 649.99 | AY188: 749.99
A189: =A188 -> 6 | B189: 30 | C189: 22 | E189: Artikel 188 | F189: =MIN($P189:BO189) -> 99.99 | G189: =MAX($P189:BO189) -> 129.99 | H189: =MIN($BP189:DC189) -> 0 | I189: =MAX($BP189:DC189) -> 0 | J189: 129.99 | K189: 0 | L189: 3 | M189: 3 | N189: 0 | O189: 0 | P189: 99.99 | AE189: 99.99 | AQ189: 129.99
A190: 6 | B190: 30 | C190: =IF(OR(((M190+M191)<2),F190=O190,F190=N190),C189+1,C189) -> 22 | E190: Artikel 189 | F190: =MIN($P190:BO190) -> 343.68 | G190: =MAX($P190:BO190) -> 399.99 | H190: =MIN($BP190:DC190) -> 0 | I190: =MAX($BP190:DC190) -> 0 | J190: 399.99 | K190: =SUM((L190+L191)-(M190+M191)) -> 0 | L190: 1 | M190: 2 | N190: 0 | O190: 0 | V190: 389.99 | Z190: 399.99 | AN190: 399.99 | AR190: 343.68 | AS190: 399.99 | AW190: 399.99
A191: 6 | B191: 30 | C191: =IF(OR(((M190+M191)<2),F191=O191,F191=N191),C190+1,C190) -> 22 | E191: Artikel 190 | F191: =MIN($P191:BO191) -> 1 | G191: =MAX($P191:BO191) -> 1 | H191: =MIN($BP191:DC191) -> 0 | I191: =MAX($BP191:DC191) -> 0 | J191: 1 | K191: =SUM((L190+L191)-(M190+M191)) -> 0 | L191: 1 | N191: 0 | O191: 0 | P191: 1
A192: 6 | B192: 30 | C192: =IF(OR(K192>0,F192=O192,F192=N192),C191+1,C191) -> 22 | E192: Artikel 191 | F192: =MIN($P192:BO192) -> 59.99 | G192: =MAX($P192:BO192) -> 74.99 | H192: =MIN($BP192:DC192) -> 0 | I192: =MAX($BP192:DC192) -> 0 | J192: 74.99 | K192: =SUM(L192-M192) -> 0 | L192: 10 | M192: 10 | N192: 0 | O192: 0 | AO192: 68.99 | AT192: 59.99 | AX192: 74.99
A193: 6 | B193: 30 | C193: 22 | E193: Artikel 192 | F193: =MIN($P193:BO193) -> 59.99 | G193: =MAX($P193:BO193) -> 68.99 | H193: =MIN($BP193:DC193) -> 0 | I193: =MAX($BP193:DC193) -> 0 | J193: 59.99 | K193: 0 | L193: 10 | M193: 10 | N193: 0 | O193: 0 | AO193: 68.99 | AT193: 59.99
A194: 6 | B194: 30 | C194: 22 | E194: Artikel 193 | F194: =MIN($P194:BO194) -> 89.99 | G194: =MAX($P194:BO194) -> 89.99 | H194: =MIN($BP194:DC194) -> 0 | I194: =MAX($BP194:DC194) -> 0 | J194: 89.99 | K194: 0 | L194: 5 | M194: 5 | N194: 0 | O194: 0 | AQ194: 89.99
A195: 6 | B195: 30 | C195: 22 | E195: Artikel 194 | F195: =MIN($P195:BO195) -> 114.99 | G195: =MAX($P195:BO195) -> 114.99 | H195: =MIN($BP195:DC195) -> 0 | I195: =MAX($BP195:DC195) -> 0 | J195: 114.99 | K195: 0 | L195: 5 | M195: 5 | N195: 0 | O195: 0 | AP195: 114.99
A196: 6 | B196: 30 | C196: =IF(OR(K196>14,F196=O196,F196=N196),C195+1,C195) -> 22 | E196: Artikel 195 | F196: =MIN($P196:BO196) -> 154.99 | G196: =MAX($P196:BO196) -> 199.99 | H196: =MIN($BP196:DC196) -> 0 | I196: =MAX($BP196:DC196) -> 0 | J196: 179.99 | K196: -28 | L196: 16 | M196: 44 | N196: 0 | O196: 0 | W196: 154.99 | AD196: 164.99 | AO196: 199.99 | AW196: 179.99
A197: =IF(K197>0,A196+1,A196) -> 6 | B197: 30 | C197: =C196 -> 22 | E197: Artikel 196 | F197: =MIN($P197:BO197) -> 60 | G197: =MAX($P197:BO197) -> 60 | H197: =MIN($BP197:DC197) -> 0 | I197: =MAX($BP197:DC197) -> 0 | J197: 60 | K197: -10 | L197: 16 | M197: 26 | N197: 0 | O197: 0 | Q197: 60
A198: 6 | B198: 30 | C198: =IF(OR(K198>0,F198=O198,F198=N198),C197+1,C197) -> 22 | E198: Artikel 197 | F198: =MIN($P198:BO198) -> 389.99 | G198: =MAX($P198:BO198) -> 389.99 | H198: =MIN($BP198:DC198) -> 0 | I198: =MAX($BP198:DC198) -> 0 | J198: 389.99 | K198: 0 | L198: 16 | M198: 16 | N198: 0 | O198: 0 | Z198: 389.99
A199: 6 | B199: 30 | C199: =IF(OR(K199>19,F199=O199,F199=N199),C198+1,C198) -> 22 | E199: Artikel 198 | F199: =MIN($P199:BO199) -> 49.99 | G199: =MAX($P199:BO199) -> 67.99 | H199: =MIN($BP199:DC199) -> 0 | I199: =MAX($BP199:DC199) -> 0 | J199: =IFERROR(LOOKUP(100000,P199:DC199),0) -> 49.99 | K199: -30 | L199: 20 | M199: 50 | N199: 0 | O199: 0 | AP199: 67.99 | AX199: 49.99
A200: 6 | B200: 30 | C200: =C199 -> 22 | E200: Artikel 199 | G200: =MAX($P200:BO200) -> 0 | H200: =MIN($BP200:DC200) -> 0 | I200: =MAX($BP200:DC200) -> 0 | J200: =IFERROR(LOOKUP(100000,P200:DC200),0) -> 0 | K200: =SUM(L200-M200) -> 2 | L200: 2 | N200: =INDEX(P200:ZC200,MATCH(N$1,P$1:ZC$1,0)) -> 0 | O200: =INDEX(Q200:ZD200,MATCH(O$1,Q$1:ZD$1,0)) -> 0
... 26 more rows

Sheet Maske
A1: =IF(A4>A3,A2,A3) -> 2025-09-18 | B1: =A1+5-WEEKDAY(A1)+4*(WEEKDAY(A1)>4) -> 2025-09-22 | C1: =B1+5-WEEKDAY(B1)+4*(WEEKDAY(B1)>4) -> 2025-09-25 | G1: =TODAY()+9-WEEKDAY(TODAY())+8*(WEEKDAY(TODAY())>8) -> 2025-09-22
A2: =TODAY()+5-WEEKDAY(TODAY())+4*(WEEKDAY(TODAY())>5) -> 2025-09-18 | J2: Preisspanne 2025 | N2: =IFERROR(VLOOKUP(L3,Liste!$E$2:$F226,2,0),"") -> 99.99 | O2: =IFERROR(VLOOKUP(L3,Liste!$E$2:$G226,3,0),"") -> 149.99 | Q2: Preisspanne 2025 | U2: =IFERROR(VLOOKUP(S3,Liste!$E$2:$F226,2,0),"") -> 249.99 | V2: =IFERROR(VLOOKUP(S3,Liste!$E$2:$G226,3,0),"") -> 299.99 | X2: Preisspanne 2025 | AB2: =IFERROR(VLOOKUP(Z3,Liste!$E$2:$F226,2,0),"") -> 199.99 | AC2: =IFERROR(VLOOKUP(Z3,Liste!$E$2:$G226,3,0),"") -> 219.99
A3: =TODAY()+5-WEEKDAY(TODAY())+4*(WEEKDAY(TODAY())>4)+0.4163 -> 2025-09-18T09:59:28.320 | J3: ="Preisspanne "&YEAR(A1) -> Preisspanne 2025 | L3: =INDEX(J:J,_xlfn.AGGREGATE(14,6,ROW(J9:J27)/(J9:J27<>""),1)) -> Artikel 222 | N3: =IFERROR(VLOOKUP(L3,Liste!$E$2:$H226,2,0),"") -> 99.99 | O3: =IFERROR(VLOOKUP(L3,Liste!$E$2:$I226,3,0),"") -> 149.99 | Q3: ="Preisspanne "&YEAR(A1) -> Preisspanne 2025 | S3: =INDEX(Q:Q,_xlfn.AGGREGATE(14,6,ROW(Q9:Q27)/(Q9:Q27<>""),1)) -> Artikel 11 | U3: =IFERROR(VLOOKUP(S3,Liste!$E$2:$H226,2,0),"") -> 249.99 | V3: =IFERROR(VLOOKUP(S3,Liste!$E$2:$I226,3,0),"") -> 299.99 | X3: ="Preisspanne "&YEAR(A1) -> Preisspanne 2025 | Z3: =INDEX(X:X,_xlfn.AGGREGATE(14,6,ROW(X9:X27)/(X9:X27<>""),1)) -> Artikel 223 | AB3: =IFERROR(VLOOKUP(Z3,Liste!$E$2:$H226,2,0),"") -> 199.99 | AC3: =IFERROR(VLOOKUP(Z3,Liste!$E$2:$I226,3,0),"") -> 219.99
A4: =NOW()+5-WEEKDAY(NOW())+4*(WEEKDAY(NOW())>4) -> 2025-09-18T15:19:24.680 | J4: Coupon | Q4: Coupon | X4: Coupon
F5: Obst und Gemüse | O5: =SUM(O9:O27) -> 1399.86 | V5: =SUM(V9:V27) -> 2687.62 | AC5: =SUM(AC9:AC27) -> 4555.81
F6: Lidl | J6: Bonus | N6: =SUM(O9:O29) -> 1399.86 | O6: =IF(O5>5000,SUM(O9:O29),SUM(O9:O27)) -> 1399.86 | Q6: Bonus | U6: =SUM(V9:V29) -> 2687.62 | V6: =IF(V5>5000,SUM(V9:V29),SUM(V9:V27)) -> 2687.62 | X6: Bonus | AB6: =SUM(AC9:AC29) -> 4555.81 | AC6: =IF(AC5>5000,SUM(AC9:AC29),SUM(AC9:AC27)) -> 4555.81
F7: Lidl | H7: min | I7: max | J7: =A1 -> 2025-09-18 | N7: =IF(J5="Bonus",N6,O6) -> 1399.86 | Q7: =B1 -> 2025-09-22 | U7: =IF(Q5="Bonus",U6,V6) -> 2687.62 | X7: =C1 -> 2025-09-25 | AB7: =IF(X5="Bonus",AB6,AC6) -> 4555.81 | AD7: Originalverweis
G8: =Liste!N1 -> 2025-09-18 | H8: =Liste!N1 -> 2025-09-18 | I8: =Liste!N1 -> 2025-09-18 | J8: Artikel | K8: ME | L8: Min | M8: Max | N8: Preis | O8: Summe | Q8: Artikel | R8: ME | S8: Min | T8: Max | U8: Preis | V8: Summe | X8: Artikel | Y8: ME | Z8: Min | AA8: Max | AB8: Preis | AC8: Summe | AD8: Y | AE8: R | AF8: K
A9: 1 | B9: =IF(VLOOKUP(F9,Liste!E$2:F226,2,0)<VLOOKUP(F9,Liste!E2:J226,6,0),2,0) -> 0 | C9: =IF(VLOOKUP(F9,Liste!E$2:G226,3,0)=VLOOKUP(F9,Liste!E2:N226,10,0),2,0) -> 0 | D9: =IF(VLOOKUP(F9,Liste!E$2:F226,2,0)=0,3,0) -> 0 | E9: ● | F9: =IF($F$7="Obst und Gemüse",VLOOKUP(A9,Liste!B$2:E226,4,0),IF($F$7="Lidl",VLOOKUP(A9,Liste!C$2:E226,3,0))) -> Artikel 2 | G9: =IF(VLOOKUP(F9,Liste!E$2:F226,2,0)=VLOOKUP(F9,Liste!E2:N226,10,0),1,0) -> 0 | H9: =IF(AND(TODAY()<$H$8,VLOOKUP(F9,Liste!E$2:F226,2,0)=VLOOKUP(F9,Liste!E2:O226,11,0)),1,0) -> 0 | I9: =IF(AND(TODAY()<$I$8,VLOOKUP(F9,Liste!E$2:G226,3,0)=VLOOKUP(F9,Liste!E2:O226,11,0)),1,0) -> 0 | J9: Artikel 88 | K9: =IFERROR(VLOOKUP(J9,Liste!$E$2:BF226,7,0),0) -> 12 | L9: =IFERROR(VLOOKUP(J9,Liste!$E$2:$H226,2,0),0) -> 89.99 | M9: =IFERROR(VLOOKUP(J9,Liste!$E$2:$I226,3,0),0) -> 119.99 | N9: =IFERROR(VLOOKUP(J9,Liste!$E$2:$J226,6,0),0) -> 89.99 | O9: =IF(K9>0,(K9*N9),0) -> 1079.88 | Q9: Artikel 2 | R9: =IFERROR(VLOOKUP(Q9,Liste!$E$2:BF226,7,0),0) -> 1 | S9: =IFERROR(VLOOKUP(Q9,Liste!$E$2:$H226,2,0),0) -> 58.99 | T9: =IFERROR(VLOOKUP(Q9,Liste!$E$2:$I226,3,0),0) -> 58.99 | U9: =IFERROR(VLOOKUP(Q9,Liste!$E$2:$J226,6,0),0) -> 58.99 | V9: =IF(R9>0,(R9*U9),0) -> 58.99 | X9: Artikel 94 | Y9: =IFERROR(VLOOKUP(X9,Liste!$E$2:BF226,7,0),0) -> 6 | Z9: =IFERROR(VLOOKUP(X9,Liste!$E$2:$H226,2,0),0) -> 369.99 | AA9: =IFERROR(VLOOKUP(X9,Liste!$E$2:$I226,3,0),0) -> 475.99 | AB9: =IFERROR(VLOOKUP(X9,Liste!$E$2:$J226,6,0),0) -> 475.99 | AC9: =IF(Y9>0,(Y9*AB9),0) -> 2855.94 | AD9: =IFERROR(VLOOKUP(X9,Liste!$E$2:BF226,7,0),0) -> 6 | AE9: =IFERROR(VLOOKUP(Q9,Liste!$E$2:BF226,7,0),0) -> 1 | AF9: =IFERROR(VLOOKUP(J9,Liste!$E$2:BF226,7,0),0) -> 12
A10: 2 | B10: =IF(VLOOKUP(F10,Liste!E$2:F227,2,0)<VLOOKUP(F10,Liste!E3:J227,6,0),2,0) -> 0 | C10: =IF(VLOOKUP(F10,Liste!E$2:G227,3,0)=VLOOKUP(F10,Liste!E3:N227,10,0),2,0) -> 0 | D10: =IF(VLOOKUP(F10,Liste!E$2:F227,2,0)=0,3,0) -> 0 | E10: ● | F10: =IF($F$7="Obst und Gemüse",VLOOKUP(A10,Liste!B$2:E227,4,0),IF($F$7="Lidl",VLOOKUP(A10,Liste!C$2:E227,3,0))) -> Artikel 3 | G10: =IF(VLOOKUP(F10,Liste!E$2:F227,2,0)=VLOOKUP(F10,Liste!E3:N227,10,0),1,0) -> 0 | H10: =IF(AND(TODAY()<$H$8,VLOOKUP(F10,Liste!E$2:F227,2,0)=VLOOKUP(F10,Liste!E3:O227,11,0)),1,0) -> 0 | I10: =IF(AND(TODAY()<$I$8,VLOOKUP(F10,Liste!E$2:G227,3,0)=VLOOKUP(F10,Liste!E3:O227,11,0)),1,0) -> 0 | J10: Artikel 27 | K10: =IFERROR(VLOOKUP(J10,Liste!$E$2:BF227,7,0),0) -> 1 | L10: =IFERROR(VLOOKUP(J10,Liste!$E$2:$H227,2,0),0) -> 179.99 | M10: =IFERROR(VLOOKUP(J10,Liste!$E$2:$I227,3,0),0) -> 179.99 | N10: =IFERROR(VLOOKUP(J10,Liste!$E$2:$J227,6,0),0) -> 179.99 | O10: =IF(K10>0,(K10*N10),0) -> 179.99 | Q10: Artikel 84 | R10: =IFERROR(VLOOKUP(Q10,Liste!$E$2:BF227,7,0),0) -> 5 | S10: =IFERROR(VLOOKUP(Q10,Liste!$E$2:$H227,2,0),0) -> 149.99 | T10: =IFERROR(VLOOKUP(Q10,Liste!$E$2:$I227,3,0),0) -> 165.74 | U10: =IFERROR(VLOOKUP(Q10,Liste!$E$2:$J227,6,0),0) -> 165.74 | V10: =IF(R10>0,(R10*U10),0) -> 828.7 | X10: Artikel 143 | Y10: =IFERROR(VLOOKUP(X10,Liste!$E$2:BF227,7,0),0) -> 2 | Z10: =IFERROR(VLOOKUP(X10,Liste!$E$2:$H227,2,0),0) -> 149.99 | AA10: =IFERROR(VLOOKUP(X10,Liste!$E$2:$I227,3,0),0) -> 149.99 | AB10: =IFERROR(VLOOKUP(X10,Liste!$E$2:$J227,6,0),0) -> 149.99 | AC10: =IF(Y10>0,(Y10*AB10),0) -> 299.98 | AD10: =IFERROR(VLOOKUP(X10,Liste!$E$2:BF227,7,0),0) -> 2 | AE10: =IFERROR(VLOOKUP(Q10,Liste!$E$2:BF227,7,0),0) -> 5 | AF10: =IFERROR(VLOOKUP(J10,Liste!$E$2:BF227,7,0),0) -> 1
A11: 3 | B11: =IF(VLOOKUP(F11,Liste!E$2:F228,2,0)<VLOOKUP(F11,Liste!E4:J228,6,0),2,0) -> 2 | C11: =IF(VLOOKUP(F11,Liste!E$2:G228,3,0)=VLOOKUP(F11,Liste!E4:N228,10,0),2,0) -> 0 | D11: =IF(VLOOKUP(F11,Liste!E$2:F228,2,0)=0,3,0) -> 0 | E11: ● | F11: =IF($F$7="Obst und Gemüse",VLOOKUP(A11,Liste!B$2:E228,4,0),IF($F$7="Lidl",VLOOKUP(A11,Liste!C$2:E228,3,0))) -> Artikel 20 | G11: =IF(VLOOKUP(F11,Liste!E$2:F228,2,0)=VLOOKUP(F11,Liste!E4:N228,10,0),1,0) -> 0 | H11: =IF(AND(TODAY()<$H$8,VLOOKUP(F11,Liste!E$2:F228,2,0)=VLOOKUP(F11,Liste!E4:O228,11,0)),1,0) -> 0 | I11: =IF(AND(TODAY()<$I$8,VLOOKUP(F11,Liste!E$2:G228,3,0)=VLOOKUP(F11,Liste!E4:O228,11,0)),1,0) -> 0 | J11: Artikel 222 | K11: =IFERROR(VLOOKUP(J11,Liste!$E$2:BF228,7,0),0) -> 1 | L11: =IFERROR(VLOOKUP(J11,Liste!$E$2:$H228,2,0),0) -> 99.99 | M11: =IFERROR(VLOOKUP(J11,Liste!$E$2:$I228,3,0),0) -> 149.99 | N11: =IFERROR(VLOOKUP(J11,Liste!$E$2:$J228,6,0),0) -> 139.99 | O11: =IF(K11>0,(K11*N11),0) -> 139.99 | Q11: Artikel 170 | R11: =IFERROR(VLOOKUP(Q11,Liste!$E$2:BF228,7,0),0) -> 2 | S11: =IFERROR(VLOOKUP(Q11,Liste!$E$2:$H228,2,0),0) -> 149.99 | T11: =IFERROR(VLOOKUP(Q11,Liste!$E$2:$I228,3,0),0) -> 149.99 | U11: =IFERROR(VLOOKUP(Q11,Liste!$E$2:$J228,6,0),0) -> 149.99 | V11: =IF(R11>0,(R11*U11),0) -> 299.98 | X11: Artikel 205 | Y11: 10 | Z11: =IFERROR(VLOOKUP(X11,Liste!$E$2:$H228,2,0),0) -> 119.99 | AA11: =IFERROR(VLOOKUP(X11,Liste!$E$2:$I228,3,0),0) -> 249.99 | AB11: =IFERROR(VLOOKUP(X11,Liste!$E$2:$J228,6,0),0) -> 119.99 | AC11: =IF(Y11>0,(Y11*AB11),0) -> 1199.9 | AD11: =IFERROR(VLOOKUP(X11,Liste!$E$2:BF228,7,0),0) -> 3 | AE11: =IFERROR(VLOOKUP(Q11,Liste!$E$2:BF228,7,0),0) -> 2 | AF11: =IFERROR(VLOOKUP(J11,Liste!$E$2:BF228,7,0),0) -> 1
A12: 4 | B12: =IF(VLOOKUP(F12,Liste!E$2:F229,2,0)<VLOOKUP(F12,Liste!E5:J229,6,0),2,0) -> 0 | C12: =IF(VLOOKUP(F12,Liste!E$2:G229,3,0)=VLOOKUP(F12,Liste!E5:N229,10,0),2,0) -> 0 | D12: =IF(VLOOKUP(F12,Liste!E$2:F229,2,0)=0,3,0) -> 0 | E12: ● | F12: =IF($F$7="Obst und Gemüse",VLOOKUP(A12,Liste!B$2:E229,4,0),IF($F$7="Lidl",VLOOKUP(A12,Liste!C$2:E229,3,0))) -> Artikel 63 | G12: =IF(VLOOKUP(F12,Liste!E$2:F229,2,0)=VLOOKUP(F12,Liste!E5:N229,10,0),1,0) -> 0 | H12: =IF(AND(TODAY()<$H$8,VLOOKUP(F12,Liste!E$2:F229,2,0)=VLOOKUP(F12,Liste!E5:O229,11,0)),1,0) -> 0 | I12: =IF(AND(TODAY()<$I$8,VLOOKUP(F12,Liste!E$2:G229,3,0)=VLOOKUP(F12,Liste!E5:O229,11,0)),1,0) -> 0 | K12: =IFERROR(VLOOKUP(J12,Liste!$E$2:BF229,7,0),0) -> 0 | L12: =IFERROR(VLOOKUP(J12,Liste!$E$2:$H229,2,0),0) -> 0 | M12: =IFERROR(VLOOKUP(J12,Liste!$E$2:$I229,3,0),0) -> 0 | N12: =IFERROR(VLOOKUP(J12,Liste!$E$2:$J229,6,0),0) -> 0 | O12: 0 | Q12: Artikel 11 | R12: 5 | S12: =IFERROR(VLOOKUP(Q12,Liste!$E$2:$H229,2,0),0) -> 249.99 | T12: =IFERROR(VLOOKUP(Q12,Liste!$E$2:$I229,3,0),0) -> 299.99 | U12: =IFERROR(VLOOKUP(Q12,Liste!$E$2:$J229,6,0),0) -> 299.99 | V12: 1499.95 | X12: Artikel 223 | Y12: =IFERROR(VLOOKUP(X12,Liste!$E$2:BF229,7,0),0) -> 1 | Z12: =IFERROR(VLOOKUP(X12,Liste!$E$2:$H229,2,0),0) -> 199.99 | AA12: =IFERROR(VLOOKUP(X12,Liste!$E$2:$I229,3,0),0) -> 219.99 | AB12: =IFERROR(VLOOKUP(X12,Liste!$E$2:$J229,6,0),0) -> 199.99 | AC12: 199.99 | AD12: =IFERROR(VLOOKUP(X12,Liste!$E$2:BF229,7,0),0) -> 1 | AE12: =IFERROR(VLOOKUP(Q12,Liste!$E$2:BF229,7,0),0) -> 1 | AF12: =IFERROR(VLOOKUP(J12,Liste!$E$2:BF229,7,0),0) -> 0
A13: 5 | B13: =IF(VLOOKUP(F13,Liste!E$2:F230,2,0)<VLOOKUP(F13,Liste!E6:J230,6,0),2,0) -> 2 | C13: =IF(VLOOKUP(F13,Liste!E$2:G230,3,0)=VLOOKUP(F13,Liste!E6:N230,10,0),2,0) -> 0 | D13: =IF(VLOOKUP(F13,Liste!E$2:F230,2,0)=0,3,0) -> 0 | E13: ● | F13: =IF($F$7="Obst und Gemüse",VLOOKUP(A13,Liste!B$2:E230,4,0),IF($F$7="Lidl",VLOOKUP(A13,Liste!C$2:E230,3,0))) -> Artikel 64 | G13: =IF(VLOOKUP(F13,Liste!E$2:F230,2,0)=VLOOKUP(F13,Liste!E6:N230,10,0),1,0) -> 0 | H13: =IF(AND(TODAY()<$H$8,VLOOKUP(F13,Liste!E$2:F230,2,0)=VLOOKUP(F13,Liste!E6:O230,11,0)),1,0) -> 0 | I13: =IF(AND(TODAY()<$I$8,VLOOKUP(F13,Liste!E$2:G230,3,0)=VLOOKUP(F13,Liste!E6:O230,11,0)),1,0) -> 0 | K13: =IFERROR(VLOOKUP(J13,Liste!$E$2:BF230,7,0),0) -> 0 | L13: =IFERROR(VLOOKUP(J13,Liste!$E$2:$H230,2,0),0) -> 0 | M13: =IFERROR(VLOOKUP(J13,Liste!$E$2:$I230,3,0),0) -> 0 | N13: =IFERROR(VLOOKUP(J13,Liste!$E$2:$J230,6,0),0) -> 0 | O13: 0 | R13: =IFERROR(VLOOKUP(Q13,Liste!$E$2:BF230,7,0),0) -> 0 | S13: =IFERROR(VLOOKUP(Q13,Liste!$E$2:$H230,2,0),0) -> 0 | T13: =IFERROR(VLOOKUP(Q13,Liste!$E$2:$I230,3,0),0) -> 0 | U13: =IFERROR(VLOOKUP(Q13,Liste!$E$2:$J230,6,0),0) -> 0 | V13: 0 | Y13: =IFERROR(VLOOKUP(X13,Liste!$E$2:BF230,7,0),0) -> 0 | Z13: =IFERROR(VLOOKUP(X13,Liste!$E$2:$H230,2,0),0) -> 0 | AA13: =IFERROR(VLOOKUP(X13,Liste!$E$2:$I230,3,0),0) -> 0 | AB13: =IFERROR(VLOOKUP(X13,Liste!$E$2:$J230,6,0),0) -> 0 | AC13: 0 | AD13: =IFERROR(VLOOKUP(X13,Liste!$E$2:BF230,7,0),0) -> 0 | AE13: =IFERROR(VLOOKUP(Q13,Liste!$E$2:BF230,7,0),0) -> 0 | AF13: =IFERROR(VLOOKUP(J13,Liste!$E$2:BF230,7,0),0) -> 0
A14: 6 | B14: =IF(VLOOKUP(F14,Liste!E$2:F231,2,0)<VLOOKUP(F14,Liste!E7:J231,6,0),2,0) -> 2 | C14: =IF(VLOOKUP(F14,Liste!E$2:G231,3,0)=VLOOKUP(F14,Liste!E7:N231,10,0),2,0) -> 0 | D14: =IF(VLOOKUP(F14,Liste!E$2:F231,2,0)=0,3,0) -> 0 | E14: ● | F14: =IF($F$7="Obst und Gemüse",VLOOKUP(A14,Liste!B$2:E231,4,0),IF($F$7="Lidl",VLOOKUP(A14,Liste!C$2:E231,3,0))) -> Artikel 74 | G14: =IF(VLOOKUP(F14,Liste!E$2:F231,2,0)=VLOOKUP(F14,Liste!E7:N231,10,0),1,0) -> 0 | H14: =IF(AND(TODAY()<$H$8,VLOOKUP(F14,Liste!E$2:F231,2,0)=VLOOKUP(F14,Liste!E7:O231,11,0)),1,0) -> 0 | I14: =IF(AND(TODAY()<$I$8,VLOOKUP(F14,Liste!E$2:G231,3,0)=VLOOKUP(F14,Liste!E7:O231,11,0)),1,0) -> 0 | K14: =IFERROR(VLOOKUP(J14,Liste!$E$2:BF231,7,0),0) -> 0 | L14: =IFERROR(VLOOKUP(J14,Liste!$E$2:$H231,2,0),0) -> 0 | M14: =IFERROR(VLOOKUP(J14,Liste!$E$2:$I231,3,0),0) -> 0 | N14: =IFERROR(VLOOKUP(J14,Liste!$E$2:$J231,6,0),0) -> 0 | O14: 0 | R14: =IFERROR(VLOOKUP(Q14,Liste!$E$2:BF231,7,0),0) -> 0 | S14: =IFERROR(VLOOKUP(Q14,Liste!$E$2:$H231,2,0),0) -> 0 | T14: =IFERROR(VLOOKUP(Q14,Liste!$E$2:$I231,3,0),0) -> 0 | U14: =IFERROR(VLOOKUP(Q14,Liste!$E$2:$J231,6,0),0) -> 0 | V14: 0 | Y14: =IFERROR(VLOOKUP(X14,Liste!$E$2:BF231,7,0),0) -> 0 | Z14: =IFERROR(VLOOKUP(X14,Liste!$E$2:$H231,2,0),0) -> 0 | AA14: =IFERROR(VLOOKUP(X14,Liste!$E$2:$I231,3,0),0) -> 0 | AB14: =IFERROR(VLOOKUP(X14,Liste!$E$2:$J231,6,0),0) -> 0 | AC14: 0 | AD14: =IFERROR(VLOOKUP(X14,Liste!$E$2:BF231,7,0),0) -> 0 | AE14: =IFERROR(VLOOKUP(Q14,Liste!$E$2:BF231,7,0),0) -> 0 | AF14: =IFERROR(VLOOKUP(J14,Liste!$E$2:BF231,7,0),0) -> 0
A15: 7 | B15: =IF(VLOOKUP(F15,Liste!E$2:F232,2,0)<VLOOKUP(F15,Liste!E8:J232,6,0),2,0) -> 2 | C15: =IF(VLOOKUP(F15,Liste!E$2:G232,3,0)=VLOOKUP(F15,Liste!E8:N232,10,0),2,0) -> 0 | D15: =IF(VLOOKUP(F15,Liste!E$2:F232,2,0)=0,3,0) -> 0 | E15: ● | F15: =IF($F$7="Obst und Gemüse",VLOOKUP(A15,Liste!B$2:E232,4,0),IF($F$7="Lidl",VLOOKUP(A15,Liste!C$2:E232,3,0))) -> Artikel 84 | G15: =IF(VLOOKUP(F15,Liste!E$2:F232,2,0)=VLOOKUP(F15,Liste!E8:N232,10,0),1,0) -> 0 | H15: =IF(AND(TODAY()<$H$8,VLOOKUP(F15,Liste!E$2:F232,2,0)=VLOOKUP(F15,Liste!E8:O232,11,0)),1,0) -> 0 | I15: =IF(AND(TODAY()<$I$8,VLOOKUP(F15,Liste!E$2:G232,3,0)=VLOOKUP(F15,Liste!E8:O232,11,0)),1,0) -> 0 | K15: =IFERROR(VLOOKUP(J15,Liste!$E$2:BF232,7,0),0) -> 0 | L15: =IFERROR(VLOOKUP(J15,Liste!$E$2:$H232,2,0),0) -> 0 | M15: =IFERROR(VLOOKUP(J15,Liste!$E$2:$I232,3,0),0) -> 0 | N15: =IFERROR(VLOOKUP(J15,Liste!$E$2:$J232,6,0),0) -> 0 | O15: 0 | R15: =IFERROR(VLOOKUP(Q15,Liste!$E$2:BF232,7,0),0) -> 0 | S15: =IFERROR(VLOOKUP(Q15,Liste!$E$2:$H232,2,0),0) -> 0 | T15: =IFERROR(VLOOKUP(Q15,Liste!$E$2:$I232,3,0),0) -> 0 | U15: =IFERROR(VLOOKUP(Q15,Liste!$E$2:$J232,6,0),0) -> 0 | V15: 0 | Y15: =IFERROR(VLOOKUP(X15,Liste!$E$2:BF232,7,0),0) -> 0 | Z15: =IFERROR(VLOOKUP(X15,Liste!$E$2:$H232,2,0),0) -> 0 | AA15: =IFERROR(VLOOKUP(X15,Liste!$E$2:$I232,3,0),0) -> 0 | AB15: =IFERROR(VLOOKUP(X15,Liste!$E$2:$J232,6,0),0) -> 0 | AC15: 0 | AD15: =IFERROR(VLOOKUP(X15,Liste!$E$2:BF232,7,0),0) -> 0 | AE15: =IFERROR(VLOOKUP(Q15,Liste!$E$2:BF232,7,0),0) -> 0 | AF15: =IFERROR(VLOOKUP(J15,Liste!$E$2:BF232,7,0),0) -> 0
A16: 8 | B16: =IF(VLOOKUP(F16,Liste!E$2:F233,2,0)<VLOOKUP(F16,Liste!E9:J233,6,0),2,0) -> 0 | C16: =IF(VLOOKUP(F16,Liste!E$2:G233,3,0)=VLOOKUP(F16,Liste!E9:N233,10,0),2,0) -> 0 | D16: =IF(VLOOKUP(F16,Liste!E$2:F233,2,0)=0,3,0) -> 0 | E16: ● | F16: =IF($F$7="Obst und Gemüse",VLOOKUP(A16,Liste!B$2:E233,4,0),IF($F$7="Lidl",VLOOKUP(A16,Liste!C$2:E233,3,0))) -> Artikel 88 | G16: =IF(VLOOKUP(F16,Liste!E$2:F233,2,0)=VLOOKUP(F16,Liste!E9:N233,10,0),1,0) -> 0 | H16: =IF(AND(TODAY()<$H$8,VLOOKUP(F16,Liste!E$2:F233,2,0)=VLOOKUP(F16,Liste!E9:O233,11,0)),1,0) -> 0 | I16: =IF(AND(TODAY()<$I$8,VLOOKUP(F16,Liste!E$2:G233,3,0)=VLOOKUP(F16,Liste!E9:O233,11,0)),1,0) -> 0 | K16: =IFERROR(VLOOKUP(J16,Liste!$E$2:BF233,7,0),0) -> 0 | L16: =IFERROR(VLOOKUP(J16,Liste!$E$2:$H233,2,0),0) -> 0 | M16: =IFERROR(VLOOKUP(J16,Liste!$E$2:$I233,3,0),0) -> 0 | N16: =IFERROR(VLOOKUP(J16,Liste!$E$2:$J233,6,0),0) -> 0 | O16: 0 | R16: =IFERROR(VLOOKUP(Q16,Liste!$E$2:BF233,7,0),0) -> 0 | S16: =IFERROR(VLOOKUP(Q16,Liste!$E$2:$H233,2,0),0) -> 0 | T16: =IFERROR(VLOOKUP(Q16,Liste!$E$2:$I233,3,0),0) -> 0 | U16: =IFERROR(VLOOKUP(Q16,Liste!$E$2:$J233,6,0),0) -> 0 | V16: 0 | Y16: =IFERROR(VLOOKUP(X16,Liste!$E$2:BF233,7,0),0) -> 0 | Z16: =IFERROR(VLOOKUP(X16,Liste!$E$2:$H233,2,0),0) -> 0 | AA16: =IFERROR(VLOOKUP(X16,Liste!$E$2:$I233,3,0),0) -> 0 | AB16: =IFERROR(VLOOKUP(X16,Liste!$E$2:$J233,6,0),0) -> 0 | AC16: 0 | AD16: =IFERROR(VLOOKUP(X16,Liste!$E$2:BF233,7,0),0) -> 0 | AE16: =IFERROR(VLOOKUP(Q16,Liste!$E$2:BF233,7,0),0) -> 0 | AF16: =IFERROR(VLOOKUP(J16,Liste!$E$2:BF233,7,0),0) -> 0
A17: 9 | B17: =IF(VLOOKUP(F17,Liste!E$2:F234,2,0)<VLOOKUP(F17,Liste!E10:J234,6,0),2,0) -> 2 | C17: =IF(VLOOKUP(F17,Liste!E$2:G234,3,0)=VLOOKUP(F17,Liste!E10:N234,10,0),2,0) -> 0 | D17: =IF(VLOOKUP(F17,Liste!E$2:F234,2,0)=0,3,0) -> 0 | E17: ● | F17: =IF($F$7="Obst und Gemüse",VLOOKUP(A17,Liste!B$2:E234,4,0),IF($F$7="Lidl",VLOOKUP(A17,Liste!C$2:E234,3,0))) -> Artikel 89 | G17: =IF(VLOOKUP(F17,Liste!E$2:F234,2,0)=VLOOKUP(F17,Liste!E10:N234,10,0),1,0) -> 0 | H17: =IF(AND(TODAY()<$H$8,VLOOKUP(F17,Liste!E$2:F234,2,0)=VLOOKUP(F17,Liste!E10:O234,11,0)),1,0) -> 0 | I17: =IF(AND(TODAY()<$I$8,VLOOKUP(F17,Liste!E$2:G234,3,0)=VLOOKUP(F17,Liste!E10:O234,11,0)),1,0) -> 0 | K17: =IFERROR(VLOOKUP(J17,Liste!$E$2:BF234,7,0),0) -> 0 | L17: =IFERROR(VLOOKUP(J17,Liste!$E$2:$H234,2,0),0) -> 0 | M17: =IFERROR(VLOOKUP(J17,Liste!$E$2:$I234,3,0),0) -> 0 | N17: =IFERROR(VLOOKUP(J17,Liste!$E$2:$J234,6,0),0) -> 0 | O17: 0 | R17: =IFERROR(VLOOKUP(Q17,Liste!$E$2:BF234,7,0),0) -> 0 | S17: =IFERROR(VLOOKUP(Q17,Liste!$E$2:$H234,2,0),0) -> 0 | T17: =IFERROR(VLOOKUP(Q17,Liste!$E$2:$I234,3,0),0) -> 0 | U17: =IFERROR(VLOOKUP(Q17,Liste!$E$2:$J234,6,0),0) -> 0 | V17: 0 | Y17: =IFERROR(VLOOKUP(X17,Liste!$E$2:BF234,7,0),0) -> 0 | Z17: =IFERROR(VLOOKUP(X17,Liste!$E$2:$H234,2,0),0) -> 0 | AA17: =IFERROR(VLOOKUP(X17,Liste!$E$2:$I234,3,0),0) -> 0 | AB17: =IFERROR(VLOOKUP(X17,Liste!$E$2:$J234,6,0),0) -> 0 | AC17: 0 | AD17: =IFERROR(VLOOKUP(X17,Liste!$E$2:BF234,7,0),0) -> 0 | AE17: =IFERROR(VLOOKUP(Q17,Liste!$E$2:BF234,7,0),0) -> 0 | AF17: =IFERROR(VLOOKUP(J17,Liste!$E$2:BF234,7,0),0) -> 0
A18: 10 | B18: =IF(VLOOKUP(F18,Liste!E$2:F235,2,0)<VLOOKUP(F18,Liste!E11:J235,6,0),2,0) -> 0 | C18: =IF(VLOOKUP(F18,Liste!E$2:G235,3,0)=VLOOKUP(F18,Liste!E11:N235,10,0),2,0) -> 0 | D18: =IF(VLOOKUP(F18,Liste!E$2:F235,2,0)=0,3,0) -> 0 | E18: ● | F18: =IF($F$7="Obst und Gemüse",VLOOKUP(A18,Liste!B$2:E235,4,0),IF($F$7="Lidl",VLOOKUP(A18,Liste!C$2:E235,3,0))) -> Artikel 90 | G18: =IF(VLOOKUP(F18,Liste!E$2:F235,2,0)=VLOOKUP(F18,Liste!E11:N235,10,0),1,0) -> 0 | H18: =IF(AND(TODAY()<$H$8,VLOOKUP(F18,Liste!E$2:F235,2,0)=VLOOKUP(F18,Liste!E11:O235,11,0)),1,0) -> 1 | I18: =IF(AND(TODAY()<$I$8,VLOOKUP(F18,Liste!E$2:G235,3,0)=VLOOKUP(F18,Liste!E11:O235,11,0)),1,0) -> 1 | K18: =IFERROR(VLOOKUP(J18,Liste!$E$2:BF235,7,0),0) -> 0 | L18: =IFERROR(VLOOKUP(J18,Liste!$E$2:$H235,2,0),0) -> 0 | M18: =IFERROR(VLOOKUP(J18,Liste!$E$2:$I235,3,0),0) -> 0 | N18: =IFERROR(VLOOKUP(J18,Liste!$E$2:$J235,6,0),0) -> 0 | O18: 0 | R18: =IFERROR(VLOOKUP(Q18,Liste!$E$2:BF235,7,0),0) -> 0 | S18: =IFERROR(VLOOKUP(Q18,Liste!$E$2:$H235,2,0),0) -> 0 | T18: =IFERROR(VLOOKUP(Q18,Liste!$E$2:$I235,3,0),0) -> 0 | U18: =IFERROR(VLOOKUP(Q18,Liste!$E$2:$J235,6,0),0) -> 0 | V18: 0 | Y18: =IFERROR(VLOOKUP(X18,Liste!$E$2:BF235,7,0),0) -> 0 | Z18: =IFERROR(VLOOKUP(X18,Liste!$E$2:$H235,2,0),0) -> 0 | AA18: =IFERROR(VLOOKUP(X18,Liste!$E$2:$I235,3,0),0) -> 0 | AB18: =IFERROR(VLOOKUP(X18,Liste!$E$2:$J235,6,0),0) -> 0 | AC18: 0 | AD18: =IFERROR(VLOOKUP(X18,Liste!$E$2:BF235,7,0),0) -> 0 | AE18: =IFERROR(VLOOKUP(Q18,Liste!$E$2:BF235,7,0),0) -> 0 | AF18: =IFERROR(VLOOKUP(J18,Liste!$E$2:BF235,7,0),0) -> 0
A19: 11 | B19: =IF(VLOOKUP(F19,Liste!E$2:F236,2,0)<VLOOKUP(F19,Liste!E12:J236,6,0),2,0) -> 0 | C19: =IF(VLOOKUP(F19,Liste!E$2:G236,3,0)=VLOOKUP(F19,Liste!E12:N236,10,0),2,0) -> 2 | D19: =IF(VLOOKUP(F19,Liste!E$2:F236,2,0)=0,3,0) -> 0 | E19: ● | F19: =IF($F$7="Obst und Gemüse",VLOOKUP(A19,Liste!B$2:E236,4,0),IF($F$7="Lidl",VLOOKUP(A19,Liste!C$2:E236,3,0))) -> Artikel 91 | G19: =IF(VLOOKUP(F19,Liste!E$2:F236,2,0)=VLOOKUP(F19,Liste!E12:N236,10,0),1,0) -> 1 | H19: =IF(AND(TODAY()<$H$8,VLOOKUP(F19,Liste!E$2:F236,2,0)=VLOOKUP(F19,Liste!E12:O236,11,0)),1,0) -> 0 | I19: =IF(AND(TODAY()<$I$8,VLOOKUP(F19,Liste!E$2:G236,3,0)=VLOOKUP(F19,Liste!E12:O236,11,0)),1,0) -> 0 | K19: =IFERROR(VLOOKUP(J19,Liste!$E$2:BF236,7,0),0) -> 0 | L19: =IFERROR(VLOOKUP(J19,Liste!$E$2:$H236,2,0),0) -> 0 | M19: =IFERROR(VLOOKUP(J19,Liste!$E$2:$I236,3,0),0) -> 0 | N19: =IFERROR(VLOOKUP(J19,Liste!$E$2:$J236,6,0),0) -> 0 | O19: 0 | R19: =IFERROR(VLOOKUP(Q19,Liste!$E$2:BF236,7,0),0) -> 0 | S19: =IFERROR(VLOOKUP(Q19,Liste!$E$2:$H236,2,0),0) -> 0 | T19: =IFERROR(VLOOKUP(Q19,Liste!$E$2:$I236,3,0),0) -> 0 | U19: =IFERROR(VLOOKUP(Q19,Liste!$E$2:$J236,6,0),0) -> 0 | V19: 0 | Y19: =IFERROR(VLOOKUP(X19,Liste!$E$2:BF236,7,0),0) -> 0 | Z19: =IFERROR(VLOOKUP(X19,Liste!$E$2:$H236,2,0),0) -> 0 | AA19: =IFERROR(VLOOKUP(X19,Liste!$E$2:$I236,3,0),0) -> 0 | AB19: =IFERROR(VLOOKUP(X19,Liste!$E$2:$J236,6,0),0) -> 0 | AC19: 0 | AD19: =IFERROR(VLOOKUP(X19,Liste!$E$2:BF236,7,0),0) -> 0 | AE19: =IFERROR(VLOOKUP(Q19,Liste!$E$2:BF236,7,0),0) -> 0 | AF19: =IFERROR(VLOOKUP(J19,Liste!$E$2:BF236,7,0),0) -> 0
A20: 12 | B20: =IF(VLOOKUP(F20,Liste!E$2:F237,2,0)<VLOOKUP(F20,Liste!E13:J237,6,0),2,0) -> 0 | C20: =IF(VLOOKUP(F20,Liste!E$2:G237,3,0)=VLOOKUP(F20,Liste!E13:N237,10,0),2,0) -> 0 | D20: =IF(VLOOKUP(F20,Liste!E$2:F237,2,0)=0,3,0) -> 0 | E20: ● | F20: =IF($F$7="Obst und Gemüse",VLOOKUP(A20,Liste!B$2:E237,4,0),IF($F$7="Lidl",VLOOKUP(A20,Liste!C$2:E237,3,0))) -> Artikel 93 | G20: =IF(VLOOKUP(F20,Liste!E$2:F237,2,0)=VLOOKUP(F20,Liste!E13:N237,10,0),1,0) -> 0 | H20: =IF(AND(TODAY()<$H$8,VLOOKUP(F20,Liste!E$2:F237,2,0)=VLOOKUP(F20,Liste!E13:O237,11,0)),1,0) -> 1 | I20: =IF(AND(TODAY()<$I$8,VLOOKUP(F20,Liste!E$2:G237,3,0)=VLOOKUP(F20,Liste!E13:O237,11,0)),1,0) -> 0 | K20: =IFERROR(VLOOKUP(J20,Liste!$E$2:BF237,7,0),0) -> 0 | L20: =IFERROR(VLOOKUP(J20,Liste!$E$2:$H237,2,0),0) -> 0 | M20: =IFERROR(VLOOKUP(J20,Liste!$E$2:$I237,3,0),0) -> 0 | N20: =IFERROR(VLOOKUP(J20,Liste!$E$2:$J237,6,0),0) -> 0 | O20: 0 | R20: =IFERROR(VLOOKUP(Q20,Liste!$E$2:BF237,7,0),0) -> 0 | S20: =IFERROR(VLOOKUP(Q20,Liste!$E$2:$H237,2,0),0) -> 0 | T20: =IFERROR(VLOOKUP(Q20,Liste!$E$2:$I237,3,0),0) -> 0 | U20: =IFERROR(VLOOKUP(Q20,Liste!$E$2:$J237,6,0),0) -> 0 | V20: 0 | Y20: =IFERROR(VLOOKUP(X20,Liste!$E$2:BF237,7,0),0) -> 0 | Z20: =IFERROR(VLOOKUP(X20,Liste!$E$2:$H237,2,0),0) -> 0 | AA20: =IFERROR(VLOOKUP(X20,Liste!$E$2:$I237,3,0),0) -> 0 | AB20: =IFERROR(VLOOKUP(X20,Liste!$E$2:$J237,6,0),0) -> 0 | AC20: 0 | AD20: =IFERROR(VLOOKUP(X20,Liste!$E$2:BF237,7,0),0) -> 0 | AE20: =IFERROR(VLOOKUP(Q20,Liste!$E$2:BF237,7,0),0) -> 0 | AF20: =IFERROR(VLOOKUP(J20,Liste!$E$2:BF237,7,0),0) -> 0
A21: 13 | B21: =IF(VLOOKUP(F21,Liste!E$2:F238,2,0)<VLOOKUP(F21,Liste!E14:J238,6,0),2,0) -> 2 | C21: =IF(VLOOKUP(F21,Liste!E$2:G238,3,0)=VLOOKUP(F21,Liste!E14:N238,10,0),2,0) -> 0 | D21: =IF(VLOOKUP(F21,Liste!E$2:F238,2,0)=0,3,0) -> 0 | E21: ● | F21: =IF($F$7="Obst und Gemüse",VLOOKUP(A21,Liste!B$2:E238,4,0),IF($F$7="Lidl",VLOOKUP(A21,Liste!C$2:E238,3,0))) -> Artikel 94 | G21: =IF(VLOOKUP(F21,Liste!E$2:F238,2,0)=VLOOKUP(F21,Liste!E14:N238,10,0),1,0) -> 0 | H21: =IF(AND(TODAY()<$H$8,VLOOKUP(F21,Liste!E$2:F238,2,0)=VLOOKUP(F21,Liste!E14:O238,11,0)),1,0) -> 0 | I21: =IF(AND(TODAY()<$I$8,VLOOKUP(F21,Liste!E$2:G238,3,0)=VLOOKUP(F21,Liste!E14:O238,11,0)),1,0) -> 0 | K21: =IFERROR(VLOOKUP(J21,Liste!$E$2:BF238,7,0),0) -> 0 | L21: =IFERROR(VLOOKUP(J21,Liste!$E$2:$H238,2,0),0) -> 0 | M21: =IFERROR(VLOOKUP(J21,Liste!$E$2:$I238,3,0),0) -> 0 | N21: =IFERROR(VLOOKUP(J21,Liste!$E$2:$J238,6,0),0) -> 0 | O21: =IF(K21>0,(K21*N21),0) -> 0 | R21: =IFERROR(VLOOKUP(Q21,Liste!$E$2:BF238,7,0),0) -> 0 | S21: =IFERROR(VLOOKUP(Q21,Liste!$E$2:$H238,2,0),0) -> 0 | T21: =IFERROR(VLOOKUP(Q21,Liste!$E$2:$I238,3,0),0) -> 0 | U21: =IFERROR(VLOOKUP(Q21,Liste!$E$2:$J238,6,0),0) -> 0 | V21: 0 | Y21: =IFERROR(VLOOKUP(X21,Liste!$E$2:BF238,7,0),0) -> 0 | Z21: =IFERROR(VLOOKUP(X21,Liste!$E$2:$H238,2,0),0) -> 0 | AA21: =IFERROR(VLOOKUP(X21,Liste!$E$2:$I238,3,0),0) -> 0 | AB21: =IFERROR(VLOOKUP(X21,Liste!$E$2:$J238,6,0),0) -> 0 | AC21: 0 | AD21: =IFERROR(VLOOKUP(X21,Liste!$E$2:BF238,7,0),0) -> 0 | AE21: =IFERROR(VLOOKUP(Q21,Liste!$E$2:BF238,7,0),0) -> 0 | AF21: =IFERROR(VLOOKUP(J21,Liste!$E$2:BF238,7,0),0) -> 0
A22: 14 | B22: =IF(VLOOKUP(F22,Liste!E$2:F239,2,0)<VLOOKUP(F22,Liste!E15:J239,6,0),2,0) -> 0 | C22: =IF(VLOOKUP(F22,Liste!E$2:G239,3,0)=VLOOKUP(F22,Liste!E15:N239,10,0),2,0) -> 0 | D22: =IF(VLOOKUP(F22,Liste!E$2:F239,2,0)=0,3,0) -> 0 | E22: ● | F22: =IF($F$7="Obst und Gemüse",VLOOKUP(A22,Liste!B$2:E239,4,0),IF($F$7="Lidl",VLOOKUP(A22,Liste!C$2:E239,3,0))) -> Artikel 95 | G22: =IF(VLOOKUP(F22,Liste!E$2:F239,2,0)=VLOOKUP(F22,Liste!E15:N239,10,0),1,0) -> 0 | H22: =IF(AND(TODAY()<$H$8,VLOOKUP(F22,Liste!E$2:F239,2,0)=VLOOKUP(F22,Liste!E15:O239,11,0)),1,0) -> 0 | I22: =IF(AND(TODAY()<$I$8,VLOOKUP(F22,Liste!E$2:G239,3,0)=VLOOKUP(F22,Liste!E15:O239,11,0)),1,0) -> 0 | K22: =IFERROR(VLOOKUP(J22,Liste!$E$2:BF239,7,0),0) -> 0 | L22: =IFERROR(VLOOKUP(J22,Liste!$E$2:$H239,2,0),0) -> 0 | M22: =IFERROR(VLOOKUP(J22,Liste!$E$2:$I239,3,0),0) -> 0 | N22: =IFERROR(VLOOKUP(J22,Liste!$E$2:$J239,6,0),0) -> 0 | O22: 0 | R22: =IFERROR(VLOOKUP(Q22,Liste!$E$2:BF239,7,0),0) -> 0 | S22: =IFERROR(VLOOKUP(Q22,Liste!$E$2:$H239,2,0),0) -> 0 | T22: =IFERROR(VLOOKUP(Q22,Liste!$E$2:$I239,3,0),0) -> 0 | U22: =IFERROR(VLOOKUP(Q22,Liste!$E$2:$J239,6,0),0) -> 0 | V22: 0 | Y22: =IFERROR(VLOOKUP(X22,Liste!$E$2:BF239,7,0),0) -> 0 | Z22: =IFERROR(VLOOKUP(X22,Liste!$E$2:$H239,2,0),0) -> 0 | AA22: =IFERROR(VLOOKUP(X22,Liste!$E$2:$I239,3,0),0) -> 0 | AB22: =IFERROR(VLOOKUP(X22,Liste!$E$2:$J239,6,0),0) -> 0 | AC22: 0 | AD22: =IFERROR(VLOOKUP(X22,Liste!$E$2:BF239,7,0),0) -> 0 | AE22: =IFERROR(VLOOKUP(Q22,Liste!$E$2:BF239,7,0),0) -> 0 | AF22: =IFERROR(VLOOKUP(J22,Liste!$E$2:BF239,7,0),0) -> 0
A23: 15 | B23: =IF(VLOOKUP(F23,Liste!E$2:F240,2,0)<VLOOKUP(F23,Liste!E16:J240,6,0),2,0) -> 2 | C23: =IF(VLOOKUP(F23,Liste!E$2:G240,3,0)=VLOOKUP(F23,Liste!E16:N240,10,0),2,0) -> 0 | D23: =IF(VLOOKUP(F23,Liste!E$2:F240,2,0)=0,3,0) -> 0 | E23: ● | F23: =IF($F$7="Obst und Gemüse",VLOOKUP(A23,Liste!B$2:E240,4,0),IF($F$7="Lidl",VLOOKUP(A23,Liste!C$2:E240,3,0))) -> Artikel 106 | G23: =IF(VLOOKUP(F23,Liste!E$2:F240,2,0)=VLOOKUP(F23,Liste!E16:N240,10,0),1,0) -> 0 | H23: =IF(AND(TODAY()<$H$8,VLOOKUP(F23,Liste!E$2:F240,2,0)=VLOOKUP(F23,Liste!E16:O240,11,0)),1,0) -> 0 | I23: =IF(AND(TODAY()<$I$8,VLOOKUP(F23,Liste!E$2:G240,3,0)=VLOOKUP(F23,Liste!E16:O240,11,0)),1,0) -> 0 | K23: =IFERROR(VLOOKUP(J23,Liste!$E$2:BF240,7,0),0) -> 0 | L23: =IFERROR(VLOOKUP(J23,Liste!$E$2:$H240,2,0),0) -> 0 | M23: =IFERROR(VLOOKUP(J23,Liste!$E$2:$I240,3,0),0) -> 0 | N23: =IFERROR(VLOOKUP(J23,Liste!$E$2:$J240,6,0),0) -> 0 | O23: 0 | R23: =IFERROR(VLOOKUP(Q23,Liste!$E$2:BF240,7,0),0) -> 0 | S23: =IFERROR(VLOOKUP(Q23,Liste!$E$2:$H240,2,0),0) -> 0 | T23: =IFERROR(VLOOKUP(Q23,Liste!$E$2:$I240,3,0),0) -> 0 | U23: =IFERROR(VLOOKUP(Q23,Liste!$E$2:$J240,6,0),0) -> 0 | V23: 0 | Y23: =IFERROR(VLOOKUP(X23,Liste!$E$2:BF240,7,0),0) -> 0 | Z23: =IFERROR(VLOOKUP(X23,Liste!$E$2:$H240,2,0),0) -> 0 | AA23: =IFERROR(VLOOKUP(X23,Liste!$E$2:$I240,3,0),0) -> 0 | AB23: =IFERROR(VLOOKUP(X23,Liste!$E$2:$J240,6,0),0) -> 0 | AC23: 0 | AD23: =IFERROR(VLOOKUP(X23,Liste!$E$2:BF240,7,0),0) -> 0 | AE23: =IFERROR(VLOOKUP(Q23,Liste!$E$2:BF240,7,0),0) -> 0 | AF23: =IFERROR(VLOOKUP(J23,Liste!$E$2:BF240,7,0),0) -> 0
A24: 16 | B24: =IF(VLOOKUP(F24,Liste!E$2:F241,2,0)<VLOOKUP(F24,Liste!E17:J241,6,0),2,0) -> 0 | C24: =IF(VLOOKUP(F24,Liste!E$2:G241,3,0)=VLOOKUP(F24,Liste!E17:N241,10,0),2,0) -> 0 | D24: =IF(VLOOKUP(F24,Liste!E$2:F241,2,0)=0,3,0) -> 0 | E24: ● | F24: =IF($F$7="Obst und Gemüse",VLOOKUP(A24,Liste!B$2:E241,4,0),IF($F$7="Lidl",VLOOKUP(A24,Liste!C$2:E241,3,0))) -> Artikel 126 | G24: =IF(VLOOKUP(F24,Liste!E$2:F241,2,0)=VLOOKUP(F24,Liste!E17:N241,10,0),1,0) -> 1 | H24: =IF(AND(TODAY()<$H$8,VLOOKUP(F24,Liste!E$2:F241,2,0)=VLOOKUP(F24,Liste!E17:O241,11,0)),1,0) -> 0 | I24: =IF(AND(TODAY()<$I$8,VLOOKUP(F24,Liste!E$2:G241,3,0)=VLOOKUP(F24,Liste!E17:O241,11,0)),1,0) -> 0 | K24: =IFERROR(VLOOKUP(J24,Liste!$E$2:BF241,7,0),0) -> 0 | L24: =IFERROR(VLOOKUP(J24,Liste!$E$2:$H241,2,0),0) -> 0 | M24: =IFERROR(VLOOKUP(J24,Liste!$E$2:$I241,3,0),0) -> 0 | N24: =IFERROR(VLOOKUP(J24,Liste!$E$2:$J241,6,0),0) -> 0 | O24: 0 | R24: =IFERROR(VLOOKUP(Q24,Liste!$E$2:BF241,7,0),0) -> 0 | S24: =IFERROR(VLOOKUP(Q24,Liste!$E$2:$H241,2,0),0) -> 0 | T24: =IFERROR(VLOOKUP(Q24,Liste!$E$2:$I241,3,0),0) -> 0 | U24: =IFERROR(VLOOKUP(Q24,Liste!$E$2:$J241,6,0),0) -> 0 | V24: 0 | Y24: =IFERROR(VLOOKUP(X24,Liste!$E$2:BF241,7,0),0) -> 0 | Z24: =IFERROR(VLOOKUP(X24,Liste!$E$2:$H241,2,0),0) -> 0 | AA24: =IFERROR(VLOOKUP(X24,Liste!$E$2:$I241,3,0),0) -> 0 | AB24: =IFERROR(VLOOKUP(X24,Liste!$E$2:$J241,6,0),0) -> 0 | AC24: 0 | AD24: =IFERROR(VLOOKUP(X24,Liste!$E$2:BF241,7,0),0) -> 0 | AE24: =IFERROR(VLOOKUP(Q24,Liste!$E$2:BF241,7,0),0) -> 0 | AF24: =IFERROR(VLOOKUP(J24,Liste!$E$2:BF241,7,0),0) -> 0
A25: 17 | B25: =IF(VLOOKUP(F25,Liste!E$2:F242,2,0)<VLOOKUP(F25,Liste!E18:J242,6,0),2,0) -> 0 | C25: =IF(VLOOKUP(F25,Liste!E$2:G242,3,0)=VLOOKUP(F25,Liste!E18:N242,10,0),2,0) -> 0 | D25: =IF(VLOOKUP(F25,Liste!E$2:F242,2,0)=0,3,0) -> 0 | E25: ● | F25: =IF($F$7="Obst und Gemüse",VLOOKUP(A25,Liste!B$2:E242,4,0),IF($F$7="Lidl",VLOOKUP(A25,Liste!C$2:E242,3,0))) -> Artikel 142 | G25: =IF(VLOOKUP(F25,Liste!E$2:F242,2,0)=VLOOKUP(F25,Liste!E18:N242,10,0),1,0) -> 0 | H25: =IF(AND(TODAY()<$H$8,VLOOKUP(F25,Liste!E$2:F242,2,0)=VLOOKUP(F25,Liste!E18:O242,11,0)),1,0) -> 0 | I25: =IF(AND(TODAY()<$I$8,VLOOKUP(F25,Liste!E$2:G242,3,0)=VLOOKUP(F25,Liste!E18:O242,11,0)),1,0) -> 0 | K25: =IFERROR(VLOOKUP(J25,Liste!$E$2:BF242,7,0),0) -> 0 | L25: =IFERROR(VLOOKUP(J25,Liste!$E$2:$H242,2,0),0) -> 0 | M25: =IFERROR(VLOOKUP(J25,Liste!$E$2:$I242,3,0),0) -> 0 | N25: =IFERROR(VLOOKUP(J25,Liste!$E$2:$J242,6,0),0) -> 0 | O25: 0 | R25: =IFERROR(VLOOKUP(Q25,Liste!$E$2:BF242,7,0),0) -> 0 | S25: =IFERROR(VLOOKUP(Q25,Liste!$E$2:$H242,2,0),0) -> 0 | T25: =IFERROR(VLOOKUP(Q25,Liste!$E$2:$I242,3,0),0) -> 0 | U25: =IFERROR(VLOOKUP(Q25,Liste!$E$2:$J242,6,0),0) -> 0 | V25: 0 | Y25: =IFERROR(VLOOKUP(X25,Liste!$E$2:BF242,7,0),0) -> 0 | Z25: =IFERROR(VLOOKUP(X25,Liste!$E$2:$H242,2,0),0) -> 0 | AA25: =IFERROR(VLOOKUP(X25,Liste!$E$2:$I242,3,0),0) -> 0 | AB25: =IFERROR(VLOOKUP(X25,Liste!$E$2:$J242,6,0),0) -> 0 | AC25: 0 | AD25: =IFERROR(VLOOKUP(X25,Liste!$E$2:BF242,7,0),0) -> 0 | AE25: =IFERROR(VLOOKUP(Q25,Liste!$E$2:BF242,7,0),0) -> 0 | AF25: =IFERROR(VLOOKUP(J25,Liste!$E$2:BF242,7,0),0) -> 0
A26: 18 | B26: =IF(VLOOKUP(F26,Liste!E$2:F243,2,0)<VLOOKUP(F26,Liste!E19:J243,6,0),2,0) -> 0 | C26: =IF(VLOOKUP(F26,Liste!E$2:G243,3,0)=VLOOKUP(F26,Liste!E19:N243,10,0),2,0) -> 0 | D26: =IF(VLOOKUP(F26,Liste!E$2:F243,2,0)=0,3,0) -> 0 | E26: ● | F26: =IF($F$7="Obst und Gemüse",VLOOKUP(A26,Liste!B$2:E243,4,0),IF($F$7="Lidl",VLOOKUP(A26,Liste!C$2:E243,3,0))) -> Artikel 143 | G26: =IF(VLOOKUP(F26,Liste!E$2:F243,2,0)=VLOOKUP(F26,Liste!E19:N243,10,0),1,0) -> 0 | H26: =IF(AND(TODAY()<$H$8,VLOOKUP(F26,Liste!E$2:F243,2,0)=VLOOKUP(F26,Liste!E19:O243,11,0)),1,0) -> 0 | I26: =IF(AND(TODAY()<$I$8,VLOOKUP(F26,Liste!E$2:G243,3,0)=VLOOKUP(F26,Liste!E19:O243,11,0)),1,0) -> 0 | K26: =IFERROR(VLOOKUP(J26,Liste!$E$2:BF243,7,0),0) -> 0 | L26: =IFERROR(VLOOKUP(J26,Liste!$E$2:$H243,2,0),0) -> 0 | M26: =IFERROR(VLOOKUP(J26,Liste!$E$2:$I243,3,0),0) -> 0 | N26: =IFERROR(VLOOKUP(J26,Liste!$E$2:$J243,6,0),0) -> 0 | O26: 0 | R26: =IFERROR(VLOOKUP(Q26,Liste!$E$2:BF243,7,0),0) -> 0 | S26: =IFERROR(VLOOKUP(Q26,Liste!$E$2:$H243,2,0),0) -> 0 | T26: =IFERROR(VLOOKUP(Q26,Liste!$E$2:$I243,3,0),0) -> 0 | U26: =IFERROR(VLOOKUP(Q26,Liste!$E$2:$J243,6,0),0) -> 0 | V26: 0 | Y26: =IFERROR(VLOOKUP(X26,Liste!$E$2:BF243,7,0),0) -> 0 | Z26: =IFERROR(VLOOKUP(X26,Liste!$E$2:$H243,2,0),0) -> 0 | AA26: =IFERROR(VLOOKUP(X26,Liste!$E$2:$I243,3,0),0) -> 0 | AB26: =IFERROR(VLOOKUP(X26,Liste!$E$2:$J243,6,0),0) -> 0 | AC26: 0 | AD26: =IFERROR(VLOOKUP(X26,Liste!$E$2:BF243,7,0),0) -> 0 | AE26: =IFERROR(VLOOKUP(Q26,Liste!$E$2:BF243,7,0),0) -> 0 | AF26: =IFERROR(VLOOKUP(J26,Liste!$E$2:BF243,7,0),0) -> 0
A27: 19 | B27: =IF(VLOOKUP(F27,Liste!E$2:F244,2,0)<VLOOKUP(F27,Liste!E20:J244,6,0),2,0) -> 0 | C27: =IF(VLOOKUP(F27,Liste!E$2:G244,3,0)=VLOOKUP(F27,Liste!E20:N244,10,0),2,0) -> 0 | D27: =IF(VLOOKUP(F27,Liste!E$2:F244,2,0)=0,3,0) -> 0 | E27: ● | F27: =IF($F$7="Obst und Gemüse",VLOOKUP(A27,Liste!B$2:E244,4,0),IF($F$7="Lidl",VLOOKUP(A27,Liste!C$2:E244,3,0))) -> Artikel 144 | G27: =IF(VLOOKUP(F27,Liste!E$2:F244,2,0)=VLOOKUP(F27,Liste!E20:N244,10,0),1,0) -> 0 | H27: =IF(AND(TODAY()<$H$8,VLOOKUP(F27,Liste!E$2:F244,2,0)=VLOOKUP(F27,Liste!E20:O244,11,0)),1,0) -> 0 | I27: =IF(AND(TODAY()<$I$8,VLOOKUP(F27,Liste!E$2:G244,3,0)=VLOOKUP(F27,Liste!E20:O244,11,0)),1,0) -> 0 | K27: =IFERROR(VLOOKUP(J27,Liste!$E$2:BF244,7,0),0) -> 0 | L27: =IFERROR(VLOOKUP(J27,Liste!$E$2:$H244,2,0),0) -> 0 | M27: =IFERROR(VLOOKUP(J27,Liste!$E$2:$I244,3,0),0) -> 0 | N27: =IFERROR(VLOOKUP(J27,Liste!$E$2:$J244,6,0),0) -> 0 | O27: 0 | R27: =IFERROR(VLOOKUP(Q27,Liste!$E$2:BF244,7,0),0) -> 0 | S27: =IFERROR(VLOOKUP(Q27,Liste!$E$2:$H244,2,0),0) -> 0 | T27: =IFERROR(VLOOKUP(Q27,Liste!$E$2:$I244,3,0),0) -> 0 | U27: =IFERROR(VLOOKUP(Q27,Liste!$E$2:$J244,6,0),0) -> 0 | V27: 0 | Y27: =IFERROR(VLOOKUP(X27,Liste!$E$2:BF244,7,0),0) -> 0 | Z27: =IFERROR(VLOOKUP(X27,Liste!$E$2:$H244,2,0),0) -> 0 | AA27: =IFERROR(VLOOKUP(X27,Liste!$E$2:$I244,3,0),0) -> 0 | AB27: =IFERROR(VLOOKUP(X27,Liste!$E$2:$J244,6,0),0) -> 0 | AC27: 0 | AD27: =IFERROR(VLOOKUP(X27,Liste!$E$2:BF244,7,0),0) -> 0 | AE27: =IFERROR(VLOOKUP(Q27,Liste!$E$2:BF244,7,0),0) -> 0 | AF27: =IFERROR(VLOOKUP(J27,Liste!$E$2:BF244,7,0),0) -> 0
A28: 20 | B28: =IF(VLOOKUP(F28,Liste!E$2:F245,2,0)<VLOOKUP(F28,Liste!E21:J245,6,0),2,0) -> 2 | C28: =IF(VLOOKUP(F28,Liste!E$2:G245,3,0)=VLOOKUP(F28,Liste!E21:N245,10,0),2,0) -> 0 | D28: =IF(VLOOKUP(F28,Liste!E$2:F245,2,0)=0,3,0) -> 0 | E28: ● | F28: =IF($F$7="Obst und Gemüse",VLOOKUP(A28,Liste!B$2:E245,4,0),IF($F$7="Lidl",VLOOKUP(A28,Liste!C$2:E245,3,0))) -> Artikel 145 | G28: =IF(VLOOKUP(F28,Liste!E$2:F245,2,0)=VLOOKUP(F28,Liste!E21:N245,10,0),1,0) -> 0 | H28: =IF(AND(TODAY()<$H$8,VLOOKUP(F28,Liste!E$2:F245,2,0)=VLOOKUP(F28,Liste!E21:O245,11,0)),1,0) -> 0 | I28: =IF(AND(TODAY()<$I$8,VLOOKUP(F28,Liste!E$2:G245,3,0)=VLOOKUP(F28,Liste!E21:O245,11,0)),1,0) -> 0 | K28: =IFERROR(VLOOKUP(J28,Liste!$E$2:BF245,7,0),0) -> 0 | L28: =IFERROR(VLOOKUP(J28,Liste!$E$2:$H245,2,0),0) -> 0 | M28: =IFERROR(VLOOKUP(J28,Liste!$E$2:$I245,3,0),0) -> 0 | N28: =IFERROR(VLOOKUP(J28,Liste!$E$2:$J245,6,0),0) -> 0 | O28: =IF(K28>0,(K28*N28),0) -> 0 | R28: =IFERROR(VLOOKUP(Q28,Liste!$E$2:BF245,7,0),0) -> 0 | S28: =IFERROR(VLOOKUP(Q28,Liste!$E$2:$H245,2,0),0) -> 0 | T28: =IFERROR(VLOOKUP(Q28,Liste!$E$2:$I245,3,0),0) -> 0 | U28: =IFERROR(VLOOKUP(Q28,Liste!$E$2:$J245,6,0),0) -> 0 | V28: =IF(R28>0,(R28*U28),0) -> 0 | Y28: =IFERROR(VLOOKUP(X28,Liste!$E$2:BF245,7,0),0) -> 0 | Z28: =IFERROR(VLOOKUP(X28,Liste!$E$2:$H245,2,0),0) -> 0 | AA28: =IFERROR(VLOOKUP(X28,Liste!$E$2:$I245,3,0),0) -> 0 | AB28: =IFERROR(VLOOKUP(X28,Liste!$E$2:$J245,6,0),0) -> 0 | AC28: 0 | AD28: =IFERROR(VLOOKUP(X28,Liste!$E$2:BF245,7,0),0) -> 0 | AE28: =IFERROR(VLOOKUP(Q28,Liste!$E$2:BF245,7,0),0) -> 0 | AF28: =IFERROR(VLOOKUP(J28,Liste!$E$2:BF245,7,0),0) -> 0
A29: 21 | B29: =IF(VLOOKUP(F29,Liste!E$2:F246,2,0)<VLOOKUP(F29,Liste!E22:J246,6,0),2,0) -> 0 | C29: =IF(VLOOKUP(F29,Liste!E$2:G246,3,0)=VLOOKUP(F29,Liste!E22:N246,10,0),2,0) -> 0 | D29: =IF(VLOOKUP(F29,Liste!E$2:F246,2,0)=0,3,0) -> 0 | E29: ● | F29: =IF($F$7="Obst und Gemüse",VLOOKUP(A29,Liste!B$2:E246,4,0),IF($F$7="Lidl",VLOOKUP(A29,Liste!C$2:E246,3,0))) -> Artikel 170 | G29: =IF(VLOOKUP(F29,Liste!E$2:F246,2,0)=VLOOKUP(F29,Liste!E22:N246,10,0),1,0) -> 0 | H29: =IF(AND(TODAY()<$H$8,VLOOKUP(F29,Liste!E$2:F246,2,0)=VLOOKUP(F29,Liste!E22:O246,11,0)),1,0) -> 1 | I29: =IF(AND(TODAY()<$I$8,VLOOKUP(F29,Liste!E$2:G246,3,0)=VLOOKUP(F29,Liste!E22:O246,11,0)),1,0) -> 1 | J29: =J5 -> 0 | O29: =IF(OR(J29="Bonus",J29="COUPON"),-500,0) -> 0 | Q29: =Q5 -> 0 | V29: =IF(OR(Q29="Bonus",Q29="COUPON"),-500,0) -> 0 | W29: ● | X29: =X5 -> 0 | AC29: =IF(OR(X29="Bonus",X29="COUPON"),-500,0) -> 0
A30: 22 | B30: =IF(VLOOKUP(F30,Liste!E$2:F247,2,0)<VLOOKUP(F30,Liste!E23:J247,6,0),2,0) -> 0 | C30: =IF(VLOOKUP(F30,Liste!E$2:G247,3,0)=VLOOKUP(F30,Liste!E23:N247,10,0),2,0) -> 0 | D30: =IF(VLOOKUP(F30,Liste!E$2:F247,2,0)=0,3,0) -> 0 | E30: ● | F30: =IF($F$7="Obst und Gemüse",VLOOKUP(A30,Liste!B$2:E247,4,0),IF($F$7="Lidl",VLOOKUP(A30,Liste!C$2:E247,3,0))) -> Artikel 171 | G30: =IF(VLOOKUP(F30,Liste!E$2:F247,2,0)=VLOOKUP(F30,Liste!E23:N247,10,0),1,0) -> 1 | H30: =IF(AND(TODAY()<$H$8,VLOOKUP(F30,Liste!E$2:F247,2,0)=VLOOKUP(F30,Liste!E23:O247,11,0)),1,0) -> 0 | I30: =IF(AND(TODAY()<$I$8,VLOOKUP(F30,Liste!E$2:G247,3,0)=VLOOKUP(F30,Liste!E23:O247,11,0)),1,0) -> 0
A31: 23 | B31: =IF(VLOOKUP(F31,Liste!E$2:F248,2,0)<VLOOKUP(F31,Liste!E24:J248,6,0),2,0) -> 0 | C31: =IF(VLOOKUP(F31,Liste!E$2:G248,3,0)=VLOOKUP(F31,Liste!E24:N248,10,0),2,0) -> 0 | D31: =IF(VLOOKUP(F31,Liste!E$2:F248,2,0)=0,3,0) -> 0 | E31: ● | F31: =IF($F$7="Obst und Gemüse",VLOOKUP(A31,Liste!B$2:E248,4,0),IF($F$7="Lidl",VLOOKUP(A31,Liste!C$2:E248,3,0))) -> Artikel 200 | G31: =IF(VLOOKUP(F31,Liste!E$2:F248,2,0)=VLOOKUP(F31,Liste!E24:N248,10,0),1,0) -> 0 | H31: =IF(AND(TODAY()<$H$8,VLOOKUP(F31,Liste!E$2:F248,2,0)=VLOOKUP(F31,Liste!E24:O248,11,0)),1,0) -> 1 | I31: =IF(AND(TODAY()<$I$8,VLOOKUP(F31,Liste!E$2:G248,3,0)=VLOOKUP(F31,Liste!E24:O248,11,0)),1,0) -> 0
A32: 24 | B32: =IF(VLOOKUP(F32,Liste!E$2:F249,2,0)<VLOOKUP(F32,Liste!E25:J249,6,0),2,0) -> 0 | C32: =IF(VLOOKUP(F32,Liste!E$2:G249,3,0)=VLOOKUP(F32,Liste!E25:N249,10,0),2,0) -> 0 | D32: =IF(VLOOKUP(F32,Liste!E$2:F249,2,0)=0,3,0) -> 0 | E32: ● | F32: =IF($F$7="Obst und Gemüse",VLOOKUP(A32,Liste!B$2:E249,4,0),IF($F$7="Lidl",VLOOKUP(A32,Liste!C$2:E249,3,0))) -> Artikel 205 | G32: =IF(VLOOKUP(F32,Liste!E$2:F249,2,0)=VLOOKUP(F32,Liste!E25:N249,10,0),1,0) -> 1 | H32: =IF(AND(TODAY()<$H$8,VLOOKUP(F32,Liste!E$2:F249,2,0)=VLOOKUP(F32,Liste!E25:O249,11,0)),1,0) -> 0 | I32: =IF(AND(TODAY()<$I$8,VLOOKUP(F32,Liste!E$2:G249,3,0)=VLOOKUP(F32,Liste!E25:O249,11,0)),1,0) -> 0
A33: 25 | B33: =IF(VLOOKUP(F33,Liste!E$2:F250,2,0)<VLOOKUP(F33,Liste!E26:J250,6,0),2,0) -> 0 | C33: =IF(VLOOKUP(F33,Liste!E$2:G250,3,0)=VLOOKUP(F33,Liste!E26:N250,10,0),2,0) -> 0 | D33: =IF(VLOOKUP(F33,Liste!E$2:F250,2,0)=0,3,0) -> 0 | E33: ● | F33: =IF($F$7="Obst und Gemüse",VLOOKUP(A33,Liste!B$2:E250,4,0),IF($F$7="Lidl",VLOOKUP(A33,Liste!C$2:E250,3,0))) -> Artikel 208 | G33: =IF(VLOOKUP(F33,Liste!E$2:F250,2,0)=VLOOKUP(F33,Liste!E26:N250,10,0),1,0) -> 0 | H33: =IF(AND(TODAY()<$H$8,VLOOKUP(F33,Liste!E$2:F250,2,0)=VLOOKUP(F33,Liste!E26:O250,11,0)),1,0) -> 0 | I33: =IF(AND(TODAY()<$I$8,VLOOKUP(F33,Liste!E$2:G250,3,0)=VLOOKUP(F33,Liste!E26:O250,11,0)),1,0) -> 0
A34: 26 | B34: =IF(VLOOKUP(F34,Liste!E$2:F251,2,0)<VLOOKUP(F34,Liste!E27:J251,6,0),2,0) -> 0 | C34: =IF(VLOOKUP(F34,Liste!E$2:G251,3,0)=VLOOKUP(F34,Liste!E27:N251,10,0),2,0) -> 0 | D34: =IF(VLOOKUP(F34,Liste!E$2:F251,2,0)=0,3,0) -> 0 | E34: ● | F34: =IF($F$7="Obst und Gemüse",VLOOKUP(A34,Liste!B$2:E251,4,0),IF($F$7="Lidl",VLOOKUP(A34,Liste!C$2:E251,3,0))) -> Artikel 216 | G34: =IF(VLOOKUP(F34,Liste!E$2:F251,2,0)=VLOOKUP(F34,Liste!E27:N251,10,0),1,0) -> 1 | H34: =IF(AND(TODAY()<$H$8,VLOOKUP(F34,Liste!E$2:F251,2,0)=VLOOKUP(F34,Liste!E27:O251,11,0)),1,0) -> 0 | I34: =IF(AND(TODAY()<$I$8,VLOOKUP(F34,Liste!E$2:G251,3,0)=VLOOKUP(F34,Liste!E27:O251,11,0)),1,0) -> 0
A35: 27 | B35: =IF(VLOOKUP(F35,Liste!E$2:F252,2,0)<VLOOKUP(F35,Liste!E28:J252,6,0),2,0) -> 0 | C35: =IF(VLOOKUP(F35,Liste!E$2:G252,3,0)=VLOOKUP(F35,Liste!E28:N252,10,0),2,0) -> 0 | D35: =IF(VLOOKUP(F35,Liste!E$2:F252,2,0)=0,3,0) -> 0 | E35: ● | F35: =IF($F$7="Obst und Gemüse",VLOOKUP(A35,Liste!B$2:E252,4,0),IF($F$7="Lidl",VLOOKUP(A35,Liste!C$2:E252,3,0))) -> Artikel 223 | G35: =IF(VLOOKUP(F35,Liste!E$2:F252,2,0)=VLOOKUP(F35,Liste!E28:N252,10,0),1,0) -> 1 | H35: =IF(AND(TODAY()<$H$8,VLOOKUP(F35,Liste!E$2:F252,2,0)=VLOOKUP(F35,Liste!E28:O252,11,0)),1,0) -> 0 | I35: =IF(AND(TODAY()<$I$8,VLOOKUP(F35,Liste!E$2:G252,3,0)=VLOOKUP(F35,Liste!E28:O252,11,0)),1,0) -> 0
A36: 28 | B36: =IF(VLOOKUP(F36,Liste!E$2:F253,2,0)<VLOOKUP(F36,Liste!E30:J253,6,0),2,0) ->  | C36: =IF(VLOOKUP(F36,Liste!E$2:G253,3,0)=VLOOKUP(F36,Liste!E30:N253,10,0),2,0) ->  | D36: =IF(VLOOKUP(F36,Liste!E$2:F253,2,0)=0,3,0) ->  | E36: ● | F36: =IF($F$7="Obst und Gemüse",VLOOKUP(A36,Liste!B$2:E253,4,0),IF($F$7="Lidl",VLOOKUP(A36,Liste!C$2:E253,3,0))) ->  | G36: =IF(VLOOKUP(F36,Liste!E$2:F253,2,0)=VLOOKUP(F36,Liste!E29:N253,10,0),1,0) ->  | H36: =IF(AND(TODAY()<$H$8,VLOOKUP(F36,Liste!E$2:F253,2,0)=VLOOKUP(F36,Liste!E30:O253,11,0)),1,0) ->  | I36: =IF(AND(TODAY()<$I$8,VLOOKUP(F36,Liste!E$2:G253,3,0)=VLOOKUP(F36,Liste!E30:O253,11,0)),1,0) -> 
A37: 29 | B37: =IF(VLOOKUP(F37,Liste!E$2:F254,2,0)<VLOOKUP(F37,Liste!E31:J254,6,0),2,0) ->  | C37: =IF(VLOOKUP(F37,Liste!E$2:G254,3,0)=VLOOKUP(F37,Liste!E31:N254,10,0),2,0) ->  | D37: =IF(VLOOKUP(F37,Liste!E$2:F254,2,0)=0,3,0) ->  | E37: ● | F37: =IF($F$7="Obst und Gemüse",VLOOKUP(A37,Liste!B$2:E254,4,0),IF($F$7="Lidl",VLOOKUP(A37,Liste!C$2:E254,3,0))) ->  | G37: =IF(VLOOKUP(F37,Liste!E$2:F254,2,0)=VLOOKUP(F37,Liste!E30:N254,10,0),1,0) ->  | H37: =IF(AND(TODAY()<$H$8,VLOOKUP(F37,Liste!E$2:F254,2,0)=VLOOKUP(F37,Liste!E31:O254,11,0)),1,0) ->  | I37: =IF(AND(TODAY()<$I$8,VLOOKUP(F37,Liste!E$2:G254,3,0)=VLOOKUP(F37,Liste!E31:O254,11,0)),1,0) -> 
A38: 30 | B38: =IF(VLOOKUP(F38,Liste!E$2:F255,2,0)<VLOOKUP(F38,Liste!E32:J255,6,0),2,0) ->  | C38: =IF(VLOOKUP(F38,Liste!E$2:G255,3,0)=VLOOKUP(F38,Liste!E32:N255,10,0),2,0) ->  | D38: =IF(VLOOKUP(F38,Liste!E$2:F255,2,0)=0,3,0) ->  | E38: ● | F38: =IF($F$7="Obst und Gemüse",VLOOKUP(A38,Liste!B$2:E255,4,0),IF($F$7="Lidl",VLOOKUP(A38,Liste!C$2:E255,3,0))) ->  | G38: =IF(VLOOKUP(F38,Liste!E$2:F255,2,0)=VLOOKUP(F38,Liste!E31:N255,10,0),1,0) ->  | H38: =IF(AND(TODAY()<$H$8,VLOOKUP(F38,Liste!E$2:F255,2,0)=VLOOKUP(F38,Liste!E32:O255,11,0)),1,0) ->  | I38: =IF(AND(TODAY()<$I$8,VLOOKUP(F38,Liste!E$2:G255,3,0)=VLOOKUP(F38,Liste!E32:O255,11,0)),1,0) -> 
A39: 31 | B39: =IF(VLOOKUP(F39,Liste!E$2:F256,2,0)<VLOOKUP(F39,Liste!E33:J256,6,0),2,0) ->  | C39: =IF(VLOOKUP(F39,Liste!E$2:G256,3,0)=VLOOKUP(F39,Liste!E33:N256,10,0),2,0) ->  | D39: =IF(VLOOKUP(F39,Liste!E$2:F256,2,0)=0,3,0) ->  | E39: ● | F39: =IF($F$7="Obst und Gemüse",VLOOKUP(A39,Liste!B$2:E256,4,0),IF($F$7="Lidl",VLOOKUP(A39,Liste!C$2:E256,3,0))) ->  | G39: =IF(VLOOKUP(F39,Liste!E$2:F256,2,0)=VLOOKUP(F39,Liste!E32:N256,10,0),1,0) ->  | H39: =IF(AND(TODAY()<$H$8,VLOOKUP(F39,Liste!E$2:F256,2,0)=VLOOKUP(F39,Liste!E33:O256,11,0)),1,0) ->  | I39: =IF(AND(TODAY()<$I$8,VLOOKUP(F39,Liste!E$2:G256,3,0)=VLOOKUP(F39,Liste!E33:O256,11,0)),1,0) -> 
A40: 32 | B40: =IF(VLOOKUP(F40,Liste!E$2:F257,2,0)<VLOOKUP(F40,Liste!E34:J257,6,0),2,0) ->  | C40: =IF(VLOOKUP(F40,Liste!E$2:G257,3,0)=VLOOKUP(F40,Liste!E34:N257,10,0),2,0) ->  | D40: =IF(VLOOKUP(F40,Liste!E$2:F257,2,0)=0,3,0) ->  | E40: ● | F40: =IF($F$7="Obst und Gemüse",VLOOKUP(A40,Liste!B$2:E257,4,0),IF($F$7="Lidl",VLOOKUP(A40,Liste!C$2:E257,3,0))) ->  | G40: =IF(VLOOKUP(F40,Liste!E$2:F257,2,0)=VLOOKUP(F40,Liste!E33:N257,10,0),1,0) ->  | H40: =IF(AND(TODAY()<$H$8,VLOOKUP(F40,Liste!E$2:F257,2,0)=VLOOKUP(F40,Liste!E34:O257,11,0)),1,0) ->  | I40: =IF(AND(TODAY()<$I$8,VLOOKUP(F40,Liste!E$2:G257,3,0)=VLOOKUP(F40,Liste!E34:O257,11,0)),1,0) -> 
A41: 33 | B41: =IF(VLOOKUP(F41,Liste!E$2:F258,2,0)<VLOOKUP(F41,Liste!E36:J258,6,0),2,0) ->  | C41: =IF(VLOOKUP(F41,Liste!E$2:G258,3,0)=VLOOKUP(F41,Liste!E36:N258,10,0),2,0) ->  | D41: =IF(VLOOKUP(F41,Liste!E$2:F258,2,0)=0,3,0) ->  | E41: ● | F41: =IF($F$7="Obst und Gemüse",VLOOKUP(A41,Liste!B$2:E258,4,0),IF($F$7="Lidl",VLOOKUP(A41,Liste!C$2:E258,3,0))) ->  | G41: =IF(VLOOKUP(F41,Liste!E$2:F258,2,0)=VLOOKUP(F41,Liste!E34:N258,10,0),1,0) ->  | H41: =IF(AND(TODAY()<$H$8,VLOOKUP(F41,Liste!E$2:F258,2,0)=VLOOKUP(F41,Liste!E36:O258,11,0)),1,0) ->  | I41: =IF(AND(TODAY()<$I$8,VLOOKUP(F41,Liste!E$2:G258,3,0)=VLOOKUP(F41,Liste!E36:O258,11,0)),1,0) -> 
A42: 34 | B42: =IF(VLOOKUP(F42,Liste!E$2:F259,2,0)<VLOOKUP(F42,Liste!E37:J259,6,0),2,0) ->  | C42: =IF(VLOOKUP(F42,Liste!E$2:G259,3,0)=VLOOKUP(F42,Liste!E37:N259,10,0),2,0) ->  | D42: =IF(VLOOKUP(F42,Liste!E$2:F259,2,0)=0,3,0) ->  | E42: ● | F42: =IF($F$7="Obst und Gemüse",VLOOKUP(A42,Liste!B$2:E259,4,0),IF($F$7="Lidl",VLOOKUP(A42,Liste!C$2:E259,3,0))) ->  | G42: =IF(VLOOKUP(F42,Liste!E$2:F259,2,0)=VLOOKUP(F42,Liste!E36:N259,10,0),1,0) ->  | H42: =IF(AND(TODAY()<$H$8,VLOOKUP(F42,Liste!E$2:F259,2,0)=VLOOKUP(F42,Liste!E37:O259,11,0)),1,0) ->  | I42: =IF(AND(TODAY()<$I$8,VLOOKUP(F42,Liste!E$2:G259,3,0)=VLOOKUP(F42,Liste!E37:O259,11,0)),1,0) -> 
A43: 35 | B43: =IF(VLOOKUP(F43,Liste!E$2:F260,2,0)<VLOOKUP(F43,Liste!E38:J260,6,0),2,0) ->  | C43: =IF(VLOOKUP(F43,Liste!E$2:G260,3,0)=VLOOKUP(F43,Liste!E38:N260,10,0),2,0) ->  | D43: =IF(VLOOKUP(F43,Liste!E$2:F260,2,0)=0,3,0) ->  | E43: ● | F43: =IF($F$7="Obst und Gemüse",VLOOKUP(A43,Liste!B$2:E260,4,0),IF($F$7="Lidl",VLOOKUP(A43,Liste!C$2:E260,3,0))) ->  | G43: =IF(VLOOKUP(F43,Liste!E$2:F260,2,0)=VLOOKUP(F43,Liste!E37:N260,10,0),1,0) ->  | H43: =IF(AND(TODAY()<$H$8,VLOOKUP(F43,Liste!E$2:F260,2,0)=VLOOKUP(F43,Liste!E38:O260,11,0)),1,0) ->  | I43: =IF(AND(TODAY()<$I$8,VLOOKUP(F43,Liste!E$2:G260,3,0)=VLOOKUP(F43,Liste!E38:O260,11,0)),1,0) -> 
A44: 36 | B44: =IF(VLOOKUP(F44,Liste!E$2:F261,2,0)<VLOOKUP(F44,Liste!E39:J261,6,0),2,0) ->  | C44: =IF(VLOOKUP(F44,Liste!E$2:G261,3,0)=VLOOKUP(F44,Liste!E39:N261,10,0),2,0) ->  | D44: =IF(VLOOKUP(F44,Liste!E$2:F261,2,0)=0,3,0) ->  | E44: ● | F44: =IF($F$7="Obst und Gemüse",VLOOKUP(A44,Liste!B$2:E261,4,0),IF($F$7="Lidl",VLOOKUP(A44,Liste!C$2:E261,3,0))) ->  | G44: =IF(VLOOKUP(F44,Liste!E$2:F261,2,0)=VLOOKUP(F44,Liste!E38:N261,10,0),1,0) ->  | H44: =IF(AND(TODAY()<$H$8,VLOOKUP(F44,Liste!E$2:F261,2,0)=VLOOKUP(F44,Liste!E39:O261,11,0)),1,0) ->  | I44: =IF(AND(TODAY()<$I$8,VLOOKUP(F44,Liste!E$2:G261,3,0)=VLOOKUP(F44,Liste!E39:O261,11,0)),1,0) -> 
A45: 37 | B45: =IF(VLOOKUP(F45,Liste!E$2:F262,2,0)<VLOOKUP(F45,Liste!E40:J262,6,0),2,0) ->  | C45: =IF(VLOOKUP(F45,Liste!E$2:G262,3,0)=VLOOKUP(F45,Liste!E40:N262,10,0),2,0) ->  | D45: =IF(VLOOKUP(F45,Liste!E$2:F262,2,0)=0,3,0) ->  | E45: ● | F45: =IF($F$7="Obst und Gemüse",VLOOKUP(A45,Liste!B$2:E262,4,0),IF($F$7="Lidl",VLOOKUP(A45,Liste!C$2:E262,3,0))) ->  | G45: =IF(VLOOKUP(F45,Liste!E$2:F262,2,0)=VLOOKUP(F45,Liste!E39:N262,10,0),1,0) ->  | H45: =IF(AND(TODAY()<$H$8,VLOOKUP(F45,Liste!E$2:F262,2,0)=VLOOKUP(F45,Liste!E40:O262,11,0)),1,0) ->  | I45: =IF(AND(TODAY()<$I$8,VLOOKUP(F45,Liste!E$2:G262,3,0)=VLOOKUP(F45,Liste!E40:O262,11,0)),1,0) -> 
A46: 38 | B46: =IF(VLOOKUP(F46,Liste!E$2:F263,2,0)<VLOOKUP(F46,Liste!E41:J263,6,0),2,0) ->  | C46: =IF(VLOOKUP(F46,Liste!E$2:G263,3,0)=VLOOKUP(F46,Liste!E41:N263,10,0),2,0) ->  | D46: =IF(VLOOKUP(F46,Liste!E$2:F263,2,0)=0,3,0) ->  | E46: ● | F46: =IF($F$7="Obst und Gemüse",VLOOKUP(A46,Liste!B$2:E263,4,0),IF($F$7="Lidl",VLOOKUP(A46,Liste!C$2:E263,3,0))) ->  | G46: =IF(VLOOKUP(F46,Liste!E$2:F263,2,0)=VLOOKUP(F46,Liste!E40:N263,10,0),1,0) ->  | H46: =IF(AND(TODAY()<$H$8,VLOOKUP(F46,Liste!E$2:F263,2,0)=VLOOKUP(F46,Liste!E41:O263,11,0)),1,0) ->  | I46: =IF(AND(TODAY()<$I$8,VLOOKUP(F46,Liste!E$2:G263,3,0)=VLOOKUP(F46,Liste!E41:O263,11,0)),1,0) -> 
A47: 39 | B47: =IF(VLOOKUP(F47,Liste!E$2:F264,2,0)<VLOOKUP(F47,Liste!E42:J264,6,0),2,0) ->  | C47: =IF(VLOOKUP(F47,Liste!E$2:G264,3,0)=VLOOKUP(F47,Liste!E42:N264,10,0),2,0) ->  | D47: =IF(VLOOKUP(F47,Liste!E$2:F264,2,0)=0,3,0) ->  | E47: ● | F47: =IF($F$7="Obst und Gemüse",VLOOKUP(A47,Liste!B$2:E264,4,0),IF($F$7="Lidl",VLOOKUP(A47,Liste!C$2:E264,3,0))) ->  | G47: =IF(VLOOKUP(F47,Liste!E$2:F264,2,0)=VLOOKUP(F47,Liste!E41:N264,10,0),1,0) ->  | H47: =IF(AND(TODAY()<$H$8,VLOOKUP(F47,Liste!E$2:F264,2,0)=VLOOKUP(F47,Liste!E42:O264,11,0)),1,0) ->  | I47: =IF(AND(TODAY()<$I$8,VLOOKUP(F47,Liste!E$2:G264,3,0)=VLOOKUP(F47,Liste!E42:O264,11,0)),1,0) -> 
A48: 40 | B48: =IF(VLOOKUP(F48,Liste!E$2:F265,2,0)<VLOOKUP(F48,Liste!E43:J265,6,0),2,0) ->  | C48: =IF(VLOOKUP(F48,Liste!E$2:G265,3,0)=VLOOKUP(F48,Liste!E43:N265,10,0),2,0) ->  | D48: =IF(VLOOKUP(F48,Liste!E$2:F265,2,0)=0,3,0) ->  | E48: ● | F48: =IF($F$7="Obst und Gemüse",VLOOKUP(A48,Liste!B$2:E265,4,0),IF($F$7="Lidl",VLOOKUP(A48,Liste!C$2:E265,3,0))) ->  | G48: =IF(VLOOKUP(F48,Liste!E$2:F265,2,0)=VLOOKUP(F48,Liste!E42:N265,10,0),1,0) ->  | H48: =IF(AND(TODAY()<$H$8,VLOOKUP(F48,Liste!E$2:F265,2,0)=VLOOKUP(F48,Liste!E43:O265,11,0)),1,0) ->  | I48: =IF(AND(TODAY()<$I$8,VLOOKUP(F48,Liste!E$2:G265,3,0)=VLOOKUP(F48,Liste!E43:O265,11,0)),1,0) -> 
A49: 41 | B49: =IF(VLOOKUP(F49,Liste!E$2:F266,2,0)<VLOOKUP(F49,Liste!E44:J266,6,0),2,0) ->  | C49: =IF(VLOOKUP(F49,Liste!E$2:G266,3,0)=VLOOKUP(F49,Liste!E44:N266,10,0),2,0) ->  | D49: =IF(VLOOKUP(F49,Liste!E$2:F266,2,0)=0,3,0) ->  | E49: ● | F49: =IF($F$7="Obst und Gemüse",VLOOKUP(A49,Liste!B$2:E266,4,0),IF($F$7="Lidl",VLOOKUP(A49,Liste!C$2:E266,3,0))) ->  | G49: =IF(VLOOKUP(F49,Liste!E$2:F266,2,0)=VLOOKUP(F49,Liste!E43:N266,10,0),1,0) ->  | H49: =IF(AND(TODAY()<$H$8,VLOOKUP(F49,Liste!E$2:F266,2,0)=VLOOKUP(F49,Liste!E44:O266,11,0)),1,0) ->  | I49: =IF(AND(TODAY()<$I$8,VLOOKUP(F49,Liste!E$2:G266,3,0)=VLOOKUP(F49,Liste!E44:O266,11,0)),1,0) -> 
A50: 42 | B50: =IF(VLOOKUP(F50,Liste!E$2:F267,2,0)<VLOOKUP(F50,Liste!E45:J267,6,0),2,0) ->  | C50: =IF(VLOOKUP(F50,Liste!E$2:G267,3,0)=VLOOKUP(F50,Liste!E45:N267,10,0),2,0) ->  | D50: =IF(VLOOKUP(F50,Liste!E$2:F267,2,0)=0,3,0) ->  | E50: ● | F50: =IF($F$7="Obst und Gemüse",VLOOKUP(A50,Liste!B$2:E267,4,0),IF($F$7="Lidl",VLOOKUP(A50,Liste!C$2:E267,3,0))) ->  | G50: =IF(VLOOKUP(F50,Liste!E$2:F267,2,0)=VLOOKUP(F50,Liste!E44:N267,10,0),1,0) ->  | H50: =IF(AND(TODAY()<$H$8,VLOOKUP(F50,Liste!E$2:F267,2,0)=VLOOKUP(F50,Liste!E45:O267,11,0)),1,0) ->  | I50: =IF(AND(TODAY()<$I$8,VLOOKUP(F50,Liste!E$2:G267,3,0)=VLOOKUP(F50,Liste!E45:O267,11,0)),1,0) -> 
A51: 43 | B51: =IF(VLOOKUP(F51,Liste!E$2:F268,2,0)<VLOOKUP(F51,Liste!E46:J268,6,0),2,0) ->  | C51: =IF(VLOOKUP(F51,Liste!E$2:G268,3,0)=VLOOKUP(F51,Liste!E46:N268,10,0),2,0) ->  | D51: =IF(VLOOKUP(F51,Liste!E$2:F268,2,0)=0,3,0) ->  | E51: ● | F51: =IF($F$7="Obst und Gemüse",VLOOKUP(A51,Liste!B$2:E268,4,0),IF($F$7="Lidl",VLOOKUP(A51,Liste!C$2:E268,3,0))) ->  | G51: =IF(VLOOKUP(F51,Liste!E$2:F268,2,0)=VLOOKUP(F51,Liste!E45:N268,10,0),1,0) ->  | H51: =IF(AND(TODAY()<$H$8,VLOOKUP(F51,Liste!E$2:F268,2,0)=VLOOKUP(F51,Liste!E46:O268,11,0)),1,0) ->  | I51: =IF(AND(TODAY()<$I$8,VLOOKUP(F51,Liste!E$2:G268,3,0)=VLOOKUP(F51,Liste!E46:O268,11,0)),1,0) -> 
A52: 44 | B52: =IF(VLOOKUP(F52,Liste!E$2:F269,2,0)<VLOOKUP(F52,Liste!E47:J269,6,0),2,0) ->  | C52: =IF(VLOOKUP(F52,Liste!E$2:G269,3,0)=VLOOKUP(F52,Liste!E47:N269,10,0),2,0) ->  | D52: =IF(VLOOKUP(F52,Liste!E$2:F269,2,0)=0,3,0) ->  | E52: ● | F52: =IF($F$7="Obst und Gemüse",VLOOKUP(A52,Liste!B$2:E269,4,0),IF($F$7="Lidl",VLOOKUP(A52,Liste!C$2:E269,3,0))) ->  | G52: =IF(VLOOKUP(F52,Liste!E$2:F269,2,0)=VLOOKUP(F52,Liste!E46:N269,10,0),1,0) ->  | H52: =IF(AND(TODAY()<$H$8,VLOOKUP(F52,Liste!E$2:F269,2,0)=VLOOKUP(F52,Liste!E47:O269,11,0)),1,0) ->  | I52: =IF(AND(TODAY()<$I$8,VLOOKUP(F52,Liste!E$2:G269,3,0)=VLOOKUP(F52,Liste!E47:O269,11,0)),1,0) -> 
A53: 45 | B53: =IF(VLOOKUP(F53,Liste!E$2:F270,2,0)<VLOOKUP(F53,Liste!E49:J270,6,0),2,0) ->  | C53: =IF(VLOOKUP(F53,Liste!E$2:G270,3,0)=VLOOKUP(F53,Liste!E49:N270,10,0),2,0) ->  | D53: =IF(VLOOKUP(F53,Liste!E$2:F270,2,0)=0,3,0) ->  | E53: ● | F53: =IF($F$7="Obst und Gemüse",VLOOKUP(A53,Liste!B$2:E270,4,0),IF($F$7="Lidl",VLOOKUP(A53,Liste!C$2:E270,3,0))) ->  | G53: =IF(VLOOKUP(F53,Liste!E$2:F270,2,0)=VLOOKUP(F53,Liste!E47:N270,10,0),1,0) ->  | H53: =IF(AND(TODAY()<$H$8,VLOOKUP(F53,Liste!E$2:F270,2,0)=VLOOKUP(F53,Liste!E49:O270,11,0)),1,0) ->  | I53: =IF(AND(TODAY()<$I$8,VLOOKUP(F53,Liste!E$2:G270,3,0)=VLOOKUP(F53,Liste!E49:O270,11,0)),1,0) -> 
A54: 46 | B54: =IF(VLOOKUP(F54,Liste!E$2:F271,2,0)<VLOOKUP(F54,Liste!E50:J271,6,0),2,0) ->  | C54: =IF(VLOOKUP(F54,Liste!E$2:G271,3,0)=VLOOKUP(F54,Liste!E50:N271,10,0),2,0) ->  | D54: =IF(VLOOKUP(F54,Liste!E$2:F271,2,0)=0,3,0) ->  | E54: ● | F54: =IF($F$7="Obst und Gemüse",VLOOKUP(A54,Liste!B$2:E271,4,0),IF($F$7="Lidl",VLOOKUP(A54,Liste!C$2:E271,3,0))) ->  | G54: =IF(VLOOKUP(F54,Liste!E$2:F271,2,0)=VLOOKUP(F54,Liste!E48:N271,10,0),1,0) ->  | H54: =IF(AND(TODAY()<$H$8,VLOOKUP(F54,Liste!E$2:F271,2,0)=VLOOKUP(F54,Liste!E50:O271,11,0)),1,0) ->  | I54: =IF(AND(TODAY()<$I$8,VLOOKUP(F54,Liste!E$2:G271,3,0)=VLOOKUP(F54,Liste!E50:O271,11,0)),1,0) -> 
A55: 47 | B55: =IF(VLOOKUP(F55,Liste!E$2:F272,2,0)<VLOOKUP(F55,Liste!E51:J272,6,0),2,0) ->  | C55: =IF(VLOOKUP(F55,Liste!E$2:G272,3,0)=VLOOKUP(F55,Liste!E51:N272,10,0),2,0) ->  | D55: =IF(VLOOKUP(F55,Liste!E$2:F272,2,0)=0,3,0) ->  | E55: ● | F55: =IF($F$7="Obst und Gemüse",VLOOKUP(A55,Liste!B$2:E272,4,0),IF($F$7="Lidl",VLOOKUP(A55,Liste!C$2:E272,3,0))) ->  | G55: =IF(VLOOKUP(F55,Liste!E$2:F272,2,0)=VLOOKUP(F55,Liste!E49:N272,10,0),1,0) ->  | H55: =IF(AND(TODAY()<$H$8,VLOOKUP(F55,Liste!E$2:F272,2,0)=VLOOKUP(F55,Liste!E51:O272,11,0)),1,0) ->  | I55: =IF(AND(TODAY()<$I$8,VLOOKUP(F55,Liste!E$2:G272,3,0)=VLOOKUP(F55,Liste!E51:O272,11,0)),1,0) -> 
A56: 48 | B56: =IF(VLOOKUP(F56,Liste!E$2:F273,2,0)<VLOOKUP(F56,Liste!E52:J273,6,0),2,0) ->  | C56: =IF(VLOOKUP(F56,Liste!E$2:G273,3,0)=VLOOKUP(F56,Liste!E52:N273,10,0),2,0) ->  | D56: =IF(VLOOKUP(F56,Liste!E$2:F273,2,0)=0,3,0) ->  | E56: ● | F56: =IF($F$7="Obst und Gemüse",VLOOKUP(A56,Liste!B$2:E273,4,0),IF($F$7="Lidl",VLOOKUP(A56,Liste!C$2:E273,3,0))) ->  | G56: =IF(VLOOKUP(F56,Liste!E$2:F273,2,0)=VLOOKUP(F56,Liste!E50:N273,10,0),1,0) ->  | H56: =IF(AND(TODAY()<$H$8,VLOOKUP(F56,Liste!E$2:F273,2,0)=VLOOKUP(F56,Liste!E52:O273,11,0)),1,0) ->  | I56: =IF(AND(TODAY()<$I$8,VLOOKUP(F56,Liste!E$2:G273,3,0)=VLOOKUP(F56,Liste!E52:O273,11,0)),1,0) -> 
A57: 49 | B57: =IF(VLOOKUP(F57,Liste!E$2:F274,2,0)<VLOOKUP(F57,Liste!E53:J274,6,0),2,0) ->  | C57: =IF(VLOOKUP(F57,Liste!E$2:G274,3,0)=VLOOKUP(F57,Liste!E53:N274,10,0),2,0) ->  | D57: =IF(VLOOKUP(F57,Liste!E$2:F274,2,0)=0,3,0) ->  | E57: ● | F57: =IF($F$7="Obst und Gemüse",VLOOKUP(A57,Liste!B$2:E274,4,0),IF($F$7="Lidl",VLOOKUP(A57,Liste!C$2:E274,3,0))) ->  | G57: =IF(VLOOKUP(F57,Liste!E$2:F274,2,0)=VLOOKUP(F57,Liste!E51:N274,10,0),1,0) ->  | H57: =IF(AND(TODAY()<$H$8,VLOOKUP(F57,Liste!E$2:F274,2,0)=VLOOKUP(F57,Liste!E53:O274,11,0)),1,0) ->  | I57: =IF(AND(TODAY()<$I$8,VLOOKUP(F57,Liste!E$2:G274,3,0)=VLOOKUP(F57,Liste!E53:O274,11,0)),1,0) -> 
A58: 50 | B58: =IF(VLOOKUP(F58,Liste!E$2:F275,2,0)<VLOOKUP(F58,Liste!E54:J275,6,0),2,0) ->  | C58: =IF(VLOOKUP(F58,Liste!E$2:G275,3,0)=VLOOKUP(F58,Liste!E54:N275,10,0),2,0) ->  | D58: =IF(VLOOKUP(F58,Liste!E$2:F275,2,0)=0,3,0) ->  | E58: ● | F58: =IF($F$7="Obst und Gemüse",VLOOKUP(A58,Liste!B$2:E275,4,0),IF($F$7="Lidl",VLOOKUP(A58,Liste!C$2:E275,3,0))) ->  | G58: =IF(VLOOKUP(F58,Liste!E$2:F275,2,0)=VLOOKUP(F58,Liste!E52:N275,10,0),1,0) ->  | H58: =IF(AND(TODAY()<$H$8,VLOOKUP(F58,Liste!E$2:F275,2,0)=VLOOKUP(F58,Liste!E54:O275,11,0)),1,0) ->  | I58: =IF(AND(TODAY()<$I$8,VLOOKUP(F58,Liste!E$2:G275,3,0)=VLOOKUP(F58,Liste!E54:O275,11,0)),1,0) -> 
A59: 51 | B59: =IF(VLOOKUP(F59,Liste!E$2:F276,2,0)<VLOOKUP(F59,Liste!E55:J276,6,0),2,0) ->  | C59: =IF(VLOOKUP(F59,Liste!E$2:G276,3,0)=VLOOKUP(F59,Liste!E55:N276,10,0),2,0) ->  | D59: =IF(VLOOKUP(F59,Liste!E$2:F276,2,0)=0,3,0) ->  | E59: ● | F59: =IF($F$7="Obst und Gemüse",VLOOKUP(A59,Liste!B$2:E276,4,0),IF($F$7="Lidl",VLOOKUP(A59,Liste!C$2:E276,3,0))) ->  | G59: =IF(VLOOKUP(F59,Liste!E$2:F276,2,0)=VLOOKUP(F59,Liste!E53:N276,10,0),1,0) ->  | H59: =IF(AND(TODAY()<$H$8,VLOOKUP(F59,Liste!E$2:F276,2,0)=VLOOKUP(F59,Liste!E55:O276,11,0)),1,0) ->  | I59: =IF(AND(TODAY()<$I$8,VLOOKUP(F59,Liste!E$2:G276,3,0)=VLOOKUP(F59,Liste!E55:O276,11,0)),1,0) -> 
A60: 52 | B60: =IF(VLOOKUP(F60,Liste!E$2:F277,2,0)<VLOOKUP(F60,Liste!E56:J277,6,0),2,0) ->  | C60: =IF(VLOOKUP(F60,Liste!E$2:G277,3,0)=VLOOKUP(F60,Liste!E56:N277,10,0),2,0) ->  | D60: =IF(VLOOKUP(F60,Liste!E$2:F277,2,0)=0,3,0) ->  | E60: ● | F60: =IF($F$7="Obst und Gemüse",VLOOKUP(A60,Liste!B$2:E277,4,0),IF($F$7="Lidl",VLOOKUP(A60,Liste!C$2:E277,3,0))) ->  | G60: =IF(VLOOKUP(F60,Liste!E$2:F277,2,0)=VLOOKUP(F60,Liste!E54:N277,10,0),1,0) ->  | H60: =IF(AND(TODAY()<$H$8,VLOOKUP(F60,Liste!E$2:F277,2,0)=VLOOKUP(F60,Liste!E56:O277,11,0)),1,0) ->  | I60: =IF(AND(TODAY()<$I$8,VLOOKUP(F60,Liste!E$2:G277,3,0)=VLOOKUP(F60,Liste!E56:O277,11,0)),1,0) -> 
